date,department/service,beneficiary,amount,summary of purpose,category,transaction number,SAP vendor number,
01.02.2021,ADULT SOCIAL CARE,ANCHOR TRUST,"88,894.88",DIR OF ASC,EXTERNAL AGENCIES AND BODIES,5902452809,11257534,
01.02.2021,ADULT SOCIAL CARE,REVOLUTION SOCIAL CARE,"1,408.03",DIR OF ASC,EXTERNAL AGENCIES AND BODIES,5902452648,1000085518,
01.02.2021,CENTRAL FUNCTIONS,SILK & MACKMAN SERVICES LTD,785.00,GARAGE REPAIRS,BUILDING R&M,5902452876,1000035282,
01.02.2021,CUSTOMER EXPERIENCE HGF,IMPERIAL COLLEGE PROJECTS LTD,312.00,CORONER'S,PROFESSIONAL FEES,5902452856,1000080106,
01.02.2021,CUSTOMER EXPERIENCE HGF,IMPERIAL COLLEGE PROJECTS LTD,336.00,CORONER'S,PROFESSIONAL FEES,5902452968,1000080106,
01.02.2021,CUSTOMER EXPERIENCE HGF,IMPERIAL COLLEGE PROJECTS LTD,516.00,CORONER'S,PROFESSIONAL FEES,5902452854,1000080106,
01.02.2021,CUSTOMER EXPERIENCE HGF,IMPERIAL COLLEGE PROJECTS LTD,528.00,CORONER'S,PROFESSIONAL FEES,5902452966,1000080106,
01.02.2021,EDUCATION,VIVIENNE SEDGLEY,"2,700.00",CENTRAL COSTS - SEN,LEGAL FEES & COURT COSTS,5902452814,1000082071,
01.02.2021,ENVIRONMENT AND LEISURE,F M CONWAY LTD,"29,550.53",CAPITAL PS (LEISURE),CONSTR'N SUB CONTRACT - NON CERTIFICATED,2103206442,4001384,
01.02.2021,ENVIRONMENT AND LEISURE,F M CONWAY LTD,"16,333.84",CAPITAL PS (LEISURE),CONSTRUCTION,2103208024,4001384,
01.02.2021,ENVIRONMENT AND LEISURE,UNDERHILL TREE CONSULTANCY,450.00,CAPITAL PS (LEISURE),CONSTRUCTION FEES - ARCHITECT,5902452873,1000081561,
01.02.2021,ENVIRONMENT AND LEISURE,VINCENTSTOKES LTD,"128,481.18",CAPITAL PS (LEISURE),CONSTRUCTION MAIN CONTRACT -CERTIFICATED,2103208025,3000001965,
01.02.2021,ENVIRONMENT AND LEISURE,DIVECO MARINE LTD,"270,261.02",CAPITAL PS (LEISURE),CONSTRUCTION FEES  - EXTERNAL,2103208047,3000002162,
01.02.2021,ENVIRONMENT DIRECTORATE,GLASDON UK LIMITED,"2,743.10",STREET CLEANING-GENERAL,MATERIALS,5902452964,1024073,
01.02.2021,F & C S EXCLUDING CORPORATE BUDGETS,REDACTED PERSONAL DATA,500.00,SESS,OTHER PAYMENTS FOR CLIENTS,REDACTED,REDACTED,
01.02.2021,F & C S EXCLUDING CORPORATE BUDGETS,REDACTED PERSONAL DATA,500.00,SESS,OTHER PAYMENTS FOR CLIENTS,REDACTED,REDACTED,
01.02.2021,F & C S EXCLUDING CORPORATE BUDGETS,REDACTED PERSONAL DATA,500.00,SESS,OTHER PAYMENTS FOR CLIENTS,REDACTED,REDACTED,
01.02.2021,F & C S EXCLUDING CORPORATE BUDGETS,REDACTED PERSONAL DATA,500.00,SESS,OTHER PAYMENTS FOR CLIENTS,REDACTED,REDACTED,
01.02.2021,F & C S EXCLUDING CORPORATE BUDGETS,REDACTED PERSONAL DATA,500.00,SESS,OTHER PAYMENTS FOR CLIENTS,REDACTED,REDACTED,
01.02.2021,F & C S EXCLUDING CORPORATE BUDGETS,REDACTED PERSONAL DATA,500.00,SESS,OTHER PAYMENTS FOR CLIENTS,REDACTED,REDACTED,
01.02.2021,F & C S EXCLUDING CORPORATE BUDGETS,REDACTED PERSONAL DATA,500.00,SESS,OTHER PAYMENTS FOR CLIENTS,REDACTED,REDACTED,
01.02.2021,F & C S EXCLUDING CORPORATE BUDGETS,REDACTED PERSONAL DATA,500.00,SESS,OTHER PAYMENTS FOR CLIENTS,REDACTED,REDACTED,
01.02.2021,F & C S EXCLUDING CORPORATE BUDGETS,REDACTED PERSONAL DATA,500.00,SESS,OTHER PAYMENTS FOR CLIENTS,REDACTED,REDACTED,
01.02.2021,F & C S EXCLUDING CORPORATE BUDGETS,REDACTED PERSONAL DATA,500.00,SESS,OTHER PAYMENTS FOR CLIENTS,REDACTED,REDACTED,
01.02.2021,F & C S EXCLUDING CORPORATE BUDGETS,REDACTED PERSONAL DATA,500.00,SESS,OTHER PAYMENTS FOR CLIENTS,REDACTED,REDACTED,
01.02.2021,F & C S EXCLUDING CORPORATE BUDGETS,REDACTED PERSONAL DATA,500.00,SESS,OTHER PAYMENTS FOR CLIENTS,REDACTED,REDACTED,
01.02.2021,F & C S EXCLUDING CORPORATE BUDGETS,REDACTED PERSONAL DATA,500.00,SESS,OTHER PAYMENTS FOR CLIENTS,REDACTED,REDACTED,
01.02.2021,F & C S EXCLUDING CORPORATE BUDGETS,REDACTED PERSONAL DATA,500.00,SESS,OTHER PAYMENTS FOR CLIENTS,REDACTED,REDACTED,
01.02.2021,F & C S EXCLUDING CORPORATE BUDGETS,REDACTED PERSONAL DATA,500.00,SESS,OTHER PAYMENTS FOR CLIENTS,REDACTED,REDACTED,
01.02.2021,F & C S EXCLUDING CORPORATE BUDGETS,REDACTED PERSONAL DATA,500.00,SESS,OTHER PAYMENTS FOR CLIENTS,REDACTED,REDACTED,
01.02.2021,F & C S EXCLUDING CORPORATE BUDGETS,REDACTED PERSONAL DATA,500.00,SESS,OTHER PAYMENTS FOR CLIENTS,REDACTED,REDACTED,
01.02.2021,F & C S EXCLUDING CORPORATE BUDGETS,REDACTED PERSONAL DATA,500.00,SESS,OTHER PAYMENTS FOR CLIENTS,REDACTED,REDACTED,
01.02.2021,F & C S EXCLUDING CORPORATE BUDGETS,REDACTED PERSONAL DATA,500.00,SESS,OTHER PAYMENTS FOR CLIENTS,REDACTED,REDACTED,
01.02.2021,F & C S EXCLUDING CORPORATE BUDGETS,REDACTED PERSONAL DATA,500.00,SESS,OTHER PAYMENTS FOR CLIENTS,REDACTED,REDACTED,
01.02.2021,F & C S EXCLUDING CORPORATE BUDGETS,REDACTED PERSONAL DATA,500.00,SESS,OTHER PAYMENTS FOR CLIENTS,REDACTED,REDACTED,
01.02.2021,HOUSING,SILK & MACKMAN SERVICES LTD,"76,415.06",ENG CONTRACTS (NORTH),I-WORLD CONTRACTORS HOLDING ACCOUNT,5902452543,1000035282,
01.02.2021,HOUSING HRA,PJC CONSULTANCY LTD,323.75,CAPITAL PS (HRA),CONSTRUCTION FEES  - EXTERNAL,5902452538,1000077403,
01.02.2021,HOUSING HRA,PJC CONSULTANCY LTD,323.75,CAPITAL PS (HRA),CONSTRUCTION FEES - QUANTITY SURVEYOR,5902452531,1000077403,
01.02.2021,HOUSING HRA,PJC CONSULTANCY LTD,323.75,CAPITAL PS (HRA),CONSTRUCTION FEES - QUANTITY SURVEYOR,5902452533,1000077403,
01.02.2021,HOUSING HRA,PJC CONSULTANCY LTD,323.75,CAPITAL PS (HRA),CONSTRUCTION FEES - QUANTITY SURVEYOR,5902452535,1000077403,
01.02.2021,LEISURE DIRECTORATE,ASKEWS & HOLTS LIBRARY SERVICES LTD,"1,199.93",STOCK SERVICES,BOOKS & PUBLICATIONS,5902452473,1494168,
01.02.2021,MODERNISATION HGF,KIER FACILITIES SERVICES LTD,"43,979.98",PLANNED FM SERVICES BY KIER,BUILDING R&M,5902452612,1000040603,
02.02.2021,ADULT SOCIAL CARE,LOOK AHEAD CARE AND SUPPORT LTD,332.00,APPOINTEESHIPS,OTHER PAYMENTS FOR CLIENTS,2103210987,1000072923,
02.02.2021,ADULT SOCIAL CARE,RHP OUTREACH SERVICES LTD,745.11,APPOINTEESHIPS,OTHER PAYMENTS FOR CLIENTS,2103210989,1000086262,
02.02.2021,ADULT SOCIAL CARE,RHP OUTREACH SERVICES LTD,"1,808.00",APPOINTEESHIPS,OTHER PAYMENTS FOR CLIENTS,2103210990,1000086262,
02.02.2021,ADULT SOCIAL CARE,REDACTED PERSONAL DATA,395.20,APPOINTEESHIPS,OTHER PAYMENTS FOR CLIENTS,REDACTED,REDACTED,
02.02.2021,ADULT SOCIAL CARE,ALLPAY LTD,308.69,CLIENT FINANCE TEAM,PAYMENTS FOR FINANCIAL SERVICES,5902453411,1000043001,
02.02.2021,ADULT SOCIAL CARE,ALLPAY LTD,477.16,CLIENT FINANCE TEAM,PAYMENTS FOR FINANCIAL SERVICES,5902453415,1000043001,
02.02.2021,ADULT SOCIAL CARE,HC-ONE LTD (TOWER BRIDGE CARE HOME),"50,797.08",DIR OF ASC,EXTERNAL AGENCIES AND BODIES,5902453371,1000067670,
02.02.2021,ADULT SOCIAL CARE,KENT HOMEFINDING & FOSTERING LTD,"5,166.81",DISABILITIES LAC,EXTERNAL AGENCIES AND BODIES,2103210439,1000033978,
02.02.2021,ADULT SOCIAL CARE,HELP ME GROW FOSTERING SERVICES LTD,"5,757.01",DISABILITIES LAC,EXTERNAL AGENCIES AND BODIES,2103210412,1000079302,
02.02.2021,ADULT SOCIAL CARE,THAMES HOMECARE SERVICE LTD,367.94,DISCHARGE TO ACCESS,HOMECARE - C&V,2103210229,1000079295,
02.02.2021,ADULT SOCIAL CARE,THAMES HOMECARE SERVICE LTD,286.18,DISCHARGE TO ACCESS,HOMECARE - SPOT,2103210201,1000079295,
02.02.2021,ADULT SOCIAL CARE,ELEANOR NURSING AND SOCIAL CARE LTD,"5,812.80",DISCHARGE TO ACCESS,HOMECARE - SPOT,2103210292,1000081695,
02.02.2021,ADULT SOCIAL CARE,MEDEQUIP ASSISTIVE TECHNOLOGY LTD,"211,709.61",ICES CONTRACT,EQUIPMENT PURCHASE & REPAIR,5902453470,1000062775,
02.02.2021,ADULT SOCIAL CARE,SOUTHSIDE PARTNERSHIP LTD,"1,204.00",LD LTS 18-64,SUPPORTED LIVING,2103210394,1716624,
02.02.2021,ADULT SOCIAL CARE,CONTACT PROFESSIONALS,465.00,LD LTS 18-64,SUPPORTED LIVING,2103210283,1000057263,
02.02.2021,ADULT SOCIAL CARE,CONTACT PROFESSIONALS,465.00,LD LTS 18-64,SUPPORTED LIVING,2103210286,1000057263,
02.02.2021,ADULT SOCIAL CARE,CONTACT PROFESSIONALS,465.00,LD LTS 18-64,SUPPORTED LIVING,2103210287,1000057263,
02.02.2021,ADULT SOCIAL CARE,CARE DIRECT UK LTD,330.96,LD LTS 18-64,SUPPORTED LIVING,2103210298,1000066322,
02.02.2021,ADULT SOCIAL CARE,CARE DIRECT UK LTD,399.91,LD LTS 18-64,SUPPORTED LIVING,2103210291,1000066322,
02.02.2021,ADULT SOCIAL CARE,PECULIAR CARE HOMES LTD,448.75,LD LTS 18-64,SUPPORTED LIVING,2103210392,1000076991,
02.02.2021,ADULT SOCIAL CARE,PECULIAR CARE HOMES LTD,"1,077.00",LD LTS 18-64,SUPPORTED LIVING,2103210390,1000076991,
02.02.2021,ADULT SOCIAL CARE,PECULIAR CARE HOMES LTD,"1,346.25",LD LTS 18-64,SUPPORTED LIVING,2103210391,1000076991,
02.02.2021,ADULT SOCIAL CARE,ELEANOR NURSING AND SOCIAL CARE LTD,"2,700.00",LD LTS 18-64,HOMECARE - SPOT,2103210294,1000081695,
02.02.2021,ADULT SOCIAL CARE,ELEANOR NURSING AND SOCIAL CARE LTD,"18,900.00",LD LTS 18-64,HOMECARE - SPOT,2103210293,1000081695,
02.02.2021,ADULT SOCIAL CARE,REDACTED PERSONAL DATA,"3,682.28",LD LTS 18-64,SUPPORTED LIVING,REDACTED,REDACTED,
02.02.2021,ADULT SOCIAL CARE,LONDON CARE LTD,382.80,MEM LTS 18-64,HOMECARE - C&V,2103210309,1000003398,
02.02.2021,ADULT SOCIAL CARE,THAMES HOMECARE SERVICE LTD,427.00,MH LTS 18-64,HOMECARE - SPOT,2103210198,1000079295,
02.02.2021,ADULT SOCIAL CARE,THAMES HOMECARE SERVICE LTD,472.42,MH LTS 65+,HOMECARE - SPOT,2103210251,1000079295,
02.02.2021,ADULT SOCIAL CARE,LONDON CARE LTD,262.29,PHY LTS 18-64,HOMECARE - C&V,2103210306,1000003398,
02.02.2021,ADULT SOCIAL CARE,LONDON CARE LTD,733.92,PHY LTS 18-64,HOMECARE - C&V,2103210385,1000003398,
02.02.2021,ADULT SOCIAL CARE,THAMES HOMECARE SERVICE LTD,258.92,PHY LTS 18-64,HOMECARE - SPOT,2103210203,1000079295,
02.02.2021,ADULT SOCIAL CARE,THAMES HOMECARE SERVICE LTD,286.18,PHY LTS 18-64,HOMECARE - SPOT,2103210264,1000079295,
02.02.2021,ADULT SOCIAL CARE,THAMES HOMECARE SERVICE LTD,349.77,PHY LTS 18-64,HOMECARE - SPOT,2103210237,1000079295,
02.02.2021,ADULT SOCIAL CARE,THAMES HOMECARE SERVICE LTD,363.40,PHY LTS 18-64,HOMECARE - SPOT,2103210246,1000079295,
02.02.2021,ADULT SOCIAL CARE,THAMES HOMECARE SERVICE LTD,386.11,PHY LTS 18-64,HOMECARE - SPOT,2103210213,1000079295,
02.02.2021,ADULT SOCIAL CARE,THAMES HOMECARE SERVICE LTD,572.36,PHY LTS 18-64,HOMECARE - SPOT,2103210204,1000079295,
02.02.2021,ADULT SOCIAL CARE,THAMES HOMECARE SERVICE LTD,572.36,PHY LTS 18-64,HOMECARE - SPOT,2103210260,1000079295,
02.02.2021,ADULT SOCIAL CARE,THAMES HOMECARE SERVICE LTD,608.70,PHY LTS 18-64,HOMECARE - SPOT,2103210254,1000079295,
02.02.2021,ADULT SOCIAL CARE,THAMES HOMECARE SERVICE LTD,635.95,PHY LTS 18-64,HOMECARE - SPOT,2103210200,1000079295,
02.02.2021,ADULT SOCIAL CARE,THAMES HOMECARE SERVICE LTD,649.58,PHY LTS 18-64,HOMECARE - SPOT,2103210208,1000079295,
02.02.2021,ADULT SOCIAL CARE,THAMES HOMECARE SERVICE LTD,699.55,PHY LTS 18-64,HOMECARE - SPOT,2103210244,1000079295,
02.02.2021,ADULT SOCIAL CARE,THAMES HOMECARE SERVICE LTD,844.91,PHY LTS 18-64,HOMECARE - SPOT,2103210223,1000079295,
02.02.2021,ADULT SOCIAL CARE,THAMES HOMECARE SERVICE LTD,926.67,PHY LTS 18-64,HOMECARE - SPOT,2103210269,1000079295,
02.02.2021,ADULT SOCIAL CARE,LONDON CARE LTD,274.22,PHY LTS 65+,HOMECARE - C&V,2103210380,1000003398,
02.02.2021,ADULT SOCIAL CARE,LONDON CARE LTD,349.72,PHY LTS 65+,HOMECARE - C&V,2103210308,1000003398,
02.02.2021,ADULT SOCIAL CARE,LONDON CARE LTD,514.55,PHY LTS 65+,HOMECARE - C&V,2103210312,1000003398,
02.02.2021,ADULT SOCIAL CARE,LONDON CARE LTD,519.10,PHY LTS 65+,HOMECARE - C&V,2103210376,1000003398,
02.02.2021,ADULT SOCIAL CARE,LONDON CARE LTD,526.35,PHY LTS 65+,HOMECARE - C&V,2103210377,1000003398,
02.02.2021,ADULT SOCIAL CARE,LONDON CARE LTD,577.41,PHY LTS 65+,HOMECARE - C&V,2103210378,1000003398,
02.02.2021,ADULT SOCIAL CARE,LONDON CARE LTD,733.92,PHY LTS 65+,HOMECARE - C&V,2103210382,1000003398,
02.02.2021,ADULT SOCIAL CARE,LONDON CARE LTD,"1,036.30",PHY LTS 65+,HOMECARE - C&V,2103210384,1000003398,
02.02.2021,ADULT SOCIAL CARE,LONDON CARE LTD,"1,074.00",PHY LTS 65+,HOMECARE - C&V,2103210381,1000003398,
02.02.2021,ADULT SOCIAL CARE,LONDON CARE LTD,"2,706.28",PHY LTS 65+,HOMECARE - C&V,2103210379,1000003398,
02.02.2021,ADULT SOCIAL CARE,LONDON CARE LTD,"2,859.54",PHY LTS 65+,HOMECARE - C&V,2103210383,1000003398,
02.02.2021,ADULT SOCIAL CARE,CAPITAL HOMECARE (UK) LTD,758.45,PHY LTS 65+,HOMECARE - SPOT,2103210388,1000042589,
02.02.2021,ADULT SOCIAL CARE,CARE DIRECT UK LTD,559.13,PHY LTS 65+,HOMECARE - SPOT,2103210289,1000066322,
02.02.2021,ADULT SOCIAL CARE,CARE DIRECT UK LTD,559.13,PHY LTS 65+,HOMECARE - SPOT,2103210295,1000066322,
02.02.2021,ADULT SOCIAL CARE,CARE DIRECT UK LTD,621.25,PHY LTS 65+,HOMECARE - SPOT,2103210297,1000066322,
02.02.2021,ADULT SOCIAL CARE,CARE DIRECT UK LTD,621.25,PHY LTS 65+,HOMECARE - SPOT,2103210300,1000066322,
02.02.2021,ADULT SOCIAL CARE,THAMES HOMECARE SERVICE LTD,681.38,PHY LTS 65+,HOMECARE - C&V,2103210194,1000079295,
02.02.2021,ADULT SOCIAL CARE,THAMES HOMECARE SERVICE LTD,268.01,PHY LTS 65+,HOMECARE - SPOT,2103210263,1000079295,
02.02.2021,ADULT SOCIAL CARE,THAMES HOMECARE SERVICE LTD,272.55,PHY LTS 65+,HOMECARE - SPOT,2103210212,1000079295,
02.02.2021,ADULT SOCIAL CARE,THAMES HOMECARE SERVICE LTD,286.18,PHY LTS 65+,HOMECARE - SPOT,2103210193,1000079295,
02.02.2021,ADULT SOCIAL CARE,THAMES HOMECARE SERVICE LTD,286.18,PHY LTS 65+,HOMECARE - SPOT,2103210202,1000079295,
02.02.2021,ADULT SOCIAL CARE,THAMES HOMECARE SERVICE LTD,286.18,PHY LTS 65+,HOMECARE - SPOT,2103210243,1000079295,
02.02.2021,ADULT SOCIAL CARE,THAMES HOMECARE SERVICE LTD,336.15,PHY LTS 65+,HOMECARE - SPOT,2103210256,1000079295,
02.02.2021,ADULT SOCIAL CARE,THAMES HOMECARE SERVICE LTD,349.77,PHY LTS 65+,HOMECARE - SPOT,2103210281,1000079295,
02.02.2021,ADULT SOCIAL CARE,THAMES HOMECARE SERVICE LTD,413.37,PHY LTS 65+,HOMECARE - SPOT,2103210253,1000079295,
02.02.2021,ADULT SOCIAL CARE,THAMES HOMECARE SERVICE LTD,445.17,PHY LTS 65+,HOMECARE - SPOT,2103210210,1000079295,
02.02.2021,ADULT SOCIAL CARE,THAMES HOMECARE SERVICE LTD,445.17,PHY LTS 65+,HOMECARE - SPOT,2103210276,1000079295,
02.02.2021,ADULT SOCIAL CARE,THAMES HOMECARE SERVICE LTD,499.68,PHY LTS 65+,HOMECARE - SPOT,2103210214,1000079295,
02.02.2021,ADULT SOCIAL CARE,THAMES HOMECARE SERVICE LTD,508.76,PHY LTS 65+,HOMECARE - SPOT,2103210262,1000079295,
02.02.2021,ADULT SOCIAL CARE,THAMES HOMECARE SERVICE LTD,508.76,PHY LTS 65+,HOMECARE - SPOT,2103210274,1000079295,
02.02.2021,ADULT SOCIAL CARE,THAMES HOMECARE SERVICE LTD,572.36,PHY LTS 65+,HOMECARE - SPOT,2103210227,1000079295,
02.02.2021,ADULT SOCIAL CARE,THAMES HOMECARE SERVICE LTD,572.36,PHY LTS 65+,HOMECARE - SPOT,2103210230,1000079295,
02.02.2021,ADULT SOCIAL CARE,THAMES HOMECARE SERVICE LTD,576.90,PHY LTS 65+,HOMECARE - SPOT,2103210231,1000079295,
02.02.2021,ADULT SOCIAL CARE,THAMES HOMECARE SERVICE LTD,581.44,PHY LTS 65+,HOMECARE - SPOT,2103210205,1000079295,
02.02.2021,ADULT SOCIAL CARE,THAMES HOMECARE SERVICE LTD,599.61,PHY LTS 65+,HOMECARE - SPOT,2103210217,1000079295,
02.02.2021,ADULT SOCIAL CARE,THAMES HOMECARE SERVICE LTD,608.70,PHY LTS 65+,HOMECARE - SPOT,2103210199,1000079295,
02.02.2021,ADULT SOCIAL CARE,THAMES HOMECARE SERVICE LTD,640.49,PHY LTS 65+,HOMECARE - SPOT,2103210211,1000079295,
02.02.2021,ADULT SOCIAL CARE,THAMES HOMECARE SERVICE LTD,654.12,PHY LTS 65+,HOMECARE - SPOT,2103210240,1000079295,
02.02.2021,ADULT SOCIAL CARE,THAMES HOMECARE SERVICE LTD,663.21,PHY LTS 65+,HOMECARE - SPOT,2103210216,1000079295,
02.02.2021,ADULT SOCIAL CARE,THAMES HOMECARE SERVICE LTD,699.55,PHY LTS 65+,HOMECARE - SPOT,2103210206,1000079295,
02.02.2021,ADULT SOCIAL CARE,THAMES HOMECARE SERVICE LTD,699.55,PHY LTS 65+,HOMECARE - SPOT,2103210275,1000079295,
02.02.2021,ADULT SOCIAL CARE,THAMES HOMECARE SERVICE LTD,763.14,PHY LTS 65+,HOMECARE - SPOT,2103210233,1000079295,
02.02.2021,ADULT SOCIAL CARE,THAMES HOMECARE SERVICE LTD,799.48,PHY LTS 65+,HOMECARE - SPOT,2103210259,1000079295,
02.02.2021,ADULT SOCIAL CARE,THAMES HOMECARE SERVICE LTD,"1,044.78",PHY LTS 65+,HOMECARE - SPOT,2103210207,1000079295,
02.02.2021,ADULT SOCIAL CARE,THAMES HOMECARE SERVICE LTD,"1,480.86",PHY LTS 65+,HOMECARE - SPOT,2103210209,1000079295,
02.02.2021,ADULT SOCIAL CARE,SAGECARE LTD,999.25,PHY LTS 65+,HOMECARE - C&V,2103210396,1000080924,
02.02.2021,ADULT SOCIAL CARE,WILLOW GRANGE CARE LTD,-498.96,PHY LTS 65+,INCOME FOR THIRD PARTIES/AGENCY ARRANGEMENTS,2103210461,1000086250,
02.02.2021,ADULT SOCIAL CARE,WILLOW GRANGE CARE LTD,-893.10,PHY LTS 65+,"MAND STATUTORY CHARGES, NURSING",2103210459,1000086250,
02.02.2021,ADULT SOCIAL CARE,WILLOW GRANGE CARE LTD,"3,497.52",PHY LTS 65+,NURSING PLACEMENTS FEES,2103210460,1000086250,
02.02.2021,ADULT SOCIAL CARE,WILLOW GRANGE CARE LTD,498.96,PHY LTS 65+,THIRD PARTY TOP UP CARE,2103210458,1000086250,
02.02.2021,ADULT SOCIAL CARE,THAMES HOMECARE SERVICE LTD,699.55,PHY STS 18-64,HOMECARE - IC,2103210239,1000079295,
02.02.2021,ADULT SOCIAL CARE,THAMES HOMECARE SERVICE LTD,699.55,PHY STS 18-64,HOMECARE - IC,2103210241,1000079295,
02.02.2021,ADULT SOCIAL CARE,THAMES HOMECARE SERVICE LTD,826.74,PHY STS 18-64,HOMECARE - IC,2103210222,1000079295,
02.02.2021,ADULT SOCIAL CARE,LONDON CARE LTD,"1,721.16",PHY STS 65+,HOMECARE - IC,2103210303,1000003398,
02.02.2021,ADULT SOCIAL CARE,THAMES HOMECARE SERVICE LTD,286.18,PHY STS 65+,HOMECARE - IC,2103210270,1000079295,
02.02.2021,ADULT SOCIAL CARE,THAMES HOMECARE SERVICE LTD,308.89,PHY STS 65+,HOMECARE - IC,2103210220,1000079295,
02.02.2021,ADULT SOCIAL CARE,THAMES HOMECARE SERVICE LTD,517.85,PHY STS 65+,HOMECARE - IC,2103210280,1000079295,
02.02.2021,ADULT SOCIAL CARE,THAMES HOMECARE SERVICE LTD,699.55,PHY STS 65+,HOMECARE - IC,2103210219,1000079295,
02.02.2021,ADULT SOCIAL CARE,THAMES HOMECARE SERVICE LTD,826.74,PHY STS 65+,HOMECARE - IC,2103210228,1000079295,
02.02.2021,ADULT SOCIAL CARE,THAMES HOMECARE SERVICE LTD,"1,144.71",PHY STS 65+,HOMECARE - IC,2103210196,1000079295,
02.02.2021,ADULT SOCIAL CARE,SOUTHSIDE PARTNERSHIP LTD,"59,722.62",S75 SUPHSG SCH LBS LEAD,EXTERNAL AGENCIES AND BODIES,5902453370,1716624,
02.02.2021,ADULT SOCIAL CARE,RADHA CONSULTING LTD,720.00,SAFEGUARDING & DOLS,OTHER CONTRACTORS,5902453106,1000061154,
02.02.2021,ADULT SOCIAL CARE,THAMES HOMECARE SERVICE LTD,304.35,SEN LTS 65+,HOMECARE - SPOT,2103210261,1000079295,
02.02.2021,ADULT SOCIAL CARE,LONDON CARE LTD,"2,210.00",SOCIAL ISOLATION,HOMECARE - IC,2103210304,1000003398,
02.02.2021,ADULT SOCIAL CARE,SAGECARE LTD,382.80,SOCIAL ISOLATION,HOMECARE - C&V,2103210397,1000080924,
02.02.2021,ADULT SOCIAL CARE,PECULIAR CARE HOMES LTD,359.00,SPECIALIST CARE,SECTION 17 PAYMENTS TO AGENCIES/CARERS,2103210454,1000076991,
02.02.2021,ADULT SOCIAL CARE,PECULIAR CARE HOMES LTD,538.50,SPECIALIST CARE,SECTION 17 PAYMENTS TO AGENCIES/CARERS,2103210453,1000076991,
02.02.2021,ADULT SOCIAL CARE,PECULIAR CARE HOMES LTD,538.50,SPECIALIST CARE,SECTION 17 PAYMENTS TO AGENCIES/CARERS,2103210456,1000076991,
02.02.2021,ADULT SOCIAL CARE,PECULIAR CARE HOMES LTD,807.75,SPECIALIST CARE,SECTION 17 PAYMENTS TO AGENCIES/CARERS,2103210455,1000076991,
02.02.2021,ADULT SOCIAL CARE,PECULIAR CARE HOMES LTD,"10,455.88",SPECIALIST CARE,SECTION 17 PAYMENTS TO AGENCIES/CARERS,2103210451,1000076991,
02.02.2021,ADULT SOCIAL CARE,LONDON COUNCILS,"22,972.00",TAXICARD SCHEME,EXTERNAL AGENCIES AND BODIES,5902453390,11237079,
02.02.2021,ASSET MANAGEMENT,ASHFORDS LLP,696.18,DISREPAIR,PAYMENTS FOR LEGAL SERVICES,2103210355,1000055865,
02.02.2021,ASSET MANAGEMENT,ASHFORDS LLP,750.00,DISREPAIR,PAYMENTS FOR LEGAL SERVICES,2103210349,1000055865,
02.02.2021,ASSET MANAGEMENT,ASHFORDS LLP,"1,945.14",DISREPAIR,PAYMENTS FOR LEGAL SERVICES,2103210352,1000055865,
02.02.2021,ASSET MANAGEMENT,ASHFORDS LLP,"2,250.00",DISREPAIR,PAYMENTS FOR LEGAL SERVICES,2103210351,1000055865,
02.02.2021,ASSET MANAGEMENT,ASHFORDS LLP,"9,000.00",DISREPAIR,PAYMENTS FOR LEGAL SERVICES,2103210350,1000055865,
02.02.2021,ASSET MANAGEMENT,ASHFORDS LLP,"12,791.00",DISREPAIR,PAYMENTS FOR LEGAL SERVICES,2103210356,1000055865,
02.02.2021,ASSET MANAGEMENT,CHESHIRE ESTATE AND LEGAL LTD,750.00,DISREPAIR,PAYMENTS FOR LEGAL SERVICES,2103210357,1000081908,
02.02.2021,ASSET MANAGEMENT,CHESHIRE ESTATE AND LEGAL LTD,"1,000.00",DISREPAIR,PAYMENTS FOR LEGAL SERVICES,2103210358,1000081908,
02.02.2021,ASSET MANAGEMENT,CHESHIRE ESTATE AND LEGAL LTD,"3,500.00",DISREPAIR,PAYMENTS FOR LEGAL SERVICES,2103210362,1000081908,
02.02.2021,ASSET MANAGEMENT,ANTONY HODARI  SOLICITORS,600.00,DISREPAIR,PAYMENTS FOR LEGAL SERVICES,2103210354,1000031040,
02.02.2021,ASSET MANAGEMENT,ANTONY HODARI  SOLICITORS,"1,500.00",DISREPAIR,PAYMENTS FOR LEGAL SERVICES,2103210360,1000031040,
02.02.2021,ASSET MANAGEMENT,ENVISION  SOLICITORS LIMITED,"3,850.00",DISREPAIR,PAYMENTS FOR LEGAL SERVICES,2103210347,1000086191,
02.02.2021,ASSET MANAGEMENT,SE2 LIMITED,300.00,ENG CONTRACTS,OFFICE EXPENSES,5902453328,1000086249,
02.02.2021,ASSET MANAGEMENT,CALFORD SEADEN LLP,"4,900.00",HIP MAJOR WORKS,PROFESSIONAL FEES,5902453388,1061592,
02.02.2021,CENTRAL FUNCTIONS,NPOWER LTD,650.65,HEATING ACCOUNT,ELECTRICITY,5902453502,1000078994,
02.02.2021,CENTRAL FUNCTIONS,NPOWER LTD,"1,064.78",HEATING ACCOUNT,ELECTRICITY,5902452860,1000078994,
02.02.2021,CENTRAL FUNCTIONS,NPOWER LTD,"1,909.83",HEATING ACCOUNT,ELECTRICITY,5902452860,1000078994,
02.02.2021,CENTRAL FUNCTIONS,GUIDELINE LIFT SERVICES LTD,"7,925.50",INTEREST PAYABLE,BUILDING R&M,5902453417,1000064176,
02.02.2021,CHIEF EXECUTIVE,KENT COUNTY COUNCIL - LASER,"2,147.71",CAPITAL PS (REGEN),CONSTRUCTION MAIN CONTRACT -CERTIFICATED,5902453366,1000012926,
02.02.2021,CHILDREN AND ADULT,JOHN BURKE ASSOCIATES LIMITED,984.00,CAPITAL PS (EDUCATION),CONSTRUCTION FEES  - EXTERNAL,5902453330,1000026411,
02.02.2021,CHILDREN AND ADULT,JOHN BURKE ASSOCIATES LIMITED,"1,312.00",CAPITAL PS (EDUCATION),CONSTRUCTION FEES  - EXTERNAL,5902453329,1000026411,
02.02.2021,CHILDREN AND ADULT,AMR CONSULT LTD,813.33,CAPITAL PS (EDUCATION),CONSTRUCTION FEES  - EXTERNAL,5902453447,1000080834,
02.02.2021,CHILDREN AND ADULT,AMR CONSULT LTD,"2,846.67",CAPITAL PS (EDUCATION),CONSTRUCTION FEES  - EXTERNAL,5902453443,1000080834,
02.02.2021,CHILDREN AND ADULT,AMR CONSULT LTD,"2,846.67",CAPITAL PS (EDUCATION),CONSTRUCTION FEES  - EXTERNAL,5902453444,1000080834,
02.02.2021,CHILDREN AND ADULT,AMR CONSULT LTD,"3,997.50",CAPITAL PS (EDUCATION),CONSTRUCTION FEES  - EXTERNAL,5902453440,1000080834,
02.02.2021,CHILDREN AND ADULT,AMR CONSULT LTD,"5,997.50",CAPITAL PS (EDUCATION),CONSTRUCTION FEES  - EXTERNAL,5902453437,1000080834,
02.02.2021,CHILDREN AND ADULT,AMR CONSULT LTD,"6,625.00",CAPITAL PS (EDUCATION),CONSTRUCTION FEES  - EXTERNAL,5902453441,1000080834,
02.02.2021,CHILDREN AND ADULT,AMR CONSULT LTD,"7,235.00",CAPITAL PS (EDUCATION),CONSTRUCTION FEES  - EXTERNAL,5902453438,1000080834,
02.02.2021,CHILDREN AND FAMILIES,FAMILY ACTION,"4,995.54",ADOPTION SUPP FUND,PROFESSIONAL FEES,5902453381,1013739,
02.02.2021,CHILDREN AND FAMILIES,THE SENSORY SMART CHILD LTD,"1,849.90",ADOPTION SUPP FUND,EXTERNAL AGENCIES AND BODIES,5902453383,1000085374,
02.02.2021,CHILDREN AND FAMILIES,REDACTED PERSONAL DATA,720.00,ADOPTION SUPP FUND,PROFESSIONAL FEES,REDACTED,REDACTED,
02.02.2021,CHILDREN AND FAMILIES,PLUS ONE LTD,"29,937.14",CHILDREN�S RESID,RESIDENTIAL CARE,2103210398,1000013874,
02.02.2021,CHILDREN AND FAMILIES,REDACTED PERSONAL DATA,300.00,FE SUPPORT,CLIENT TRANSPORT,REDACTED,REDACTED,
02.02.2021,CHILDREN AND FAMILIES,INTEGRATED SERVICES PROGRAMME,"5,336.34",FRIENDS & FAMILY FOSTERING,EXTERNAL AGENCIES AND BODIES,2103210408,1642068,
02.02.2021,CHILDREN AND FAMILIES,INTEGRATED SERVICES PROGRAMME,"5,336.34",FRIENDS & FAMILY FOSTERING,EXTERNAL AGENCIES AND BODIES,2103210431,1642068,
02.02.2021,CHILDREN AND FAMILIES,INTEGRATED SERVICES PROGRAMME,"5,336.34",FRIENDS & FAMILY FOSTERING,EXTERNAL AGENCIES AND BODIES,2103210445,1642068,
02.02.2021,CHILDREN AND FAMILIES,INTEGRATED SERVICES PROGRAMME,"5,336.34",FRIENDS & FAMILY FOSTERING,EXTERNAL AGENCIES AND BODIES,2103210450,1642068,
02.02.2021,CHILDREN AND FAMILIES,INTEGRATED SERVICES PROGRAMME,"5,460.91",FRIENDS & FAMILY FOSTERING,EXTERNAL AGENCIES AND BODIES,2103210404,1642068,
02.02.2021,CHILDREN AND FAMILIES,INTEGRATED SERVICES PROGRAMME,"5,460.91",FRIENDS & FAMILY FOSTERING,EXTERNAL AGENCIES AND BODIES,2103210405,1642068,
02.02.2021,CHILDREN AND FAMILIES,INTEGRATED SERVICES PROGRAMME,"6,370.50",FRIENDS & FAMILY FOSTERING,EXTERNAL AGENCIES AND BODIES,2103210406,1642068,
02.02.2021,CHILDREN AND FAMILIES,INTEGRATED SERVICES PROGRAMME,"6,370.50",FRIENDS & FAMILY FOSTERING,EXTERNAL AGENCIES AND BODIES,2103210407,1642068,
02.02.2021,CHILDREN AND FAMILIES,INTEGRATED SERVICES PROGRAMME,"6,370.50",FRIENDS & FAMILY FOSTERING,EXTERNAL AGENCIES AND BODIES,2103210433,1642068,
02.02.2021,CHILDREN AND FAMILIES,INTEGRATED SERVICES PROGRAMME,"6,682.98",FRIENDS & FAMILY FOSTERING,EXTERNAL AGENCIES AND BODIES,2103210432,1642068,
02.02.2021,CHILDREN AND FAMILIES,ETHELBERT SPECIALIST HOMES,"3,678.11",FRIENDS & FAMILY FOSTERING,EXTERNAL AGENCIES AND BODIES,2103210423,1796129,
02.02.2021,CHILDREN AND FAMILIES,ETHELBERT SPECIALIST HOMES,"3,678.11",FRIENDS & FAMILY FOSTERING,EXTERNAL AGENCIES AND BODIES,2103210448,1796129,
02.02.2021,CHILDREN AND FAMILIES,ETHELBERT SPECIALIST HOMES,"3,678.11",FRIENDS & FAMILY FOSTERING,EXTERNAL AGENCIES AND BODIES,2103210449,1796129,
02.02.2021,CHILDREN AND FAMILIES,HEATH FARM FAMILY SOLUTION (FOSTERING),"5,176.38",FRIENDS & FAMILY FOSTERING,EXTERNAL AGENCIES AND BODIES,2103210447,11271268,
02.02.2021,CHILDREN AND FAMILIES,THE XCEL 2000 PARTNERSHIP LTD,"4,980.15",FRIENDS & FAMILY FOSTERING,EXTERNAL AGENCIES AND BODIES,2103210428,1000024427,
02.02.2021,CHILDREN AND FAMILIES,KENT HOMEFINDING & FOSTERING LTD,"3,041.10",FRIENDS & FAMILY FOSTERING,EXTERNAL AGENCIES AND BODIES,2103210440,1000033978,
02.02.2021,CHILDREN AND FAMILIES,KENT HOMEFINDING & FOSTERING LTD,"3,529.35",FRIENDS & FAMILY FOSTERING,EXTERNAL AGENCIES AND BODIES,2103210441,1000033978,
02.02.2021,CHILDREN AND FAMILIES,KENT HOMEFINDING & FOSTERING LTD,"3,565.00",FRIENDS & FAMILY FOSTERING,EXTERNAL AGENCIES AND BODIES,2103210442,1000033978,
02.02.2021,CHILDREN AND FAMILIES,FUTURES FOR CHILDREN LIMITED,"3,510.44",FRIENDS & FAMILY FOSTERING,EXTERNAL AGENCIES AND BODIES,2103210443,1000041984,
02.02.2021,CHILDREN AND FAMILIES,FUTURES FOR CHILDREN LIMITED,"6,713.98",FRIENDS & FAMILY FOSTERING,EXTERNAL AGENCIES AND BODIES,2103210444,1000041984,
02.02.2021,CHILDREN AND FAMILIES,CHILDREN OF COLOUR,"3,558.80",FRIENDS & FAMILY FOSTERING,EXTERNAL AGENCIES AND BODIES,2103210400,1000044955,
02.02.2021,CHILDREN AND FAMILIES,CAPSTONE FOSTER CARE (SOUTH EAST) LTD,"6,598.66",FRIENDS & FAMILY FOSTERING,EXTERNAL AGENCIES AND BODIES,2103210438,1000050353,
02.02.2021,CHILDREN AND FAMILIES,DIVERSE CARE (UK) LTD,"4,980.15",FRIENDS & FAMILY FOSTERING,EXTERNAL AGENCIES AND BODIES,2103210427,1000055636,
02.02.2021,CHILDREN AND FAMILIES,COMPASS FOSTERING LONDON LTD,"-2,489.97",FRIENDS & FAMILY FOSTERING,EXTERNAL AGENCIES AND BODIES,2103198162,1000057908,
02.02.2021,CHILDREN AND FAMILIES,COMPASS FOSTERING LONDON LTD,-891.09,FRIENDS & FAMILY FOSTERING,EXTERNAL AGENCIES AND BODIES,2103198172,1000057908,
02.02.2021,CHILDREN AND FAMILIES,COMPASS FOSTERING LONDON LTD,"2,698.86",FRIENDS & FAMILY FOSTERING,EXTERNAL AGENCIES AND BODIES,2103210413,1000057908,
02.02.2021,CHILDREN AND FAMILIES,COMPASS FOSTERING LONDON LTD,"2,698.86",FRIENDS & FAMILY FOSTERING,EXTERNAL AGENCIES AND BODIES,2103210436,1000057908,
02.02.2021,CHILDREN AND FAMILIES,COMPASS FOSTERING LONDON LTD,"2,767.99",FRIENDS & FAMILY FOSTERING,EXTERNAL AGENCIES AND BODIES,2103210421,1000057908,
02.02.2021,CHILDREN AND FAMILIES,COMPASS FOSTERING LONDON LTD,"3,069.31",FRIENDS & FAMILY FOSTERING,EXTERNAL AGENCIES AND BODIES,2103210422,1000057908,
02.02.2021,CHILDREN AND FAMILIES,COMPASS FOSTERING LONDON LTD,"3,675.67",FRIENDS & FAMILY FOSTERING,EXTERNAL AGENCIES AND BODIES,2103210414,1000057908,
02.02.2021,CHILDREN AND FAMILIES,CHILDREN FIRST FOSTERING AGENCY LTD,"3,981.33",FRIENDS & FAMILY FOSTERING,EXTERNAL AGENCIES AND BODIES,2103210437,1000060081,
02.02.2021,CHILDREN AND FAMILIES,FOLLOWING WHISPERS FAMILY SERVICE LTD,"6,864.33",FRIENDS & FAMILY FOSTERING,EXTERNAL AGENCIES AND BODIES,2103210446,1000065611,
02.02.2021,CHILDREN AND FAMILIES,ANCHOR FOSTERCARE,"3,856.71",FRIENDS & FAMILY FOSTERING,EXTERNAL AGENCIES AND BODIES,2103210424,1000065675,
02.02.2021,CHILDREN AND FAMILIES,ANCHOR FOSTERCARE,"3,856.71",FRIENDS & FAMILY FOSTERING,EXTERNAL AGENCIES AND BODIES,2103210430,1000065675,
02.02.2021,CHILDREN AND FAMILIES,ANCHOR FOSTERCARE,"4,286.99",FRIENDS & FAMILY FOSTERING,EXTERNAL AGENCIES AND BODIES,2103210425,1000065675,
02.02.2021,CHILDREN AND FAMILIES,COMPASS FOSTERING SOUTH LTD,"3,308.10",FRIENDS & FAMILY FOSTERING,EXTERNAL AGENCIES AND BODIES,2103210415,1000073772,
02.02.2021,CHILDREN AND FAMILIES,ASCENT FOSTERING AGENCY LTD,"4,632.33",FRIENDS & FAMILY FOSTERING,EXTERNAL AGENCIES AND BODIES,2103210426,1000074714,
02.02.2021,CHILDREN AND FAMILIES,ASCENT FOSTERING AGENCY LTD,"5,867.99",FRIENDS & FAMILY FOSTERING,EXTERNAL AGENCIES AND BODIES,2103210399,1000074714,
02.02.2021,CHILDREN AND FAMILIES,ORANGE GROVE FOSTERCARE LTD,"3,751.62",FRIENDS & FAMILY FOSTERING,EXTERNAL AGENCIES AND BODIES,2103210416,1000078716,
02.02.2021,CHILDREN AND FAMILIES,SELECT FOSTERCARE SERVICES LTD,"3,653.66",FRIENDS & FAMILY FOSTERING,EXTERNAL AGENCIES AND BODIES,2103210403,1000079277,
02.02.2021,CHILDREN AND FAMILIES,HELP ME GROW FOSTERING SERVICES LTD,"2,869.51",FRIENDS & FAMILY FOSTERING,EXTERNAL AGENCIES AND BODIES,2103210409,1000079302,
02.02.2021,CHILDREN AND FAMILIES,HELP ME GROW FOSTERING SERVICES LTD,"2,869.51",FRIENDS & FAMILY FOSTERING,EXTERNAL AGENCIES AND BODIES,2103210410,1000079302,
02.02.2021,CHILDREN AND FAMILIES,HELP ME GROW FOSTERING SERVICES LTD,"3,188.35",FRIENDS & FAMILY FOSTERING,EXTERNAL AGENCIES AND BODIES,2103210411,1000079302,
02.02.2021,CHILDREN AND FAMILIES,HELP ME GROW FOSTERING SERVICES LTD,"3,188.35",FRIENDS & FAMILY FOSTERING,EXTERNAL AGENCIES AND BODIES,2103210418,1000079302,
02.02.2021,CHILDREN AND FAMILIES,HELP ME GROW FOSTERING SERVICES LTD,"3,188.35",FRIENDS & FAMILY FOSTERING,EXTERNAL AGENCIES AND BODIES,2103210420,1000079302,
02.02.2021,CHILDREN AND FAMILIES,HELP ME GROW FOSTERING SERVICES LTD,"4,650.00",FRIENDS & FAMILY FOSTERING,EXTERNAL AGENCIES AND BODIES,2103210417,1000079302,
02.02.2021,CHILDREN AND FAMILIES,HELP ME GROW FOSTERING SERVICES LTD,"5,951.69",FRIENDS & FAMILY FOSTERING,EXTERNAL AGENCIES AND BODIES,2103210419,1000079302,
02.02.2021,CHILDREN AND FAMILIES,CONNECT FOSTERING SERVICES LTD,"5,801.43",FRIENDS & FAMILY FOSTERING,EXTERNAL AGENCIES AND BODIES,2103210402,1000079969,
02.02.2021,CHILDREN AND FAMILIES,COMPASS FOSTERING SOUTH EAST LTD,"4,270.25",FRIENDS & FAMILY FOSTERING,EXTERNAL AGENCIES AND BODIES,2103210435,1000081155,
02.02.2021,CHILDREN AND FAMILIES,COMPASS FOSTERING SOUTH EAST LTD,"5,535.67",FRIENDS & FAMILY FOSTERING,EXTERNAL AGENCIES AND BODIES,2103210434,1000081155,
02.02.2021,CHILDREN AND FAMILIES,FUSION FOSTERING LTD,"3,579.22",FRIENDS & FAMILY FOSTERING,EXTERNAL AGENCIES AND BODIES,2103210429,1000081674,
02.02.2021,CHILDREN AND FAMILIES,REDACTED PERSONAL DATA,841.43,FRIENDS &FAMILY FOST,PAYMENTS TO CARERS,REDACTED,REDACTED,
02.02.2021,CHILDREN AND FAMILIES,CAROL NUDDS,375.00,P & R CARE TEAM,OTHER PAYMENTS FOR CLIENTS,5902453506,1000076989,
02.02.2021,CHILDREN AND FAMILIES,COMPASS FOSTERING LONDON LTD,"2,214.33",STAYPUT- FOST CARERS,EXTERNAL AGENCIES AND BODIES,2103209993,1000057908,
02.02.2021,CHILDREN AND FAMILIES,REDACTED PERSONAL DATA,"1,428.57",STAYPUT- FOST CARERS,PAYMENTS TO CARERS,REDACTED,REDACTED,
02.02.2021,CHILDREN AND FAMILIES,REDACTED PERSONAL DATA,500.00,STAYPUT- FOST CARERS,PAYMENTS TO CARERS,REDACTED,REDACTED,
02.02.2021,COMMUNITIES,LEATHERMARKET JMB HOUSING,"352,140.50",LEATHERMARKET CO-OP,M&M ALLOWANCE CO-OPS,5902453354,11182872,
02.02.2021,COMMUNITIES,BEDE HOUSE ASSOCIATION,"3,500.00",NORTH EAST,GRANTS,5902453507,11265073,
02.02.2021,COMMUNITIES,RFC LIMITED,"3,000.00",TENANT MGT INITITIVES,DISCRETIONARY AWARDS AND FEES,5902453292,1000082451,
02.02.2021,COMMUNITIES,RFC LIMITED,"3,400.00",TENANT MGT INITITIVES,DISCRETIONARY AWARDS AND FEES,5902453289,1000082451,
02.02.2021,COMMUNITIES,BROOK,"36,437.50",YOUNG PEOPLES SERVICE,OTHER CONTRACTORS,5902453287,1000076901,
02.02.2021,CUSTOMER EXPERIENCE,ARGOS BUSINESS SOLUTIONS LTD,463.19,COMPLAINTS,OFFICE EXPENSES,5902453442,1000001734,
02.02.2021,CUSTOMER EXPERIENCE HGF,IMPERIAL COLLEGE PROJECTS LTD,408.00,CORONER'S,PROFESSIONAL FEES,5902423560,1000080106,
02.02.2021,CUSTOMER EXPERIENCE HGF,FINEFAIR LTD,579.00,COVID-19 SUPPORT,EXTERNAL AGENCIES AND BODIES,5902453296,1000075570,
02.02.2021,CUSTOMER EXPERIENCE HGF,FINEFAIR LTD,"27,900.00",COVID-19 SUPPORT,EXTERNAL AGENCIES AND BODIES,5902453279,1000075570,
02.02.2021,CUSTOMER EXPERIENCE HGF,REST UP,"20,090.00",COVID-19 SUPPORT,EXTERNAL AGENCIES AND BODIES,5902453392,1000084299,
02.02.2021,CUSTOMER EXPERIENCE HGF,REST UP,"20,090.00",COVID-19 SUPPORT,EXTERNAL AGENCIES AND BODIES,5902453394,1000084299,
02.02.2021,CUSTOMER EXPERIENCE HGF,REST UP,"20,090.00",COVID-19 SUPPORT,EXTERNAL AGENCIES AND BODIES,5902453395,1000084299,
02.02.2021,CUSTOMER EXPERIENCE HGF,M ESTATES LONDON LTD,950.00,HOMELESS PROJECTS,GRANTS,5902453298,1000083459,
02.02.2021,CUSTOMER EXPERIENCE HGF,OMNIA HOUSING LTD,"2,293.72",HOMELESS PROJECTS,GRANTS,5902453436,1000083861,
02.02.2021,CUSTOMER EXPERIENCE HGF,MARY LAMIDI,"2,117.28",HOMELESS PROJECTS,GRANTS,5902453306,1000086238,
02.02.2021,CUSTOMER EXPERIENCE HGF,ISSA BANGURA,"1,030.20",HOMELESS PROJECTS,GRANTS,5902453432,1000086259,
02.02.2021,CUSTOMER EXPERIENCE HGF,GALAXY LETTINGS LTD,"48,335.10",NIGHTLY TA (NSC),EXTERNAL AGENCIES AND BODIES,5902453332,1000055897,
02.02.2021,CUSTOMER EXPERIENCE HGF,PROPERTYPLACEBOOK LTD,"5,425.00",RAPID REHOUSING,EXTERNAL AGENCIES AND BODIES,5902453301,1000077817,
02.02.2021,DSG,BOWER GROVE SCHOOL,"1,500.00",VIRTUAL SCHOOL PP,SCHOOLS CAPITATION,5902453337,1000080830,
02.02.2021,EDUCATION,ROYAL HOLLOWAY AND BEDFORD NEW COLLEGE (RHBNC),"9,250.00",SCHOLARSHIP SCHEME,EXTERNAL AGENCIES AND BODIES,5902453334,11321639,
02.02.2021,ENVIRONMENT AND LEISURE,ELITE GUARDING (UK) LTD,"41,666.00",COVID-19 CONTAIN OUTBREAK MANAGEMENT FUN,EXTERNAL AGENCIES AND BODIES,5902453466,1000086183,
02.02.2021,ENVIRONMENT AND LEISURE,NPOWER,503.77,SANDGATE STREET,ELECTRICITY,5902453008,1000032342,
02.02.2021,ENVIRONMENT AND LEISURE,NPOWER,827.32,SANDGATE STREET,ELECTRICITY,5902453007,1000032342,
02.02.2021,ENVIRONMENT AND LEISURE,RELIANCE HIGH-TECH LTD,"1,731.95",SERVICE DEVELOPMENT TEAM,OFFICE EXPENSES,5902453445,1000079374,
02.02.2021,ENVIRONMENT DIRECTORATE,BRITISH TELECOMMUNICATIONS PLC,812.13,CCTV,TELEPHONES (LAND LINES),5902453449,11149671,
02.02.2021,ENVIRONMENT DIRECTORATE,BRITISH TELECOMMUNICATIONS PLC,"17,195.74",CCTV,TELEPHONES (LAND LINES),5902453454,11149671,
02.02.2021,ENVIRONMENT DIRECTORATE,RIGHTON & BLACKBURNS LTD,283.67,ENGINEERING CRAFTS,MATERIALS,5902453487,1000041264,
02.02.2021,ENVIRONMENT DIRECTORATE,RIGHTON & BLACKBURNS LTD,384.25,ENGINEERING CRAFTS,MATERIALS,5902453489,1000041264,
02.02.2021,ENVIRONMENT DIRECTORATE,RIGHTON & BLACKBURNS LTD,"1,248.00",ENGINEERING CRAFTS,MATERIALS,5902453490,1000041264,
02.02.2021,ENVIRONMENT DIRECTORATE,CONWAY AECOM LTD,"5,832.24",HIGHWAY MAINTENANCE OVERHEADS,HIGHWAYS TERM CONTRACT,2103210993,3000001595,
02.02.2021,ENVIRONMENT DIRECTORATE,CYCLE CONFIDENT LTD,"16,016.88",NON LCN CYCLE TRAINING,PROFESSIONAL FEES,5902453406,1000070228,
02.02.2021,ENVIRONMENT DIRECTORATE,TYCO INTEGRATED FIRE & SECURITY,"14,637.22",PARKING & CAR PARKS CCTV,PROFESSIONAL FEES,5902453327,1000077948,
02.02.2021,ENVIRONMENT DIRECTORATE,LONDON TOOLS LIMITED,632.00,PUBLIC LIGHTING,MATERIALS,5902453494,1000003017,
02.02.2021,ENVIRONMENT DIRECTORATE,SOUTHWARK NEWSPAPER LTD,324.00,STREET WORKS OVERHEADS,MARKETING & PUBLICITY SERVICES,5902453424,1556957,
02.02.2021,ENVIRONMENT DIRECTORATE,SOUTHWARK NEWSPAPER LTD,360.00,STREET WORKS OVERHEADS,MARKETING & PUBLICITY SERVICES,5902453409,1556957,
02.02.2021,ENVIRONMENT DIRECTORATE,SOUTHWARK NEWSPAPER LTD,360.00,STREET WORKS OVERHEADS,MARKETING & PUBLICITY SERVICES,5902453426,1556957,
02.02.2021,ENVIRONMENT DIRECTORATE,TYCO INTEGRATED FIRE & SECURITY,"13,802.75",TOWN CENTRE CCTV,EQUIPMENT PURCHASE & REPAIR,5902453304,1000077948,
02.02.2021,ENVIRONMENT DIRECTORATE,TYCO INTEGRATED FIRE & SECURITY,"13,802.75",TOWN CENTRE CCTV,EQUIPMENT PURCHASE & REPAIR,5902453321,1000077948,
02.02.2021,ENVIRONMENT DIRECTORATE,CITY OF LONDON CORPORATION,"15,232.31",WASTE DISPOSAL,OTHER CONTRACTORS,5902453401,1000052061,
02.02.2021,F & C S EXCLUDING CORPORATE BUDGETS,TELSOLUTIONS LTD,"1,499.34",ADMINISTRATIVE SUPPORT,TELEPHONES (MOBILES),5902453408,1000074033,
02.02.2021,F & C S EXCLUDING CORPORATE BUDGETS,EDESIX LTD,864.00,ADMINISTRATIVE SUPPORT,SOFTWARE,5902453477,1000080124,
02.02.2021,F & C S EXCLUDING CORPORATE BUDGETS,PROACTIS LTD,"11,200.00",ANTI-FRAUD AND INVESTIGATIONS,SUBSCRIPTIONS,5902453430,1000083745,
02.02.2021,F & C S EXCLUDING CORPORATE BUDGETS,REDACTED PERSONAL DATA,500.00,SESS,OTHER PAYMENTS FOR CLIENTS,REDACTED,REDACTED,
02.02.2021,F & C S EXCLUDING CORPORATE BUDGETS,REDACTED PERSONAL DATA,500.00,SESS,OTHER PAYMENTS FOR CLIENTS,REDACTED,REDACTED,
02.02.2021,F & C S EXCLUDING CORPORATE BUDGETS,REDACTED PERSONAL DATA,500.00,SESS,OTHER PAYMENTS FOR CLIENTS,REDACTED,REDACTED,
02.02.2021,F & C S EXCLUDING CORPORATE BUDGETS,REDACTED PERSONAL DATA,500.00,SESS,OTHER PAYMENTS FOR CLIENTS,REDACTED,REDACTED,
02.02.2021,F & C S EXCLUDING CORPORATE BUDGETS,REDACTED PERSONAL DATA,500.00,SESS,OTHER PAYMENTS FOR CLIENTS,REDACTED,REDACTED,
02.02.2021,F & C S EXCLUDING CORPORATE BUDGETS,REDACTED PERSONAL DATA,500.00,SESS,OTHER PAYMENTS FOR CLIENTS,REDACTED,REDACTED,
02.02.2021,F & C S EXCLUDING CORPORATE BUDGETS,REDACTED PERSONAL DATA,500.00,SESS,OTHER PAYMENTS FOR CLIENTS,REDACTED,REDACTED,
02.02.2021,F & C S EXCLUDING CORPORATE BUDGETS,REDACTED PERSONAL DATA,500.00,SESS,OTHER PAYMENTS FOR CLIENTS,REDACTED,REDACTED,
02.02.2021,F & C S EXCLUDING CORPORATE BUDGETS,REDACTED PERSONAL DATA,500.00,SESS,OTHER PAYMENTS FOR CLIENTS,REDACTED,REDACTED,
02.02.2021,F & C S EXCLUDING CORPORATE BUDGETS,REDACTED PERSONAL DATA,500.00,SESS,OTHER PAYMENTS FOR CLIENTS,REDACTED,REDACTED,
02.02.2021,F & C S EXCLUDING CORPORATE BUDGETS,REDACTED PERSONAL DATA,500.00,SESS,OTHER PAYMENTS FOR CLIENTS,REDACTED,REDACTED,
02.02.2021,F & C S EXCLUDING CORPORATE BUDGETS,REDACTED PERSONAL DATA,500.00,SESS,OTHER PAYMENTS FOR CLIENTS,REDACTED,REDACTED,
02.02.2021,F & C S EXCLUDING CORPORATE BUDGETS,REDACTED PERSONAL DATA,500.00,SESS,OTHER PAYMENTS FOR CLIENTS,REDACTED,REDACTED,
02.02.2021,F & C S EXCLUDING CORPORATE BUDGETS,REDACTED PERSONAL DATA,500.00,SESS,OTHER PAYMENTS FOR CLIENTS,REDACTED,REDACTED,
02.02.2021,F & C S EXCLUDING CORPORATE BUDGETS,REDACTED PERSONAL DATA,500.00,SESS,OTHER PAYMENTS FOR CLIENTS,REDACTED,REDACTED,
02.02.2021,F & C S EXCLUDING CORPORATE BUDGETS,REDACTED PERSONAL DATA,500.00,SESS,OTHER PAYMENTS FOR CLIENTS,REDACTED,REDACTED,
02.02.2021,F & C S EXCLUDING CORPORATE BUDGETS,REDACTED PERSONAL DATA,500.00,SESS,OTHER PAYMENTS FOR CLIENTS,REDACTED,REDACTED,
02.02.2021,HOUSING,OCO LIMITED,"138,474.17",PAYMENTS CONTROL ACCOUNT - OCO,I-WORLD CONTRACTORS HOLDING ACCOUNT,5902453384,1006066,
02.02.2021,HOUSING,SMITH & BYFORD LTD,"113,765.58",SMITH AND BYFORD,I-WORLD CONTRACTORS HOLDING ACCOUNT,5902453385,11212119,
02.02.2021,HOUSING HRA,CALFORD SEADEN LLP,517.85,CAPITAL PS (HRA),CONSTRUCTION FEES  - EXTERNAL,5902453358,1061592,
02.02.2021,HOUSING HRA,CALFORD SEADEN LLP,517.87,CAPITAL PS (HRA),CONSTRUCTION FEES  - EXTERNAL,5902453353,1061592,
02.02.2021,HOUSING HRA,CALFORD SEADEN LLP,"1,307.03",CAPITAL PS (HRA),CONSTRUCTION FEES  - EXTERNAL,5902453350,1061592,
02.02.2021,HOUSING HRA,CALFORD SEADEN LLP,"1,520.02",CAPITAL PS (HRA),CONSTRUCTION FEES  - EXTERNAL,5902453322,1061592,
02.02.2021,HOUSING HRA,CALFORD SEADEN LLP,"1,825.72",CAPITAL PS (HRA),CONSTRUCTION FEES  - EXTERNAL,5902453356,1061592,
02.02.2021,HOUSING HRA,CALFORD SEADEN LLP,"1,862.00",CAPITAL PS (HRA),CONSTRUCTION FEES  - EXTERNAL,5902453357,1061592,
02.02.2021,HOUSING HRA,CALFORD SEADEN LLP,"1,907.09",CAPITAL PS (HRA),CONSTRUCTION FEES  - EXTERNAL,5902453375,1061592,
02.02.2021,HOUSING HRA,CALFORD SEADEN LLP,"2,805.76",CAPITAL PS (HRA),CONSTRUCTION FEES  - EXTERNAL,5902453351,1061592,
02.02.2021,HOUSING HRA,SPOKEMEAD MAINTENANCE LTD,"7,659.00",CAPITAL PS (HRA),CONST'N MAIN CONTRACT - NON CERTIFICATED,2103210994,4002791,
02.02.2021,HOUSING HRA,BIKEAWAY,"7,050.00",CAPITAL PS (HRA),CONSTRUCTION FEES  - EXTERNAL,5902453428,1000036918,
02.02.2021,HOUSING HRA,HAWORTH TOMPKINS LTD,"11,000.00",CAPITAL PS (HRA),CONSTRUCTION MAIN CONTRACT -CERTIFICATED,5902453309,1000043607,
02.02.2021,HOUSING HRA,PARKERS REMOVAL SERVICES,"2,158.33",CAPITAL PS (HRA),CAPITAL GRANTS,5902453343,1000081345,
02.02.2021,HOUSING HRA,ME LANDSCAPE STUDIO LTD,975.00,CAPITAL PS (HRA),CONSTRUCTION FEES  - EXTERNAL,5902453397,1000082256,
02.02.2021,HOUSING HRA,ME LANDSCAPE STUDIO LTD,975.00,CAPITAL PS (HRA),CONSTRUCTION FEES  - EXTERNAL,5902453399,1000082256,
02.02.2021,HOUSING HRA,NICHOLLS COLTON GROUP LTD,"1,450.00",CAPITAL PS (HRA),CONSTRUCTION FEES  - EXTERNAL,5902453421,1000083585,
02.02.2021,HOUSING HRA,AJMADAPTIONS LTD,"5,275.00",CAPITAL PS (HRA),CONST'N MAIN CONTRACT - NON CERTIFICATED,2103210997,3000002056,
02.02.2021,HOUSING HRA,SHERCURITY LTD,"3,360.00",CAPITAL PS (REGEN),CONSTRUCTION SITE COSTS,5902453338,1000067090,
02.02.2021,HOUSING HRA,SHERCURITY LTD,"4,320.00",CAPITAL PS (REGEN),CONSTRUCTION SITE COSTS,5902453333,1000067090,
02.02.2021,HOUSING HRA,WALWORTH HOMES LTD,"236,767.73",CAPITAL PS (REGEN),CONST'N MAIN CONTRACT - NON CERTIFICATED,5902453379,1000079197,
02.02.2021,HOUSING HRA,WALWORTH HOMES LTD,"701,159.38",CAPITAL PS (REGEN),CONST'N MAIN CONTRACT - NON CERTIFICATED,5902453378,1000079197,
02.02.2021,HOUSING HRA,WALWORTH HOMES LTD,"964,723.81",CAPITAL PS (REGEN),CONST'N MAIN CONTRACT - NON CERTIFICATED,5902453380,1000079197,
02.02.2021,HOUSING HRA,WALWORTH HOMES LTD,"7,103.03",CAPITAL PS (REGEN),CONSTRUCTION FEES,5902453379,1000079197,
02.02.2021,HOUSING HRA,WALWORTH HOMES LTD,"53,581.94",CAPITAL PS (REGEN),CONSTRUCTION FEES,5902453378,1000079197,
02.02.2021,HOUSING HRA,WALWORTH HOMES LTD,"86,252.52",CAPITAL PS (REGEN),CONSTRUCTION FEES,5902453380,1000079197,
02.02.2021,LEISURE DIRECTORATE,STANBURY BUILDING SERVICES LTD,695.00,ACCOMMODATION,PROFESSIONAL FEES,5902453400,1000078207,
02.02.2021,LEISURE DIRECTORATE,NPOWER LTD,754.10,BLUE ANCHOR LIBRARY,ELECTRICITY,5902452821,1000078994,
02.02.2021,LEISURE DIRECTORATE,G WORRALLS & SON LTD,409.00,CEMETERIES,OTHER R&M,5902453364,1013481,
02.02.2021,LEISURE DIRECTORATE,SOUTHWARK PENSIONERS CENTRE,833.00,CULTURAL CELEBRATIONS FUND,HIRE OF ROOMS/HALLS,5902453473,1000027831,
02.02.2021,LEISURE DIRECTORATE,NPOWER LTD,288.49,EAST STREET LIBRARY,ELECTRICITY,5902452822,1000078994,
02.02.2021,LEISURE DIRECTORATE,BETHWIN ROAD ADVENTURE PLAYGROUND,"7,740.00",GRANTS COMMISSIONING,GRANTS,5902453468,1087842,
02.02.2021,LEISURE DIRECTORATE,SOMERVILLE YOUTH & PLAY PROVISION,"7,377.50",GRANTS COMMISSIONING,GRANTS,5902453457,1000080341,
02.02.2021,LEISURE DIRECTORATE,SOMERVILLE YOUTH & PLAY PROVISION,"7,377.50",GRANTS COMMISSIONING,GRANTS,5902453459,1000080341,
02.02.2021,LEISURE DIRECTORATE,SOMERVILLE YOUTH & PLAY PROVISION,"7,377.50",GRANTS COMMISSIONING,GRANTS,5902453463,1000080341,
02.02.2021,LEISURE DIRECTORATE,NPOWER LTD,830.45,NUNHEAD LIBRARY,ELECTRICITY,5902452816,1000078994,
02.02.2021,LEISURE DIRECTORATE,FOUNTAINS & FEATURES LTD,460.00,PARKS SERVICES DEVELOPMENT,PROFESSIONAL FEES,5902453405,1000082729,
02.02.2021,LEISURE DIRECTORATE,LONDON FIRE BRIGADE,339.00,PECKHAM LIBRARY,EQUIPMENT PURCHASE & REPAIR,5902453446,1000083629,
02.02.2021,LEISURE DIRECTORATE,LONDON FIRE BRIGADE,339.00,PECKHAM LIBRARY,EQUIPMENT PURCHASE & REPAIR,5902453450,1000083629,
02.02.2021,LEISURE DIRECTORATE,LONDON FIRE BRIGADE,339.00,PECKHAM LIBRARY,EQUIPMENT PURCHASE & REPAIR,5902453451,1000083629,
02.02.2021,LEISURE DIRECTORATE,TECHNICAL SURFACES LTD,375.00,PLAY NORTH,OTHER R&M,2103210992,3000001721,
02.02.2021,LEISURE DIRECTORATE,TECHNICAL SURFACES LTD,460.00,SOUTHWARK AREA TEAM,OTHER R&M,2103210995,3000001721,
02.02.2021,MODERNISATION HGF,ACTIVE MED SUPPLIES LTD,"1,105.00",160 TOOLEY ST.,MEDICAL / HEALTH & SAFETY SERVICES,5902453412,1000086254,
02.02.2021,NEW BUILD,BAILY  GARNER LLP,"7,200.00",DEVELOPMENT DELIVERY,PROFESSIONAL FEES,5902453403,1000663,
02.02.2021,NEW BUILD,BROWNE JACOBSON,"3,781.20",DEVELOPMENT DELIVERY,PAYMENTS FOR LEGAL SERVICES,5902453429,1000081338,
02.02.2021,PLANNING AND TRANSPORT,IDOX SOFWARE LIMITED,"2,700.00",DEVELOPMENT CONTROL ADMINSTRATION,COMPUTER MAINTENANCE,5902453402,1000032110,
02.02.2021,PLANNING AND TRANSPORT,IDOX SOFWARE LIMITED,"4,000.00",DEVELOPMENT CONTROL ADMINSTRATION,COMPUTER MAINTENANCE,5902453402,1000032110,
02.02.2021,PLANNING AND TRANSPORT,IDOX SOFWARE LIMITED,"6,300.00",DEVELOPMENT CONTROL ADMINSTRATION,COMPUTER MAINTENANCE,5902453402,1000032110,
02.02.2021,PLANNING AND TRANSPORT,IDOX SOFWARE LIMITED,"11,400.00",DEVELOPMENT CONTROL ADMINSTRATION,COMPUTER MAINTENANCE,5902453402,1000032110,
02.02.2021,REGENERATION,THIS SOLID GROUND LTD,"2,295.00","COURAGE YARD, SHAD THAMES",MARKETING & PUBLICITY SERVICES,5902453348,1000082494,
02.02.2021,REGENERATION,INITIAL WASHROOM HYGIENE,"1,522.13",TOWER WORKSHOPS,PREMISES CLEANING,5902453325,1644695,
02.02.2021,RESIDENT SERVICES,CALFORD SEADEN LLP,"9,154.00",NORTHCOTT HOUSE,PROFESSIONAL FEES,5902453376,1061592,
02.02.2021,SBS SUPPORT,SIEMENS FINANCIAL SERVICES LIMITED,607.59,R & M OVERHEADS,CATERING MATERIALS & SUPPLIES,5902453495,1000053403,
02.02.2021,SBS SUPPORT,SIEMENS FINANCIAL SERVICES LIMITED,607.59,R & M OVERHEADS,CATERING MATERIALS & SUPPLIES,5902453503,1000053403,
02.02.2021,SBS SUPPORT,SIEMENS FINANCIAL SERVICES LIMITED,"1,740.00",R & M OVERHEADS,CATERING MATERIALS & SUPPLIES,5902453492,1000053403,
02.02.2021,SBS SUPPORT,SIEMENS FINANCIAL SERVICES LIMITED,"1,740.00",R & M OVERHEADS,CATERING MATERIALS & SUPPLIES,5902453498,1000053403,
02.02.2021,SOUTHWARK BUILDING SERVICES,EDWARDES BROS (DULWICH) LTD,288.00,STORES/LOGISTICS,CREDITORS -GR/IR CLEARING ACCOUNT,5902453305,1004945,
02.02.2021,SOUTHWARK BUILDING SERVICES,EDWARDES BROS (DULWICH) LTD,290.00,STORES/LOGISTICS,CREDITORS -GR/IR CLEARING ACCOUNT,5902453310,1004945,
02.02.2021,SOUTHWARK BUILDING SERVICES,EDWARDES BROS (DULWICH) LTD,300.00,STORES/LOGISTICS,CREDITORS -GR/IR CLEARING ACCOUNT,5902453310,1004945,
02.02.2021,SOUTHWARK BUILDING SERVICES,EDWARDES BROS (DULWICH) LTD,306.00,STORES/LOGISTICS,CREDITORS -GR/IR CLEARING ACCOUNT,5902453305,1004945,
02.02.2021,SOUTHWARK BUILDING SERVICES,EDWARDES BROS (DULWICH) LTD,306.00,STORES/LOGISTICS,CREDITORS -GR/IR CLEARING ACCOUNT,5902453305,1004945,
02.02.2021,SOUTHWARK BUILDING SERVICES,EDWARDES BROS (DULWICH) LTD,450.00,STORES/LOGISTICS,CREDITORS -GR/IR CLEARING ACCOUNT,5902453319,1004945,
02.02.2021,SOUTHWARK BUILDING SERVICES,EDWARDES BROS (DULWICH) LTD,480.00,STORES/LOGISTICS,CREDITORS -GR/IR CLEARING ACCOUNT,5902453319,1004945,
02.02.2021,SOUTHWARK BUILDING SERVICES,EDWARDES BROS (DULWICH) LTD,590.00,STORES/LOGISTICS,CREDITORS -GR/IR CLEARING ACCOUNT,5902453312,1004945,
02.02.2021,SOUTHWARK BUILDING SERVICES,EDWARDES BROS (DULWICH) LTD,590.00,STORES/LOGISTICS,CREDITORS -GR/IR CLEARING ACCOUNT,5902453312,1004945,
02.02.2021,SOUTHWARK BUILDING SERVICES,EDWARDES BROS (DULWICH) LTD,802.50,STORES/LOGISTICS,CREDITORS -GR/IR CLEARING ACCOUNT,5902453317,1004945,
02.02.2021,SOUTHWARK BUILDING SERVICES,EDWARDES BROS (DULWICH) LTD,"1,117.50",STORES/LOGISTICS,CREDITORS -GR/IR CLEARING ACCOUNT,5902453319,1004945,
02.02.2021,SOUTHWARK BUILDING SERVICES,EDWARDES BROS (DULWICH) LTD,"1,731.60",STORES/LOGISTICS,CREDITORS -GR/IR CLEARING ACCOUNT,5902453308,1004945,
02.02.2021,SOUTHWARK BUILDING SERVICES,EDWARDES BROS (DULWICH) LTD,"2,047.50",STORES/LOGISTICS,CREDITORS -GR/IR CLEARING ACCOUNT,5902453316,1004945,
02.02.2021,SOUTHWARK BUILDING SERVICES,EDWARDES BROS (DULWICH) LTD,"2,308.80",STORES/LOGISTICS,CREDITORS -GR/IR CLEARING ACCOUNT,5902453313,1004945,
02.02.2021,SOUTHWARK BUILDING SERVICES,AGENTIS WORKWEAR LTD,"1,045.00",STORES/LOGISTICS,CREDITORS -GR/IR CLEARING ACCOUNT,5902453302,1000065833,
02.02.2021,STRATEGIC FINANCING BUDGETS,THE BANK OF NEW YORK MELLON,886.43,CASH MANAGERS' COSTS,PROFESSIONAL FEES,5902453347,1000072540,
02.02.2021,STRATEGIC FINANCING BUDGETS,THE BANK OF NEW YORK MELLON,924.98,CASH MANAGERS' COSTS,PROFESSIONAL FEES,5902453341,1000072540,
03.02.2021,ADULT SOCIAL CARE,STRADA CARE LTD,560.00,APPOINTEESHIPS,OTHER PAYMENTS FOR CLIENTS,2103209650,1000082133,
03.02.2021,ADULT SOCIAL CARE,MEDACS HOMECARE,519.00,LD LTS 18-64,HOMECARE - C&V,2103211528,11287415,
03.02.2021,ADULT SOCIAL CARE,MEDACS HOMECARE,739.20,LD LTS 18-64,HOMECARE - C&V,2103211527,11287415,
03.02.2021,ADULT SOCIAL CARE,MEDACS HOMECARE,740.16,LD LTS 18-64,SUPPORTED LIVING,2103211525,11287415,
03.02.2021,ADULT SOCIAL CARE,SURREY DOCKS FARM PROVIDENT SOCIETY,480.00,LD LTS 18-64,DAYCARE,2103211529,1000000958,
03.02.2021,ADULT SOCIAL CARE,SURREY DOCKS FARM PROVIDENT SOCIETY,487.50,LD LTS 18-64,DAYCARE,2103211531,1000000958,
03.02.2021,ADULT SOCIAL CARE,SURREY DOCKS FARM PROVIDENT SOCIETY,720.00,LD LTS 18-64,DAYCARE,2103211532,1000000958,
03.02.2021,ADULT SOCIAL CARE,AGE UK LEWISHAM & SOUTHWARK,"10,000.00",LOCAL COMMUNITY OFFER,EXTERNAL AGENCIES AND BODIES,5902453744,1507154,
03.02.2021,ADULT SOCIAL CARE,MARTIN VITERA LTD,260.55,ORIENT ST � RESPITE,PREMISES CLEANING,5902453665,1560597,
03.02.2021,ADULT SOCIAL CARE,SAGECARE LTD,"1,253.00",PHY LTS 65+,HOMECARE - C&V,2103211523,1000080924,
03.02.2021,ADULT SOCIAL CARE,STEPHEN DOWN,825.00,SAFEGUARDING & DOLS,EXTERNAL AGENCIES AND BODIES,5902453073,1000075102,
03.02.2021,ADULT SOCIAL CARE,STEPHEN DOWN,825.00,SAFEGUARDING & DOLS,EXTERNAL AGENCIES AND BODIES,5902453074,1000075102,
03.02.2021,ADULT SOCIAL CARE,CAMBRIDGE HOUSE & TALBOT,"4,586.75",SHORT BREAKS,EXTERNAL AGENCIES AND BODIES,5902453690,1139414,
03.02.2021,ADULT SOCIAL CARE,CAMBRIDGE HOUSE & TALBOT,"4,586.75",SHORT BREAKS,EXTERNAL AGENCIES AND BODIES,5902453696,1139414,
03.02.2021,ADULT SOCIAL CARE,SURREY DOCKS FARM PROVIDENT SOCIETY,500.00,SOCIAL ISOLATION,DAYCARE,2103211533,1000000958,
03.02.2021,CHIEF EXECUTIVE,APPLEYARD & TREW,"1,560.00",CAPITAL PS (REGEN),CONSTRUCTION FEES,5902453623,1000029065,
03.02.2021,CHIEF EXECUTIVE,APPLEYARD & TREW,"1,560.00",CAPITAL PS (REGEN),CONSTRUCTION FEES,5902453625,1000029065,
03.02.2021,CHIEF EXECUTIVE'S OFFICE,SOUTH LONDON  MAUDSLEY NHS FOUNDATION TRUST,"30,625.96",CHIEF EXECUTIVE'S OFFICE,EXTERNAL AGENCIES AND BODIES,5902453794,1000018045,
03.02.2021,CHILDREN AND ADULT,SHARPE PRITCHARD LLP,288.00,CAPITAL PS (EDUCATION),CONSTRUCTION FEES - LEGAL,5902453759,1790085,
03.02.2021,CHILDREN AND ADULT,FAITHFUL & GOULD,"45,395.17",CAPITAL PS (EDUCATION),CONSTRUCTION FEES,5902453631,1000061390,
03.02.2021,CHILDREN AND ADULT,MARC S BERKERMAN,"1,894.39",MENTAL HEALTH PREMISES COSTS,LEGAL & COURT FEES,6101968713,INTERNATIONAL PAYMENT,
03.02.2021,CHILDREN AND FAMILIES,MAXIMUM POTENTIAL,"1,292.00",ADOPTION SUPP FUND,EXTERNAL AGENCIES AND BODIES,5902453680,1000080313,
03.02.2021,CHILDREN AND FAMILIES,REDACTED PERSONAL DATA,380.00,ADOPTION SUPP FUND,PROFESSIONAL FEES,REDACTED,REDACTED,
03.02.2021,CHILDREN AND FAMILIES,REDACTED PERSONAL DATA,380.00,ADOPTION SUPP FUND,PROFESSIONAL FEES,REDACTED,REDACTED,
03.02.2021,CHILDREN AND FAMILIES,REDACTED PERSONAL DATA,490.00,ADOPTION SUPP FUND,PROFESSIONAL FEES,REDACTED,REDACTED,
03.02.2021,CHILDREN AND FAMILIES,REDACTED PERSONAL DATA,270.00,ADOPTION SUPP FUND,PROFESSIONAL FEES,REDACTED,REDACTED,
03.02.2021,CHILDREN AND FAMILIES,REDACTED PERSONAL DATA,450.00,ADOPTION SUPP FUND,PROFESSIONAL FEES,REDACTED,REDACTED,
03.02.2021,CHILDREN AND FAMILIES,REDACTED PERSONAL DATA,"2,355.00",ADOPTION SUPP FUND,PROFESSIONAL FEES,REDACTED,REDACTED,
03.02.2021,CHILDREN AND FAMILIES,NEGOTIATORS LTD,705.00,CONTACT SERVICE,OTHER PAYMENTS FOR CLIENTS,5902453707,1000075672,
03.02.2021,CHILDREN AND FAMILIES,NEGOTIATORS LTD,"1,500.00",CONTACT SERVICE,OTHER PAYMENTS FOR CLIENTS,5902453709,1000075672,
03.02.2021,CHILDREN AND FAMILIES,PURPLE PEBBLES(CHILD CARE) SERVICES,"1,882.14",EDGE OF CARE DECIS�S,OTHER PAYMENTS FOR CLIENTS,2103211522,1000070705,
03.02.2021,CHILDREN AND FAMILIES,OPTIMUM FOCUS COMPANY LTD,658.67,FAMILY GROUP CONF�S,PROFESSIONAL FEES,5902453677,1000081322,
03.02.2021,CHILDREN AND FAMILIES,OPTIMUM FOCUS COMPANY LTD,905.67,FAMILY GROUP CONF�S,PROFESSIONAL FEES,5902453675,1000081322,
03.02.2021,CHILDREN AND FAMILIES,OPTIMUM FOCUS COMPANY LTD,"1,371.50",FAMILY GROUP CONF�S,PROFESSIONAL FEES,5902453676,1000081322,
03.02.2021,CHILDREN AND FAMILIES,HERA SOCIAL CARE LTD,309.83,FAMILY GROUP CONF�S,PROFESSIONAL FEES,5902453698,1000084935,
03.02.2021,CHILDREN AND FAMILIES,HOLLY ROBERTSON,320.00,P & R CARE TEAM,OTHER PAYMENTS FOR CLIENTS,5902453736,1000085982,
03.02.2021,CHILDREN AND FAMILIES,MTHOKO SAMPSON,350.00,PRACTICE EDUCATION,RELOCATION,5902452883,1000086233,
03.02.2021,CHILDREN AND FAMILIES,REDACTED PERSONAL DATA,388.04,SPECIAL GUARDIANSHIP,PAYMENTS TO CARERS,REDACTED,REDACTED,
03.02.2021,CHILDREN AND FAMILIES,REDACTED PERSONAL DATA,342.45,SPECIAL GUARDIANSHIP,PAYMENTS TO CARERS,REDACTED,REDACTED,
03.02.2021,CHILDREN AND FAMILIES,REDACTED PERSONAL DATA,389.34,SPECIAL GUARDIANSHIP,PAYMENTS TO CARERS,REDACTED,REDACTED,
03.02.2021,CHILDREN AND FAMILIES,REDACTED PERSONAL DATA,356.15,SPECIAL GUARDIANSHIP,PAYMENTS TO CARERS,REDACTED,REDACTED,
03.02.2021,CHILDREN AND FAMILIES,REDACTED PERSONAL DATA,403.04,SPECIAL GUARDIANSHIP,PAYMENTS TO CARERS,REDACTED,REDACTED,
03.02.2021,CHILDREN AND FAMILIES,REDACTED PERSONAL DATA,343.05,SPECIAL GUARDIANSHIP,PAYMENTS TO CARERS,REDACTED,REDACTED,
03.02.2021,CHILDREN AND FAMILIES,REDACTED PERSONAL DATA,525.00,SPECIAL GUARDIANSHIP,PAYMENTS TO CARERS,REDACTED,REDACTED,
03.02.2021,CHILDREN AND FAMILIES,REDACTED PERSONAL DATA,525.00,SPECIAL GUARDIANSHIP,PAYMENTS TO CARERS,REDACTED,REDACTED,
03.02.2021,CHILDREN AND FAMILIES,REDACTED PERSONAL DATA,395.00,SPECIAL GUARDIANSHIP,PAYMENTS TO CARERS,REDACTED,REDACTED,
03.02.2021,CHILDREN AND FAMILIES,REDACTED PERSONAL DATA,341.15,SPECIAL GUARDIANSHIP,PAYMENTS TO CARERS,REDACTED,REDACTED,
03.02.2021,CHILDREN AND FAMILIES,REDACTED PERSONAL DATA,535.62,SPECIAL GUARDIANSHIP,PAYMENTS TO CARERS,REDACTED,REDACTED,
03.02.2021,CHILDREN AND FAMILIES,BE BRIGHT PROJECT LTD,"1,271.08",TEAM A,EXTERNAL AGENCIES AND BODIES,5902453792,1000086212,
03.02.2021,CHILDREN AND FAMILIES,TREVI HOUSE LTD,874.29,TEAM B,RESIDENTIAL CARE,5902453787,1000056841,
03.02.2021,CHILDREN AND FAMILIES,TREVI HOUSE LTD,"2,720.00",TEAM B,RESIDENTIAL CARE,5902453791,1000056841,
03.02.2021,CHILDREN AND FAMILIES,TREVI HOUSE LTD,"2,914.26",TEAM B,RESIDENTIAL CARE,5902453788,1000056841,
03.02.2021,CHILDREN AND FAMILIES,TREVI HOUSE LTD,"2,914.29",TEAM B,RESIDENTIAL CARE,5902453790,1000056841,
03.02.2021,CHILDREN AND FAMILIES,TREVI HOUSE LTD,"3,011.43",TEAM B,RESIDENTIAL CARE,5902453789,1000056841,
03.02.2021,COMMUNITIES,METROPOLITAN SUPPORT TRUST,-714.31,NO RECOURSE TO PUBLIC FUNDS,ACCOMMODATION CHARGES,5902453618,1000047547,
03.02.2021,COMMUNITIES,METROPOLITAN SUPPORT TRUST,955.20,NO RECOURSE TO PUBLIC FUNDS,ACCOMMODATION CHARGES,5902453605,1000047547,
03.02.2021,COMMUNITIES,ST GEORGES HEALTHCARE LTD,474.00,PHARMACY SM (INSTEAD OF ADULT SM S75),OTHER CONTRACTORS,2103211542,1000072195,
03.02.2021,COMMUNITIES,FLEXIHEALTH LTD,345.00,PHARMACY SM (INSTEAD OF ADULT SM S75),OTHER CONTRACTORS,2103211543,1000072668,
03.02.2021,COMMUNITIES,DAY LEWIS - CAMBERWELL,794.00,PHARMACY SM (INSTEAD OF ADULT SM S75),OTHER CONTRACTORS,2103211539,1000072891,
03.02.2021,COMMUNITIES,QRYSTAL LTD,501.00,PHARMACY SM (INSTEAD OF ADULT SM S75),OTHER CONTRACTORS,2103211545,1000072892,
03.02.2021,COMMUNITIES,ROCKELLS PLACE T&RA,"1,300.00",RESIDENTS PARTICIPATION FUND,GRANTS,5902453754,1000083369,
03.02.2021,CUSTOMER EXPERIENCE HGF,ACCESS INDEPENDENT LTD,546.00,BLUE BADGES,PROFESSIONAL FEES,5902453521,1000059141,
03.02.2021,CUSTOMER EXPERIENCE HGF,ACCESS INDEPENDENT LTD,"1,554.00",BLUE BADGES,PROFESSIONAL FEES,5902453527,1000059141,
03.02.2021,CUSTOMER EXPERIENCE HGF,ACCESS INDEPENDENT LTD,"1,695.25",BLUE BADGES,PROFESSIONAL FEES,5902453523,1000059141,
03.02.2021,CUSTOMER EXPERIENCE HGF,ACCESS INDEPENDENT LTD,"2,047.25",BLUE BADGES,PROFESSIONAL FEES,5902453518,1000059141,
03.02.2021,CUSTOMER EXPERIENCE HGF,CIVICA UK LTD,"1,165.00",CORONER'S,PROFESSIONAL FEES,5902453769,1730625,
03.02.2021,CUSTOMER EXPERIENCE HGF,CIVICA UK LTD,"1,225.00",CORONER'S,PROFESSIONAL FEES,5902453758,1730625,
03.02.2021,CUSTOMER EXPERIENCE HGF,SG PATH LTD,415.80,CORONER'S,PROFESSIONAL FEES,5902453562,1000077883,
03.02.2021,CUSTOMER EXPERIENCE HGF,SG PATH LTD,415.80,CORONER'S,PROFESSIONAL FEES,5902453565,1000077883,
03.02.2021,CUSTOMER EXPERIENCE HGF,SG PATH LTD,415.80,CORONER'S,PROFESSIONAL FEES,5902453573,1000077883,
03.02.2021,CUSTOMER EXPERIENCE HGF,SG PATH LTD,415.80,CORONER'S,PROFESSIONAL FEES,5902453577,1000077883,
03.02.2021,CUSTOMER EXPERIENCE HGF,NRC PATHOLOGY SERVICES LIMITED,600.00,CORONER'S,PROFESSIONAL FEES,5902453616,1000085798,
03.02.2021,CUSTOMER EXPERIENCE HGF,LONDON COUNCILS,"220,045.00",FREEDOM PASS,CONCESSIONARY FARES,5902453662,11237079,
03.02.2021,CUSTOMER EXPERIENCE HGF,TRANSPORT TRADING LTD,"2,911,152.00",FREEDOM PASS,CONCESSIONARY FARES,5902453663,1000019757,
03.02.2021,CUSTOMER EXPERIENCE HGF,1ST CHOICE ESTATES LTD,"3,353.00",HOMELESS PROJECTS,GRANTS,5902453066,1000055056,
03.02.2021,CUSTOMER EXPERIENCE HGF,K3 PROPERTY MANAGEMENT LTD,"19,067.00",NIGHTLY TA (NSC),EXTERNAL AGENCIES AND BODIES,5902453708,1000068219,
03.02.2021,DSG,APT CLOTHING COMPANY,675.00,ADMISSIONS,SUBSCRIPTIONS,5902453650,1000076018,
03.02.2021,DSG,THE COMPLETE WORKS INDEPENDENT SCHOOL,"7,175.00",LAC EDUCATION,EXTERNAL AGENCIES AND BODIES,5902453786,1000033256,
03.02.2021,EDUCATION,STEPPING STONES,"1,500.00",ALC COMMUNITY LEARNING,GRANTS,5902453668,1000051807,
03.02.2021,EDUCATION,LONDON GRID FOR LEARNING TRUST,"19,888.70",PRIMARY ACHIEVEMENT,COMPUTER CONSUMABLES,5902453407,1000066669,
03.02.2021,EDUCATION,SCHOOL OF ORIENTAL & AFRICAN STUDIES,"9,250.00",SCHOLARSHIP SCHEME,EXTERNAL AGENCIES AND BODIES,5902453683,1000036956,
03.02.2021,ENVIRONMENT AND LEISURE,BUILDING SOFTWARE LTD,"10,450.00",CAPITAL PS (LEISURE),CONSTR'N SUB CONTRACT - NON CERTIFICATED,5902453784,1000030337,
03.02.2021,ENVIRONMENT AND LEISURE,FRIENDS OF NUNHEAD CEMETERY,"1,000.00",CAPITAL PS (LEISURE),CAPITAL GRANTS,5902453009,1000067326,
03.02.2021,ENVIRONMENT AND LEISURE,GROUND CONTROL LIMITED,"6,429.65",CAPITAL PS (LEISURE),CONSTRUCTION MAIN CONTRACT,2103211568,3000001551,
03.02.2021,ENVIRONMENT AND LEISURE,ANN BERNADT NURSERY SCHOOL,"4,500.00",CAPITAL PS (LEISURE),CAPITAL GRANTS,5902453785,5001000085,
03.02.2021,ENVIRONMENT DIRECTORATE,I.S & G STEEL STOCKHOLDER LTD,257.40,ENGINEERING CRAFTS,MATERIALS,5902453714,1028293,
03.02.2021,ENVIRONMENT DIRECTORATE,I.S & G STEEL STOCKHOLDER LTD,270.00,ENGINEERING CRAFTS,MATERIALS,5902453714,1028293,
03.02.2021,ENVIRONMENT DIRECTORATE,F H BRUNDLE,331.20,ENGINEERING CRAFTS,MATERIALS,5902453718,1082714,
03.02.2021,ENVIRONMENT DIRECTORATE,LONDON TOOLS LIMITED,271.60,ENGINEERING CRAFTS,MATERIALS,5902453660,1000003017,
03.02.2021,ENVIRONMENT DIRECTORATE,LONDON TOOLS LIMITED,327.00,ENGINEERING CRAFTS,MATERIALS,5902453581,1000003017,
03.02.2021,ENVIRONMENT DIRECTORATE,LONDON TOOLS LIMITED,350.00,ENGINEERING CRAFTS,MATERIALS,5902453519,1000003017,
03.02.2021,ENVIRONMENT DIRECTORATE,LONDON TOOLS LIMITED,450.00,ENGINEERING CRAFTS,MATERIALS,5902453533,1000003017,
03.02.2021,ENVIRONMENT DIRECTORATE,LONDON TOOLS LIMITED,"1,275.00",ENGINEERING CRAFTS,MATERIALS,5902453516,1000003017,
03.02.2021,ENVIRONMENT DIRECTORATE,LONDON TOOLS LIMITED,"1,400.00",ENGINEERING CRAFTS,MATERIALS,5902453525,1000003017,
03.02.2021,ENVIRONMENT DIRECTORATE,LONDON TOOLS LIMITED,"2,198.80",ENGINEERING CRAFTS,MATERIALS,5902453536,1000003017,
03.02.2021,ENVIRONMENT DIRECTORATE,LONDON TOOLS LIMITED,"4,005.00",ENGINEERING CRAFTS,MATERIALS,5902453532,1000003017,
03.02.2021,ENVIRONMENT DIRECTORATE,SIGNSCAPE SYSTEMS LTD,"2,311.30",ENGINEERING CRAFTS,MATERIALS,5902453743,1000052408,
03.02.2021,ENVIRONMENT DIRECTORATE,PURPOSE POWDER COATINGS LTD,510.00,ENGINEERING CRAFTS,MATERIALS,5902453777,1000059450,
03.02.2021,ENVIRONMENT DIRECTORATE,AUTO SISTANCE LTD,290.00,ENGINEERING CRAFTS,MATERIALS,5902453756,1000070536,
03.02.2021,ENVIRONMENT DIRECTORATE,AUTO SISTANCE LTD,348.00,ENGINEERING CRAFTS,MATERIALS,5902453760,1000070536,
03.02.2021,ENVIRONMENT DIRECTORATE,AUTO SISTANCE LTD,986.00,ENGINEERING CRAFTS,MATERIALS,5902453752,1000070536,
03.02.2021,ENVIRONMENT DIRECTORATE,AUTO SISTANCE LTD,"1,044.00",ENGINEERING CRAFTS,MATERIALS,5902453753,1000070536,
03.02.2021,ENVIRONMENT DIRECTORATE,AUTO SISTANCE LTD,"1,508.00",ENGINEERING CRAFTS,MATERIALS,5902453755,1000070536,
03.02.2021,ENVIRONMENT DIRECTORATE,AUTO SISTANCE LTD,"1,798.00",ENGINEERING CRAFTS,MATERIALS,5902453761,1000070536,
03.02.2021,ENVIRONMENT DIRECTORATE,SPALDINGS (UK) LTD,"1,640.00",GROUNDS MAINTENANCE - GENERAL,MATERIALS,5902453643,1907384,
03.02.2021,ENVIRONMENT DIRECTORATE,LANDSCAPE SUPPLY COMPANY,944.65,GROUNDS MAINTENANCE - GENERAL,EQUIPMENT PURCHASE & REPAIR,5902453779,1000051937,
03.02.2021,ENVIRONMENT DIRECTORATE,LONDON TOOLS LIMITED,"1,470.00",PUBLIC LIGHTING,OP LEASE/HIRE CHARGES:PLANT/EQUIP/FURNIT,5902453513,1000003017,
03.02.2021,ENVIRONMENT DIRECTORATE,ASD LIGHTING PLC,350.00,PUBLIC LIGHTING,MATERIALS,5902453774,1000079671,
03.02.2021,ENVIRONMENT DIRECTORATE,TOFCO CPP LTD,"1,230.00",PUBLIC LIGHTING,MATERIALS,5902453772,1000084062,
03.02.2021,ENVIRONMENT DIRECTORATE,TOFCO CPP LTD,"1,945.50",PUBLIC LIGHTING,MATERIALS,5902453772,1000084062,
03.02.2021,ENVIRONMENT DIRECTORATE,TOFCO CPP LTD,"2,412.50",PUBLIC LIGHTING,MATERIALS,5902453771,1000084062,
03.02.2021,ENVIRONMENT DIRECTORATE,TOFCO CPP LTD,"3,120.40",PUBLIC LIGHTING,MATERIALS,5902453772,1000084062,
03.02.2021,ENVIRONMENT DIRECTORATE,ALL PRINT SUPPLIES LTD,296.00,SIGN SHOP,MATERIALS,5902453724,1927973,
03.02.2021,ENVIRONMENT DIRECTORATE,ALL PRINT SUPPLIES LTD,592.00,SIGN SHOP,MATERIALS,5902453723,1927973,
03.02.2021,ENVIRONMENT DIRECTORATE,LONDON TOOLS LIMITED,290.00,SIGN SHOP,MATERIALS,5902453584,1000003017,
03.02.2021,ENVIRONMENT DIRECTORATE,LONDON TOOLS LIMITED,360.00,SIGN SHOP,MATERIALS,5902453579,1000003017,
03.02.2021,ENVIRONMENT DIRECTORATE,VEOLIA ES SOUTHWARK LTD,"2,061,256.64",WASTE PFI,PFI/PPP PAYMENTS,5902453539,1000056979,
03.02.2021,F & C S EXCLUDING CORPORATE BUDGETS,INFINITY NETWORKS LTD,"2,258.00",LEGAL SVCES MANAGEMENT,COMMS & COMPUTING CONTRACT CHARGES,5902453731,1000035571,
03.02.2021,F & C S EXCLUDING CORPORATE BUDGETS,REDACTED PERSONAL DATA,500.00,SESS,OTHER PAYMENTS FOR CLIENTS,REDACTED,REDACTED,
03.02.2021,F & C S EXCLUDING CORPORATE BUDGETS,REDACTED PERSONAL DATA,500.00,SESS,OTHER PAYMENTS FOR CLIENTS,REDACTED,REDACTED,
03.02.2021,F & C S EXCLUDING CORPORATE BUDGETS,REDACTED PERSONAL DATA,500.00,SESS,OTHER PAYMENTS FOR CLIENTS,REDACTED,REDACTED,
03.02.2021,F & C S EXCLUDING CORPORATE BUDGETS,REDACTED PERSONAL DATA,500.00,SESS,OTHER PAYMENTS FOR CLIENTS,REDACTED,REDACTED,
03.02.2021,F & C S EXCLUDING CORPORATE BUDGETS,REDACTED PERSONAL DATA,500.00,SESS,OTHER PAYMENTS FOR CLIENTS,REDACTED,REDACTED,
03.02.2021,F & C S EXCLUDING CORPORATE BUDGETS,REDACTED PERSONAL DATA,500.00,SESS,OTHER PAYMENTS FOR CLIENTS,REDACTED,REDACTED,
03.02.2021,F & C S EXCLUDING CORPORATE BUDGETS,REDACTED PERSONAL DATA,500.00,SESS,OTHER PAYMENTS FOR CLIENTS,REDACTED,REDACTED,
03.02.2021,F & C S EXCLUDING CORPORATE BUDGETS,REDACTED PERSONAL DATA,500.00,SESS,OTHER PAYMENTS FOR CLIENTS,REDACTED,REDACTED,
03.02.2021,F & C S EXCLUDING CORPORATE BUDGETS,REDACTED PERSONAL DATA,500.00,SESS,OTHER PAYMENTS FOR CLIENTS,REDACTED,REDACTED,
03.02.2021,F & C S EXCLUDING CORPORATE BUDGETS,REDACTED PERSONAL DATA,500.00,SESS,OTHER PAYMENTS FOR CLIENTS,REDACTED,REDACTED,
03.02.2021,F & C S EXCLUDING CORPORATE BUDGETS,REDACTED PERSONAL DATA,500.00,SESS,OTHER PAYMENTS FOR CLIENTS,REDACTED,REDACTED,
03.02.2021,F & C S EXCLUDING CORPORATE BUDGETS,REDACTED PERSONAL DATA,500.00,SESS,OTHER PAYMENTS FOR CLIENTS,REDACTED,REDACTED,
03.02.2021,F & C S EXCLUDING CORPORATE BUDGETS,REDACTED PERSONAL DATA,500.00,SESS,OTHER PAYMENTS FOR CLIENTS,REDACTED,REDACTED,
03.02.2021,F & C S EXCLUDING CORPORATE BUDGETS,REDACTED PERSONAL DATA,500.00,SESS,OTHER PAYMENTS FOR CLIENTS,REDACTED,REDACTED,
03.02.2021,HOUSING HRA,SHARPE PRITCHARD LLP,278.00,CAPITAL PS (REGEN),CONSTRUCTION FEES - LEGAL,5902453700,1790085,
03.02.2021,HOUSING HRA,SHARPE PRITCHARD LLP,526.00,CAPITAL PS (REGEN),CONSTRUCTION FEES - LEGAL,5902453700,1790085,
03.02.2021,HOUSING HRA,SHARPE PRITCHARD LLP,950.00,CAPITAL PS (REGEN),CONSTRUCTION FEES - LEGAL,5902453700,1790085,
03.02.2021,HUMAN RESOURCES,TMP (UK) LIMITED,385.00,ADVERTISING,RECRUITMENT ADVERTISING,5902453749,1000041810,
03.02.2021,HUMAN RESOURCES,TMP (UK) LIMITED,569.00,ADVERTISING,RECRUITMENT ADVERTISING,5902453715,1000041810,
03.02.2021,HUMAN RESOURCES,TMP (UK) LIMITED,569.00,ADVERTISING,RECRUITMENT ADVERTISING,5902453762,1000041810,
03.02.2021,HUMAN RESOURCES,TMP (UK) LIMITED,"1,794.30",ADVERTISING,RECRUITMENT ADVERTISING,5902453742,1000041810,
03.02.2021,HUMAN RESOURCES,TMP (UK) LIMITED,"2,975.22",ADVERTISING,RECRUITMENT ADVERTISING,5902453739,1000041810,
03.02.2021,HUMAN RESOURCES,TMP (UK) LIMITED,"5,500.00",ADVERTISING,RECRUITMENT ADVERTISING,5902453729,1000041810,
03.02.2021,HUMAN RESOURCES,JOHN STATTERS ASSOCIATES,"2,660.00",OCCUPATIONAL ASSESSMENT,CONSULTANTS SERVICES,5902453766,1000065600,
03.02.2021,LEISURE DIRECTORATE,QUADRON SERVICES LIMITED,526.56,CLIENT SERV(GRNS MAIN),OTHER CONTRACTORS,5902453716,1000066528,
03.02.2021,LEISURE DIRECTORATE,RH WROUGHT IRON,"2,395.00",DULWICH AREA TEAM,OTHER R&M,2103211569,3000000680,
03.02.2021,LEISURE DIRECTORATE,SKYWAY,"6,742.25",GRANTS COMMISSIONING,GRANTS,5902453597,1000069595,
03.02.2021,LEISURE DIRECTORATE,SKYWAY,"6,742.25",GRANTS COMMISSIONING,GRANTS,5902453606,1000069595,
03.02.2021,LEISURE DIRECTORATE,REGENT OFFICE CARE LTD,"3,433.27",SDM BUDGET,PREMISES CLEANING,5902453670,1000063340,
03.02.2021,MODERNISATION HGF,SAP (UK) LTD,409.48,APPLICATIONS,SOFTWARE,5902453640,1000002550,
03.02.2021,MODERNISATION HGF,SAP (UK) LTD,"6,141.00",APPLICATIONS,SOFTWARE,5902453639,1000002550,
03.02.2021,MODERNISATION HGF,INTERSERVE (FACILITIES MANAGEMENT),"54,117.60",FM SERVICES BY INTERSERVE,SECURITY SERVICES,5902453727,1000070792,
03.02.2021,RESIDENT SERVICES,UNIFIED CONSULTANCY LTD,"2,801.00",CENTRAL AREA RUNNING COSTS,OFFICE EXPENSES,5902453740,1000081827,
03.02.2021,RESIDENT SERVICES,LONDON TOOLS LIMITED,310.00,TA HOSTELS,MATERIALS,5902453528,1000003017,
03.02.2021,RESIDENT SERVICES,LONDON TOOLS LIMITED,699.50,TA HOSTELS,MATERIALS,5902453546,1000003017,
03.02.2021,RESIDENT SERVICES,SOUTH OF THE RIVER INVESTMENTS LTD,"4,991.00",TA PLACEMENTS,EXTERNAL AGENCIES AND BODIES,5902453547,1000073638,
03.02.2021,RESIDENT SERVICES,TAAKSVALE HOUSING LTD,"8,301.50",TA PLACEMENTS,EXTERNAL AGENCIES AND BODIES,5902453765,1000073665,
03.02.2021,SBS OPERATIONS,LONDON TOOLS LIMITED,279.60,SBS IN-HOUR EMERGENCIES,MATERIALS,5902453624,1000003017,
03.02.2021,SBS SUPPORT,LONDON TOOLS LIMITED,"1,035.00",DEPOT COSTS,MATERIALS,5902453619,1000003017,
03.02.2021,SBS SUPPORT,SMITHY DECORATING,"2,617.93",SBS - HOLDING ACCOUNT,OTHER CONTRACTORS,2103211570,3000002050,
03.02.2021,SBS SUPPORT,LONDON TOOLS LIMITED,390.00,STORES / LOGISTICS,EQUIPMENT PURCHASE & REPAIR,5902453602,1000003017,
03.02.2021,SBS SUPPORT,LONDON TOOLS LIMITED,575.00,STORES / LOGISTICS,EQUIPMENT PURCHASE & REPAIR,5902453602,1000003017,
03.02.2021,SBS SUPPORT,LONDON TOOLS LIMITED,"1,380.00",STORES / LOGISTICS,MATERIALS,5902453620,1000003017,
03.02.2021,SOUTHWARK BUILDING SERVICES,LONDON TOOLS LIMITED,282.00,STORES/LOGISTICS,CREDITORS -GR/IR CLEARING ACCOUNT,5902453572,1000003017,
03.02.2021,SOUTHWARK BUILDING SERVICES,LONDON TOOLS LIMITED,297.00,STORES/LOGISTICS,CREDITORS -GR/IR CLEARING ACCOUNT,5902453566,1000003017,
03.02.2021,SOUTHWARK BUILDING SERVICES,LONDON TOOLS LIMITED,360.00,STORES/LOGISTICS,CREDITORS -GR/IR CLEARING ACCOUNT,5902453574,1000003017,
03.02.2021,SOUTHWARK BUILDING SERVICES,LONDON TOOLS LIMITED,372.00,STORES/LOGISTICS,CREDITORS -GR/IR CLEARING ACCOUNT,5902453554,1000003017,
03.02.2021,SOUTHWARK BUILDING SERVICES,LONDON TOOLS LIMITED,390.00,STORES/LOGISTICS,CREDITORS -GR/IR CLEARING ACCOUNT,5902453589,1000003017,
03.02.2021,SOUTHWARK BUILDING SERVICES,LONDON TOOLS LIMITED,397.50,STORES/LOGISTICS,CREDITORS -GR/IR CLEARING ACCOUNT,5902453572,1000003017,
03.02.2021,SOUTHWARK BUILDING SERVICES,LONDON TOOLS LIMITED,487.50,STORES/LOGISTICS,CREDITORS -GR/IR CLEARING ACCOUNT,5902453576,1000003017,
03.02.2021,SOUTHWARK BUILDING SERVICES,LONDON TOOLS LIMITED,540.00,STORES/LOGISTICS,CREDITORS -GR/IR CLEARING ACCOUNT,5902453545,1000003017,
03.02.2021,SOUTHWARK BUILDING SERVICES,LONDON TOOLS LIMITED,930.00,STORES/LOGISTICS,CREDITORS -GR/IR CLEARING ACCOUNT,5902453574,1000003017,
03.02.2021,SOUTHWARK BUILDING SERVICES,LONDON TOOLS LIMITED,"1,360.00",STORES/LOGISTICS,CREDITORS -GR/IR CLEARING ACCOUNT,5902453571,1000003017,
03.02.2021,SOUTHWARK BUILDING SERVICES,LONDON TOOLS LIMITED,"1,380.00",STORES/LOGISTICS,CREDITORS -GR/IR CLEARING ACCOUNT,5902453561,1000003017,
03.02.2021,SOUTHWARK BUILDING SERVICES,LONDON TOOLS LIMITED,"3,300.00",STORES/LOGISTICS,CREDITORS -GR/IR CLEARING ACCOUNT,5902453585,1000003017,
03.02.2021,SOUTHWARK BUILDING SERVICES,LONDON TOOLS LIMITED,"3,720.00",STORES/LOGISTICS,CREDITORS -GR/IR CLEARING ACCOUNT,5902453538,1000003017,
04.02.2021,ADULT SOCIAL CARE,HM COURTS & TRIBUNALS SERVICE,365.00, LD MGMT & SUPPORT,LEGAL FEES & COURT COSTS,2103212250,1000075260,
04.02.2021,ADULT SOCIAL CARE,HM COURTS & TRIBUNALS SERVICE,365.00,AAD TEAM,LEGAL FEES & COURT COSTS,2103212196,1000075260,
04.02.2021,ADULT SOCIAL CARE,HM COURTS & TRIBUNALS SERVICE,365.00,AAD TEAM,LEGAL FEES & COURT COSTS,2103212254,1000075260,
04.02.2021,ADULT SOCIAL CARE,REDACTED PERSONAL DATA,400.00,APPOINTEESHIPS,OTHER PAYMENTS FOR CLIENTS,REDACTED,REDACTED,
04.02.2021,ADULT SOCIAL CARE,REDACTED PERSONAL DATA,600.00,APPOINTEESHIPS,OTHER PAYMENTS FOR CLIENTS,REDACTED,REDACTED,
04.02.2021,ADULT SOCIAL CARE,REDACTED PERSONAL DATA,"8,134.91",APPOINTEESHIPS,OTHER PAYMENTS FOR CLIENTS,REDACTED,REDACTED,
04.02.2021,ADULT SOCIAL CARE,TALKING LIFE LTD,595.00,ASW - PROFESSIONAL DEVELOPMENT,TRAINING,5902453061,1000071049,
04.02.2021,ADULT SOCIAL CARE,LONDON CARE LTD,298.05,CARERS SERVICES,HOMECARE - SPOT,2103212170,1000003398,
04.02.2021,ADULT SOCIAL CARE,BRANDON TRUST,"2,777.97",DIR OF ASC,EXTERNAL AGENCIES AND BODIES,5902453291,1000042417,
04.02.2021,ADULT SOCIAL CARE,BRANDON TRUST,"5,163.33",DIR OF ASC,EXTERNAL AGENCIES AND BODIES,5902453288,1000042417,
04.02.2021,ADULT SOCIAL CARE,LEONARD CHESHIRE DISABILITY,"3,968.52",DIR OF ASC,EXTERNAL AGENCIES AND BODIES,5902453295,1000065128,
04.02.2021,ADULT SOCIAL CARE,LEONARD CHESHIRE DISABILITY,"8,333.90",DIR OF ASC,EXTERNAL AGENCIES AND BODIES,5902453297,1000065128,
04.02.2021,ADULT SOCIAL CARE,HM COURTS & TRIBUNALS SERVICE,365.00,DIR OF ASC,LEGAL FEES & COURT COSTS,2103212175,1000075260,
04.02.2021,ADULT SOCIAL CARE,HM COURTS & TRIBUNALS SERVICE,365.00,DIR OF ASC,LEGAL FEES & COURT COSTS,2103212177,1000075260,
04.02.2021,ADULT SOCIAL CARE,HM COURTS & TRIBUNALS SERVICE,365.00,DIR OF ASC,LEGAL FEES & COURT COSTS,2103212187,1000075260,
04.02.2021,ADULT SOCIAL CARE,HM COURTS & TRIBUNALS SERVICE,365.00,DIR OF ASC,LEGAL FEES & COURT COSTS,2103212236,1000075260,
04.02.2021,ADULT SOCIAL CARE,HM COURTS & TRIBUNALS SERVICE,365.00,DIR OF ASC,LEGAL FEES & COURT COSTS,2103212248,1000075260,
04.02.2021,ADULT SOCIAL CARE,BY THE BRIDGE LTD,"5,757.01",DISABILITIES LAC,EXTERNAL AGENCIES AND BODIES,2103212003,1000043961,
04.02.2021,ADULT SOCIAL CARE,BY THE BRIDGE LTD,"6,231.00",DISABILITIES LAC,EXTERNAL AGENCIES AND BODIES,2103211998,1000043961,
04.02.2021,ADULT SOCIAL CARE,BLISSETT CARE LTD,"1,168.02",DISCHARGE TO ACCESS,HOMECARE - C&V,2103211857,1000042627,
04.02.2021,ADULT SOCIAL CARE,ELEANOR NURSING AND SOCIAL CARE LTD,501.72,DISCHARGE TO ACCESS,HOMECARE - SPOT,2103212104,1000081695,
04.02.2021,ADULT SOCIAL CARE,CHOICE SUPPORT,293.92,LD LTS 18-64,SUPPORTED LIVING,2103212043,1104183,
04.02.2021,ADULT SOCIAL CARE,CHOICE SUPPORT,293.92,LD LTS 18-64,SUPPORTED LIVING,2103212046,1104183,
04.02.2021,ADULT SOCIAL CARE,CHOICE SUPPORT,367.40,LD LTS 18-64,SUPPORTED LIVING,2103212048,1104183,
04.02.2021,ADULT SOCIAL CARE,CHOICE SUPPORT,367.40,LD LTS 18-64,SUPPORTED LIVING,2103212051,1104183,
04.02.2021,ADULT SOCIAL CARE,CHOICE SUPPORT,440.88,LD LTS 18-64,SUPPORTED LIVING,2103212047,1104183,
04.02.2021,ADULT SOCIAL CARE,CHOICE SUPPORT,514.36,LD LTS 18-64,SUPPORTED LIVING,2103212040,1104183,
04.02.2021,ADULT SOCIAL CARE,CHOICE SUPPORT,661.32,LD LTS 18-64,SUPPORTED LIVING,2103212041,1104183,
04.02.2021,ADULT SOCIAL CARE,THE CAMDEN SOCIETY (SOCIAL CARE),376.80,LD LTS 18-64,DAYCARE,2103211830,1000036369,
04.02.2021,ADULT SOCIAL CARE,THE CAMDEN SOCIETY (SOCIAL CARE),384.00,LD LTS 18-64,DAYCARE,2103211815,1000036369,
04.02.2021,ADULT SOCIAL CARE,THE CAMDEN SOCIETY (SOCIAL CARE),465.60,LD LTS 18-64,DAYCARE,2103211771,1000036369,
04.02.2021,ADULT SOCIAL CARE,THE CAMDEN SOCIETY (SOCIAL CARE),480.00,LD LTS 18-64,DAYCARE,2103211777,1000036369,
04.02.2021,ADULT SOCIAL CARE,THE CAMDEN SOCIETY (SOCIAL CARE),480.00,LD LTS 18-64,DAYCARE,2103211783,1000036369,
04.02.2021,ADULT SOCIAL CARE,THE CAMDEN SOCIETY (SOCIAL CARE),480.00,LD LTS 18-64,DAYCARE,2103211807,1000036369,
04.02.2021,ADULT SOCIAL CARE,THE CAMDEN SOCIETY (SOCIAL CARE),480.00,LD LTS 18-64,DAYCARE,2103211819,1000036369,
04.02.2021,ADULT SOCIAL CARE,THE CAMDEN SOCIETY (SOCIAL CARE),480.00,LD LTS 18-64,DAYCARE,2103211835,1000036369,
04.02.2021,ADULT SOCIAL CARE,THE CAMDEN SOCIETY (SOCIAL CARE),480.00,LD LTS 18-64,DAYCARE,2103211845,1000036369,
04.02.2021,ADULT SOCIAL CARE,THE CAMDEN SOCIETY (SOCIAL CARE),500.00,LD LTS 18-64,DAYCARE,2103211823,1000036369,
04.02.2021,ADULT SOCIAL CARE,THE CAMDEN SOCIETY (SOCIAL CARE),500.00,LD LTS 18-64,DAYCARE,2103211840,1000036369,
04.02.2021,ADULT SOCIAL CARE,THE CAMDEN SOCIETY (SOCIAL CARE),594.00,LD LTS 18-64,DAYCARE,2103211775,1000036369,
04.02.2021,ADULT SOCIAL CARE,THE CAMDEN SOCIETY (SOCIAL CARE),599.36,LD LTS 18-64,DAYCARE,2103211781,1000036369,
04.02.2021,ADULT SOCIAL CARE,THE CAMDEN SOCIETY (SOCIAL CARE),609.60,LD LTS 18-64,DAYCARE,2103211801,1000036369,
04.02.2021,ADULT SOCIAL CARE,THE CAMDEN SOCIETY (SOCIAL CARE),612.00,LD LTS 18-64,DAYCARE,2103211828,1000036369,
04.02.2021,ADULT SOCIAL CARE,THE CAMDEN SOCIETY (SOCIAL CARE),674.16,LD LTS 18-64,DAYCARE,2103211839,1000036369,
04.02.2021,ADULT SOCIAL CARE,THE CAMDEN SOCIETY (SOCIAL CARE),676.80,LD LTS 18-64,DAYCARE,2103211791,1000036369,
04.02.2021,ADULT SOCIAL CARE,THE CAMDEN SOCIETY (SOCIAL CARE),704.00,LD LTS 18-64,DAYCARE,2103211757,1000036369,
04.02.2021,ADULT SOCIAL CARE,THE CAMDEN SOCIETY (SOCIAL CARE),704.00,LD LTS 18-64,DAYCARE,2103211761,1000036369,
04.02.2021,ADULT SOCIAL CARE,THE CAMDEN SOCIETY (SOCIAL CARE),704.00,LD LTS 18-64,DAYCARE,2103211767,1000036369,
04.02.2021,ADULT SOCIAL CARE,THE CAMDEN SOCIETY (SOCIAL CARE),704.00,LD LTS 18-64,DAYCARE,2103211811,1000036369,
04.02.2021,ADULT SOCIAL CARE,THE CAMDEN SOCIETY (SOCIAL CARE),704.00,LD LTS 18-64,DAYCARE,2103211829,1000036369,
04.02.2021,ADULT SOCIAL CARE,THE CAMDEN SOCIETY (SOCIAL CARE),705.60,LD LTS 18-64,DAYCARE,2103211793,1000036369,
04.02.2021,ADULT SOCIAL CARE,THE CAMDEN SOCIETY (SOCIAL CARE),705.60,LD LTS 18-64,DAYCARE,2103211833,1000036369,
04.02.2021,ADULT SOCIAL CARE,THE CAMDEN SOCIETY (SOCIAL CARE),903.60,LD LTS 18-64,DAYCARE,2103211805,1000036369,
04.02.2021,ADULT SOCIAL CARE,THE CAMDEN SOCIETY (SOCIAL CARE),960.00,LD LTS 18-64,DAYCARE,2103211837,1000036369,
04.02.2021,ADULT SOCIAL CARE,THE CAMDEN SOCIETY (SOCIAL CARE),960.00,LD LTS 18-64,DAYCARE,2103211843,1000036369,
04.02.2021,ADULT SOCIAL CARE,THE CAMDEN SOCIETY (SOCIAL CARE),968.00,LD LTS 18-64,DAYCARE,2103211836,1000036369,
04.02.2021,ADULT SOCIAL CARE,THE CAMDEN SOCIETY (SOCIAL CARE),988.00,LD LTS 18-64,DAYCARE,2103211797,1000036369,
04.02.2021,ADULT SOCIAL CARE,THE CAMDEN SOCIETY (SOCIAL CARE),"1,056.00",LD LTS 18-64,DAYCARE,2103211759,1000036369,
04.02.2021,ADULT SOCIAL CARE,THE CAMDEN SOCIETY (SOCIAL CARE),"1,056.00",LD LTS 18-64,DAYCARE,2103211809,1000036369,
04.02.2021,ADULT SOCIAL CARE,THE CAMDEN SOCIETY (SOCIAL CARE),"1,056.00",LD LTS 18-64,DAYCARE,2103211813,1000036369,
04.02.2021,ADULT SOCIAL CARE,THE CAMDEN SOCIETY (SOCIAL CARE),"1,056.00",LD LTS 18-64,DAYCARE,2103211825,1000036369,
04.02.2021,ADULT SOCIAL CARE,THE CAMDEN SOCIETY (SOCIAL CARE),"1,200.00",LD LTS 18-64,DAYCARE,2103211769,1000036369,
04.02.2021,ADULT SOCIAL CARE,THE CAMDEN SOCIETY (SOCIAL CARE),"1,200.00",LD LTS 18-64,DAYCARE,2103211817,1000036369,
04.02.2021,ADULT SOCIAL CARE,THE CAMDEN SOCIETY (SOCIAL CARE),"1,408.00",LD LTS 18-64,DAYCARE,2103211785,1000036369,
04.02.2021,ADULT SOCIAL CARE,THE CAMDEN SOCIETY (SOCIAL CARE),"1,408.00",LD LTS 18-64,DAYCARE,2103211789,1000036369,
04.02.2021,ADULT SOCIAL CARE,THE CAMDEN SOCIETY (SOCIAL CARE),"1,451.52",LD LTS 18-64,DAYCARE,2103211765,1000036369,
04.02.2021,ADULT SOCIAL CARE,THE CAMDEN SOCIETY (SOCIAL CARE),"1,500.00",LD LTS 18-64,DAYCARE,2103211799,1000036369,
04.02.2021,ADULT SOCIAL CARE,THE CAMDEN SOCIETY (SOCIAL CARE),"1,536.00",LD LTS 18-64,DAYCARE,2103211831,1000036369,
04.02.2021,ADULT SOCIAL CARE,THE CAMDEN SOCIETY (SOCIAL CARE),"1,760.00",LD LTS 18-64,DAYCARE,2103211787,1000036369,
04.02.2021,ADULT SOCIAL CARE,THE CAMDEN SOCIETY (SOCIAL CARE),"1,760.00",LD LTS 18-64,DAYCARE,2103211803,1000036369,
04.02.2021,ADULT SOCIAL CARE,THE CAMDEN SOCIETY (SOCIAL CARE),"1,824.40",LD LTS 18-64,DAYCARE,2103211838,1000036369,
04.02.2021,ADULT SOCIAL CARE,THE CAMDEN SOCIETY (SOCIAL CARE),"1,848.00",LD LTS 18-64,DAYCARE,2103211822,1000036369,
04.02.2021,ADULT SOCIAL CARE,THE CAMDEN SOCIETY (SOCIAL CARE),"1,848.00",LD LTS 18-64,DAYCARE,2103211842,1000036369,
04.02.2021,ADULT SOCIAL CARE,THE CAMDEN SOCIETY (SOCIAL CARE),"2,000.00",LD LTS 18-64,DAYCARE,2103211834,1000036369,
04.02.2021,ADULT SOCIAL CARE,THE CAMDEN SOCIETY (SOCIAL CARE),"2,020.00",LD LTS 18-64,DAYCARE,2103211844,1000036369,
04.02.2021,ADULT SOCIAL CARE,THE CAMDEN SOCIETY (SOCIAL CARE),"2,154.48",LD LTS 18-64,DAYCARE,2103211821,1000036369,
04.02.2021,ADULT SOCIAL CARE,THE CAMDEN SOCIETY (SOCIAL CARE),"2,160.00",LD LTS 18-64,DAYCARE,2103211832,1000036369,
04.02.2021,ADULT SOCIAL CARE,THE CAMDEN SOCIETY (SOCIAL CARE),"2,374.00",LD LTS 18-64,DAYCARE,2103211773,1000036369,
04.02.2021,ADULT SOCIAL CARE,THE CAMDEN SOCIETY (SOCIAL CARE),"2,448.00",LD LTS 18-64,DAYCARE,2103211824,1000036369,
04.02.2021,ADULT SOCIAL CARE,THE CAMDEN SOCIETY (SOCIAL CARE),"3,160.00",LD LTS 18-64,DAYCARE,2103211763,1000036369,
04.02.2021,ADULT SOCIAL CARE,THE CAMDEN SOCIETY (SOCIAL CARE),"3,534.00",LD LTS 18-64,DAYCARE,2103211779,1000036369,
04.02.2021,ADULT SOCIAL CARE,BLISSETT CARE LTD,482.51,LD LTS 18-64,HOMECARE - C&V,2103211882,1000042627,
04.02.2021,ADULT SOCIAL CARE,CARE DIRECT UK LTD,330.96,LD LTS 18-64,SUPPORTED LIVING,2103212100,1000066322,
04.02.2021,ADULT SOCIAL CARE,ELEANOR NURSING AND SOCIAL CARE LTD,735.25,LD LTS 18-64,HOMECARE - SPOT,2103212102,1000081695,
04.02.2021,ADULT SOCIAL CARE,CHOICE SUPPORT,"1,028.72",LD LTS 65+,SUPPORTED LIVING,2103212050,1104183,
04.02.2021,ADULT SOCIAL CARE,CHOICE SUPPORT,"6,935.52",LD LTS 65+,SUPPORTED LIVING,2103212049,1104183,
04.02.2021,ADULT SOCIAL CARE,HM COURTS & TRIBUNALS SERVICE,308.00,LD/MH/SM MANAGEMENT,LEGAL FEES & COURT COSTS,2103212206,1000075260,
04.02.2021,ADULT SOCIAL CARE,HM COURTS & TRIBUNALS SERVICE,308.00,LD/MH/SM MANAGEMENT,LEGAL FEES & COURT COSTS,2103212221,1000075260,
04.02.2021,ADULT SOCIAL CARE,BLISSETT CARE LTD,472.75,MEM LTS 65+,HOMECARE - C&V,2103211887,1000042627,
04.02.2021,ADULT SOCIAL CARE,BLISSETT CARE LTD,"2,322.88",MEM LTS 65+,HOMECARE - C&V,2103211878,1000042627,
04.02.2021,ADULT SOCIAL CARE,BLISSETT CARE LTD,264.74,MH LTS 65+,HOMECARE - C&V,2103211884,1000042627,
04.02.2021,ADULT SOCIAL CARE,BLISSETT CARE LTD,459.32,MH LTS 65+,HOMECARE - C&V,2103211865,1000042627,
04.02.2021,ADULT SOCIAL CARE,THE RIVERSIDE GROUP LTD,"4,095.00",MH LTS 65+,EXTERNAL AGENCIES AND BODIES,2103212038,1000069625,
04.02.2021,ADULT SOCIAL CARE,THE RIVERSIDE GROUP LTD,"8,190.00",MH LTS 65+,EXTERNAL AGENCIES AND BODIES,2103212039,1000069625,
04.02.2021,ADULT SOCIAL CARE,LONDON CARE LTD,814.59,MH STS 18-64,HOMECARE - IC,2103212144,1000003398,
04.02.2021,ADULT SOCIAL CARE,THE CAMDEN SOCIETY (SOCIAL CARE),705.60,PHY LTS 18-64,DAYCARE,2103211795,1000036369,
04.02.2021,ADULT SOCIAL CARE,BLISSETT CARE LTD,251.93,PHY LTS 18-64,HOMECARE - C&V,2103211890,1000042627,
04.02.2021,ADULT SOCIAL CARE,BLISSETT CARE LTD,472.64,PHY LTS 18-64,HOMECARE - C&V,2103211867,1000042627,
04.02.2021,ADULT SOCIAL CARE,BLISSETT CARE LTD,512.81,PHY LTS 18-64,HOMECARE - C&V,2103211846,1000042627,
04.02.2021,ADULT SOCIAL CARE,BLISSETT CARE LTD,575.08,PHY LTS 18-64,HOMECARE - C&V,2103211854,1000042627,
04.02.2021,ADULT SOCIAL CARE,BLISSETT CARE LTD,940.70,PHY LTS 18-64,HOMECARE - C&V,2103211874,1000042627,
04.02.2021,ADULT SOCIAL CARE,BLISSETT CARE LTD,"1,029.93",PHY LTS 18-64,HOMECARE - C&V,2103211876,1000042627,
04.02.2021,ADULT SOCIAL CARE,ELEANOR NURSING AND SOCIAL CARE LTD,795.80,PHY LTS 18-64,HOMECARE - C&V,2103212105,1000081695,
04.02.2021,ADULT SOCIAL CARE,ELEANOR NURSING AND SOCIAL CARE LTD,839.05,PHY LTS 18-64,HOMECARE - SPOT,2103212107,1000081695,
04.02.2021,ADULT SOCIAL CARE,ELEANOR NURSING AND SOCIAL CARE LTD,"1,280.18",PHY LTS 18-64,HOMECARE - SPOT,2103212103,1000081695,
04.02.2021,ADULT SOCIAL CARE,ELEANOR NURSING AND SOCIAL CARE LTD,"3,546.50",PHY LTS 18-64,HOMECARE - SPOT,2103212111,1000081695,
04.02.2021,ADULT SOCIAL CARE,CHOICE SUPPORT,293.92,PHY LTS 65+,SUPPORTED LIVING,2103212045,1104183,
04.02.2021,ADULT SOCIAL CARE,LONDON CARE LTD,380.38,PHY LTS 65+,HOMECARE - C&V,2103212140,1000003398,
04.02.2021,ADULT SOCIAL CARE,LONDON CARE LTD,381.35,PHY LTS 65+,HOMECARE - C&V,2103212155,1000003398,
04.02.2021,ADULT SOCIAL CARE,LONDON CARE LTD,501.20,PHY LTS 65+,HOMECARE - C&V,2103212150,1000003398,
04.02.2021,ADULT SOCIAL CARE,LONDON CARE LTD,595.18,PHY LTS 65+,HOMECARE - C&V,2103212120,1000003398,
04.02.2021,ADULT SOCIAL CARE,LONDON CARE LTD,604.26,PHY LTS 65+,HOMECARE - C&V,2103212126,1000003398,
04.02.2021,ADULT SOCIAL CARE,LONDON CARE LTD,608.73,PHY LTS 65+,HOMECARE - C&V,2103212131,1000003398,
04.02.2021,ADULT SOCIAL CARE,LONDON CARE LTD,666.79,PHY LTS 65+,HOMECARE - C&V,2103212163,1000003398,
04.02.2021,ADULT SOCIAL CARE,LONDON CARE LTD,747.33,PHY LTS 65+,HOMECARE - C&V,2103212121,1000003398,
04.02.2021,ADULT SOCIAL CARE,LONDON CARE LTD,832.49,PHY LTS 65+,HOMECARE - C&V,2103212125,1000003398,
04.02.2021,ADULT SOCIAL CARE,LONDON CARE LTD,877.10,PHY LTS 65+,HOMECARE - C&V,2103212146,1000003398,
04.02.2021,ADULT SOCIAL CARE,LONDON CARE LTD,986.99,PHY LTS 65+,HOMECARE - C&V,2103212164,1000003398,
04.02.2021,ADULT SOCIAL CARE,LONDON CARE LTD,"1,123.36",PHY LTS 65+,HOMECARE - C&V,2103212142,1000003398,
04.02.2021,ADULT SOCIAL CARE,LONDON CARE LTD,"1,723.08",PHY LTS 65+,HOMECARE - C&V,2103212141,1000003398,
04.02.2021,ADULT SOCIAL CARE,LONDON CARE LTD,"1,960.32",PHY LTS 65+,HOMECARE - C&V,2103212115,1000003398,
04.02.2021,ADULT SOCIAL CARE,LONDON CARE LTD,"2,219.00",PHY LTS 65+,HOMECARE - C&V,2103212152,1000003398,
04.02.2021,ADULT SOCIAL CARE,LONDON CARE LTD,"2,446.84",PHY LTS 65+,HOMECARE - C&V,2103212129,1000003398,
04.02.2021,ADULT SOCIAL CARE,BLISSETT CARE LTD,251.93,PHY LTS 65+,HOMECARE - C&V,2103211880,1000042627,
04.02.2021,ADULT SOCIAL CARE,BLISSETT CARE LTD,347.65,PHY LTS 65+,HOMECARE - C&V,2103211872,1000042627,
04.02.2021,ADULT SOCIAL CARE,BLISSETT CARE LTD,369.92,PHY LTS 65+,HOMECARE - C&V,2103211850,1000042627,
04.02.2021,ADULT SOCIAL CARE,BLISSETT CARE LTD,454.71,PHY LTS 65+,HOMECARE - C&V,2103211870,1000042627,
04.02.2021,ADULT SOCIAL CARE,BLISSETT CARE LTD,552.81,PHY LTS 65+,HOMECARE - C&V,2103211875,1000042627,
04.02.2021,ADULT SOCIAL CARE,BLISSETT CARE LTD,563.64,PHY LTS 65+,HOMECARE - C&V,2103211871,1000042627,
04.02.2021,ADULT SOCIAL CARE,BLISSETT CARE LTD,655.35,PHY LTS 65+,HOMECARE - C&V,2103211858,1000042627,
04.02.2021,ADULT SOCIAL CARE,BLISSETT CARE LTD,760.20,PHY LTS 65+,HOMECARE - C&V,2103211868,1000042627,
04.02.2021,ADULT SOCIAL CARE,BLISSETT CARE LTD,801.76,PHY LTS 65+,HOMECARE - C&V,2103211881,1000042627,
04.02.2021,ADULT SOCIAL CARE,BLISSETT CARE LTD,829.28,PHY LTS 65+,HOMECARE - C&V,2103211853,1000042627,
04.02.2021,ADULT SOCIAL CARE,BLISSETT CARE LTD,842.54,PHY LTS 65+,HOMECARE - C&V,2103211889,1000042627,
04.02.2021,ADULT SOCIAL CARE,BLISSETT CARE LTD,867.77,PHY LTS 65+,HOMECARE - C&V,2103211861,1000042627,
04.02.2021,ADULT SOCIAL CARE,BLISSETT CARE LTD,878.35,PHY LTS 65+,HOMECARE - C&V,2103211848,1000042627,
04.02.2021,ADULT SOCIAL CARE,BLISSETT CARE LTD,900.63,PHY LTS 65+,HOMECARE - C&V,2103211886,1000042627,
04.02.2021,ADULT SOCIAL CARE,BLISSETT CARE LTD,904.77,PHY LTS 65+,HOMECARE - C&V,2103211892,1000042627,
04.02.2021,ADULT SOCIAL CARE,BLISSETT CARE LTD,909.48,PHY LTS 65+,HOMECARE - C&V,2103211860,1000042627,
04.02.2021,ADULT SOCIAL CARE,BLISSETT CARE LTD,922.93,PHY LTS 65+,HOMECARE - C&V,2103211859,1000042627,
04.02.2021,ADULT SOCIAL CARE,BLISSETT CARE LTD,935.13,PHY LTS 65+,HOMECARE - C&V,2103211873,1000042627,
04.02.2021,ADULT SOCIAL CARE,BLISSETT CARE LTD,944.94,PHY LTS 65+,HOMECARE - C&V,2103211849,1000042627,
04.02.2021,ADULT SOCIAL CARE,BLISSETT CARE LTD,998.98,PHY LTS 65+,HOMECARE - C&V,2103211851,1000042627,
04.02.2021,ADULT SOCIAL CARE,BLISSETT CARE LTD,"1,026.90",PHY LTS 65+,HOMECARE - C&V,2103211869,1000042627,
04.02.2021,ADULT SOCIAL CARE,BLISSETT CARE LTD,"1,203.91",PHY LTS 65+,HOMECARE - C&V,2103211879,1000042627,
04.02.2021,ADULT SOCIAL CARE,BLISSETT CARE LTD,"1,232.62",PHY LTS 65+,HOMECARE - C&V,2103211856,1000042627,
04.02.2021,ADULT SOCIAL CARE,BLISSETT CARE LTD,"1,707.60",PHY LTS 65+,HOMECARE - C&V,2103211852,1000042627,
04.02.2021,ADULT SOCIAL CARE,BLISSETT CARE LTD,"2,194.78",PHY LTS 65+,HOMECARE - C&V,2103211888,1000042627,
04.02.2021,ADULT SOCIAL CARE,BLISSETT CARE LTD,"2,273.84",PHY LTS 65+,HOMECARE - C&V,2103211883,1000042627,
04.02.2021,ADULT SOCIAL CARE,BLISSETT CARE LTD,"2,310.07",PHY LTS 65+,HOMECARE - C&V,2103211885,1000042627,
04.02.2021,ADULT SOCIAL CARE,BLISSETT CARE LTD,"2,420.93",PHY LTS 65+,HOMECARE - C&V,2103211862,1000042627,
04.02.2021,ADULT SOCIAL CARE,BLISSETT CARE LTD,"2,741.37",PHY LTS 65+,HOMECARE - C&V,2103211864,1000042627,
04.02.2021,ADULT SOCIAL CARE,CARE DIRECT UK LTD,559.13,PHY LTS 65+,HOMECARE - SPOT,2103212098,1000066322,
04.02.2021,ADULT SOCIAL CARE,CARE DIRECT UK LTD,621.25,PHY LTS 65+,HOMECARE - SPOT,2103212097,1000066322,
04.02.2021,ADULT SOCIAL CARE,ELEANOR NURSING AND SOCIAL CARE LTD,527.95,PHY LTS 65+,HOMECARE - SPOT,2103212106,1000081695,
04.02.2021,ADULT SOCIAL CARE,ELEANOR NURSING AND SOCIAL CARE LTD,"1,470.50",PHY LTS 65+,HOMECARE - SPOT,2103212110,1000081695,
04.02.2021,ADULT SOCIAL CARE,LONDON CARE LTD,367.08,PHY STS 18-64,HOMECARE - IC,2103212149,1000003398,
04.02.2021,ADULT SOCIAL CARE,LONDON CARE LTD,814.58,PHY STS 18-64,HOMECARE - IC,2103212148,1000003398,
04.02.2021,ADULT SOCIAL CARE,LONDON CARE LTD,"1,749.26",PHY STS 18-64,HOMECARE - IC,2103212136,1000003398,
04.02.2021,ADULT SOCIAL CARE,LONDON CARE LTD,335.73,PHY STS 65+,HOMECARE - IC,2103212133,1000003398,
04.02.2021,ADULT SOCIAL CARE,LONDON CARE LTD,335.79,PHY STS 65+,HOMECARE - IC,2103212122,1000003398,
04.02.2021,ADULT SOCIAL CARE,LONDON CARE LTD,340.14,PHY STS 65+,HOMECARE - IC,2103212137,1000003398,
04.02.2021,ADULT SOCIAL CARE,LONDON CARE LTD,425.22,PHY STS 65+,HOMECARE - IC,2103212166,1000003398,
04.02.2021,ADULT SOCIAL CARE,LONDON CARE LTD,452.09,PHY STS 65+,HOMECARE - IC,2103212165,1000003398,
04.02.2021,ADULT SOCIAL CARE,LONDON CARE LTD,452.19,PHY STS 65+,HOMECARE - IC,2103212157,1000003398,
04.02.2021,ADULT SOCIAL CARE,LONDON CARE LTD,478.85,PHY STS 65+,HOMECARE - IC,2103212128,1000003398,
04.02.2021,ADULT SOCIAL CARE,LONDON CARE LTD,483.36,PHY STS 65+,HOMECARE - IC,2103212147,1000003398,
04.02.2021,ADULT SOCIAL CARE,LONDON CARE LTD,501.20,PHY STS 65+,HOMECARE - IC,2103212154,1000003398,
04.02.2021,ADULT SOCIAL CARE,LONDON CARE LTD,599.74,PHY STS 65+,HOMECARE - IC,2103212156,1000003398,
04.02.2021,ADULT SOCIAL CARE,LONDON CARE LTD,617.69,PHY STS 65+,HOMECARE - IC,2103212118,1000003398,
04.02.2021,ADULT SOCIAL CARE,LONDON CARE LTD,765.41,PHY STS 65+,HOMECARE - IC,2103212127,1000003398,
04.02.2021,ADULT SOCIAL CARE,LONDON CARE LTD,872.76,PHY STS 65+,HOMECARE - IC,2103212119,1000003398,
04.02.2021,ADULT SOCIAL CARE,LONDON CARE LTD,989.10,PHY STS 65+,HOMECARE - IC,2103212169,1000003398,
04.02.2021,ADULT SOCIAL CARE,LONDON CARE LTD,"1,007.00",PHY STS 65+,HOMECARE - IC,2103212158,1000003398,
04.02.2021,ADULT SOCIAL CARE,BLISSETT CARE LTD,"1,330.43",PHY STS 65+,HOMECARE - IC,2103211855,1000042627,
04.02.2021,ADULT SOCIAL CARE,SIDLOFF ASSOCIATES LTD,500.00,SAFEGUARDING & DOLS,EXTERNAL AGENCIES AND BODIES,5902453181,1000081744,
04.02.2021,ADULT SOCIAL CARE,ELEANOR NURSING AND SOCIAL CARE LTD,916.90,SEN LTS 65+,HOMECARE - SPOT,2103212109,1000081695,
04.02.2021,ADULT SOCIAL CARE,MEDACS HOMECARE,276.80,SPECIALIST CARE,SECTION 17 PAYMENTS TO AGENCIES/CARERS,2103212017,11287415,
04.02.2021,ADULT SOCIAL CARE,MEDACS HOMECARE,304.22,SPECIALIST CARE,SECTION 17 PAYMENTS TO AGENCIES/CARERS,2103212027,11287415,
04.02.2021,ADULT SOCIAL CARE,MEDACS HOMECARE,536.30,SPECIALIST CARE,SECTION 17 PAYMENTS TO AGENCIES/CARERS,2103212028,11287415,
04.02.2021,ADULT SOCIAL CARE,MEDACS HOMECARE,566.83,SPECIALIST CARE,SECTION 17 PAYMENTS TO AGENCIES/CARERS,2103212023,11287415,
04.02.2021,ADULT SOCIAL CARE,MEDACS HOMECARE,757.68,SPECIALIST CARE,SECTION 17 PAYMENTS TO AGENCIES/CARERS,2103212026,11287415,
04.02.2021,ADULT SOCIAL CARE,MEDACS HOMECARE,"1,038.00",SPECIALIST CARE,SECTION 17 PAYMENTS TO AGENCIES/CARERS,2103212018,11287415,
04.02.2021,ADULT SOCIAL CARE,MEDACS HOMECARE,"1,124.50",SPECIALIST CARE,SECTION 17 PAYMENTS TO AGENCIES/CARERS,2103212019,11287415,
04.02.2021,ADULT SOCIAL CARE,MEDACS HOMECARE,"2,245.90",SPECIALIST CARE,SECTION 17 PAYMENTS TO AGENCIES/CARERS,2103212016,11287415,
04.02.2021,ADULT SOCIAL CARE,MEDACS HOMECARE,"5,883.17",SPECIALIST CARE,SECTION 17 PAYMENTS TO AGENCIES/CARERS,2103212021,11287415,
04.02.2021,ADULT SOCIAL CARE,MEDACS HOMECARE,"8,837.02",SPECIALIST CARE,SECTION 17 PAYMENTS TO AGENCIES/CARERS,2103212024,11287415,
04.02.2021,ADULT SOCIAL CARE,INTERSERVE HEALTHCARE,500.52,SPECIALIST CARE,SECTION 17 PAYMENTS TO AGENCIES/CARERS,2103211907,1000049612,
04.02.2021,ADULT SOCIAL CARE,CONTACT PROFESSIONALS,285.00,SPECIALIST CARE,SECTION 17 PAYMENTS TO AGENCIES/CARERS,2103211952,1000057263,
04.02.2021,ADULT SOCIAL CARE,CONTACT PROFESSIONALS,342.00,SPECIALIST CARE,SECTION 17 PAYMENTS TO AGENCIES/CARERS,2103211942,1000057263,
04.02.2021,ADULT SOCIAL CARE,CONTACT PROFESSIONALS,798.00,SPECIALIST CARE,SECTION 17 PAYMENTS TO AGENCIES/CARERS,2103211938,1000057263,
04.02.2021,ADULT SOCIAL CARE,CONTACT PROFESSIONALS,"1,596.00",SPECIALIST CARE,SECTION 17 PAYMENTS TO AGENCIES/CARERS,2103211970,1000057263,
04.02.2021,ADULT SOCIAL CARE,METRO HOMECARE LTD,264.00,SPECIALIST CARE,SECTION 17 PAYMENTS TO AGENCIES/CARERS,2103211894,1000070695,
04.02.2021,ADULT SOCIAL CARE,METRO HOMECARE LTD,264.00,SPECIALIST CARE,SECTION 17 PAYMENTS TO AGENCIES/CARERS,2103211895,1000070695,
04.02.2021,ADULT SOCIAL CARE,METRO HOMECARE LTD,264.00,SPECIALIST CARE,SECTION 17 PAYMENTS TO AGENCIES/CARERS,2103211905,1000070695,
04.02.2021,ADULT SOCIAL CARE,METRO HOMECARE LTD,264.00,SPECIALIST CARE,SECTION 17 PAYMENTS TO AGENCIES/CARERS,2103211910,1000070695,
04.02.2021,ADULT SOCIAL CARE,METRO HOMECARE LTD,264.00,SPECIALIST CARE,SECTION 17 PAYMENTS TO AGENCIES/CARERS,2103211916,1000070695,
04.02.2021,ADULT SOCIAL CARE,METRO HOMECARE LTD,264.00,SPECIALIST CARE,SECTION 17 PAYMENTS TO AGENCIES/CARERS,2103211921,1000070695,
04.02.2021,ADULT SOCIAL CARE,METRO HOMECARE LTD,313.50,SPECIALIST CARE,SECTION 17 PAYMENTS TO AGENCIES/CARERS,2103211923,1000070695,
04.02.2021,ADULT SOCIAL CARE,METRO HOMECARE LTD,330.00,SPECIALIST CARE,SECTION 17 PAYMENTS TO AGENCIES/CARERS,2103211897,1000070695,
04.02.2021,ADULT SOCIAL CARE,METRO HOMECARE LTD,396.00,SPECIALIST CARE,SECTION 17 PAYMENTS TO AGENCIES/CARERS,2103211896,1000070695,
04.02.2021,ADULT SOCIAL CARE,METRO HOMECARE LTD,396.00,SPECIALIST CARE,SECTION 17 PAYMENTS TO AGENCIES/CARERS,2103211899,1000070695,
04.02.2021,ADULT SOCIAL CARE,METRO HOMECARE LTD,396.00,SPECIALIST CARE,SECTION 17 PAYMENTS TO AGENCIES/CARERS,2103211919,1000070695,
04.02.2021,ADULT SOCIAL CARE,METRO HOMECARE LTD,495.00,SPECIALIST CARE,SECTION 17 PAYMENTS TO AGENCIES/CARERS,2103211915,1000070695,
04.02.2021,ADULT SOCIAL CARE,METRO HOMECARE LTD,528.00,SPECIALIST CARE,SECTION 17 PAYMENTS TO AGENCIES/CARERS,2103211918,1000070695,
04.02.2021,ADULT SOCIAL CARE,METRO HOMECARE LTD,594.00,SPECIALIST CARE,SECTION 17 PAYMENTS TO AGENCIES/CARERS,2103211922,1000070695,
04.02.2021,ADULT SOCIAL CARE,METRO HOMECARE LTD,693.00,SPECIALIST CARE,SECTION 17 PAYMENTS TO AGENCIES/CARERS,2103211893,1000070695,
04.02.2021,ADULT SOCIAL CARE,METRO HOMECARE LTD,759.00,SPECIALIST CARE,SECTION 17 PAYMENTS TO AGENCIES/CARERS,2103211912,1000070695,
04.02.2021,ADULT SOCIAL CARE,METRO HOMECARE LTD,792.00,SPECIALIST CARE,SECTION 17 PAYMENTS TO AGENCIES/CARERS,2103211924,1000070695,
04.02.2021,ADULT SOCIAL CARE,METRO HOMECARE LTD,858.00,SPECIALIST CARE,SECTION 17 PAYMENTS TO AGENCIES/CARERS,2103211909,1000070695,
04.02.2021,ADULT SOCIAL CARE,METRO HOMECARE LTD,924.00,SPECIALIST CARE,SECTION 17 PAYMENTS TO AGENCIES/CARERS,2103211920,1000070695,
04.02.2021,ADULT SOCIAL CARE,ABBEYS CARE SUPPORT AND TRAINING LTD,"1,006.88",SPECIALIST CARE,SECTION 17 PAYMENTS TO AGENCIES/CARERS,2103211913,1000086177,
04.02.2021,ADULT SOCIAL CARE,MEDACS HOMECARE,"-6,782.10",TRANSITIONS 14-18YRS,SECTION 17 PAYMENTS TO AGENCIES/CARERS,2103212025,11287415,
04.02.2021,ADULT SOCIAL CARE,MEDACS HOMECARE,"-2,207.83",TRANSITIONS 14-18YRS,SECTION 17 PAYMENTS TO AGENCIES/CARERS,2103212022,11287415,
04.02.2021,ASSET MANAGEMENT,GUIDELINE LIFT SERVICES LTD,"13,431.00",ADAPTATIONS,BUILDING R&M,5902453323,1000064176,
04.02.2021,ASSET MANAGEMENT,LONDON FIRE BRIGADE,346.00,ENG CONTRACTS (NORTH),LIFTS,5902453299,1000083629,
04.02.2021,ASSET MANAGEMENT,LONDON FIRE BRIGADE,346.00,ENG CONTRACTS (NORTH),LIFTS,5902453300,1000083629,
04.02.2021,ASSET MANAGEMENT,LONDON FIRE BRIGADE,346.00,ENG CONTRACTS (NORTH),LIFTS,5902453303,1000083629,
04.02.2021,ASSET MANAGEMENT,LONDON FIRE BRIGADE,346.00,ENG CONTRACTS (NORTH),LIFTS,5902453307,1000083629,
04.02.2021,ASSET MANAGEMENT,RELIANCE HIGH-TECH LTD,743.00,REPAIRS OPERATIONS,OFFICE EXPENSES,5902453431,1000079374,
04.02.2021,CENTRAL FUNCTIONS,HM COURTS & TRIBUNALS SERVICE,255.00,COMMERCIAL PROPERTIES,LEGAL FEES & COURT COSTS,2103212256,1000075260,
04.02.2021,CENTRAL FUNCTIONS,HM COURTS & TRIBUNALS SERVICE,814.74,COMMERCIAL PROPERTIES,LEGAL FEES & COURT COSTS,2103212226,1000075260,
04.02.2021,CENTRAL FUNCTIONS,KENT COUNTY COUNCIL - LASER,"3,941.35",HEATING ACCOUNT,ELECTRICITY,5902452768,1000012926,
04.02.2021,CENTRAL FUNCTIONS,KENT COUNTY COUNCIL - LASER,"67,826.10",HEATING ACCOUNT,ELECTRICITY,5902452768,1000012926,
04.02.2021,CENTRAL FUNCTIONS,KENT COUNTY COUNCIL - LASER,"68,191.48",HEATING ACCOUNT,GAS,5902452766,1000012926,
04.02.2021,CENTRAL FUNCTIONS,KENT COUNTY COUNCIL - LASER,"596,249.81",HEATING ACCOUNT,GAS,5902452766,1000012926,
04.02.2021,CENTRAL FUNCTIONS,TANFIELD CHAMBERS,"2,250.00",HOME OWNERSHIP,LEGAL FEES & COURT COSTS,5902453988,1000078320,
04.02.2021,CENTRAL FUNCTIONS,1ST ACE SECURITY LTD,"46,032.00",LEDBURY ESTATE,SECURITY SERVICES,5902453098,1000006992,
04.02.2021,CHIEF EXECUTIVE,LBOX COMMUNICATIONS,665.17,CAPITAL PS (REGEN),CONSTRUCTION FEES  - EXTERNAL,5902453842,1000044844,
04.02.2021,CHIEF EXECUTIVE,THE BLUE BERMONDSEY BID CO LTD,"2,924.37",CAPITAL PS (REGEN),CONSTRUCTION FEES,5902453967,1000070135,
04.02.2021,CHIEF EXECUTIVE,HAYATSU ARCHITECTS LTD,"7,662.40",CAPITAL PS (REGEN),CONSTRUCTION FEES,5902452828,1000082843,
04.02.2021,CHILDREN AND ADULT,SHARPE PRITCHARD LLP,266.00,CAPITAL PS (EDUCATION),CONSTRUCTION FEES - LEGAL,5902453895,1790085,
04.02.2021,CHILDREN AND ADULT,AMR CONSULT LTD,"2,440.00",CAPITAL PS (EDUCATION),CONSTRUCTION FEES  - EXTERNAL,5902453887,1000080834,
04.02.2021,CHILDREN AND FAMILIES,FAMILY ACTION,891.00,ADOPTION SUPP FUND,PROFESSIONAL FEES,5902453957,1013739,
04.02.2021,CHILDREN AND FAMILIES,REDACTED PERSONAL DATA,"1,270.50",ADOPTION SUPP FUND,PROFESSIONAL FEES,REDACTED,REDACTED,
04.02.2021,CHILDREN AND FAMILIES,REDACTED PERSONAL DATA,495.00,ADOPTION SUPP FUND,PROFESSIONAL FEES,REDACTED,REDACTED,
04.02.2021,CHILDREN AND FAMILIES,REDACTED PERSONAL DATA,360.00,ADOPTION SUPP FUND,PROFESSIONAL FEES,REDACTED,REDACTED,
04.02.2021,CHILDREN AND FAMILIES,REDACTED PERSONAL DATA,480.00,ADOPTION SUPP FUND,PROFESSIONAL FEES,REDACTED,REDACTED,
04.02.2021,CHILDREN AND FAMILIES,REDACTED PERSONAL DATA,480.00,ADOPTION SUPP FUND,PROFESSIONAL FEES,REDACTED,REDACTED,
04.02.2021,CHILDREN AND FAMILIES,REDACTED PERSONAL DATA,480.00,ADOPTION SUPP FUND,PROFESSIONAL FEES,REDACTED,REDACTED,
04.02.2021,CHILDREN AND FAMILIES,REDACTED PERSONAL DATA,480.00,ADOPTION SUPP FUND,PROFESSIONAL FEES,REDACTED,REDACTED,
04.02.2021,CHILDREN AND FAMILIES,REDACTED PERSONAL DATA,480.00,ADOPTION SUPP FUND,PROFESSIONAL FEES,REDACTED,REDACTED,
04.02.2021,CHILDREN AND FAMILIES,REDACTED PERSONAL DATA,720.00,ADOPTION SUPP FUND,PROFESSIONAL FEES,REDACTED,REDACTED,
04.02.2021,CHILDREN AND FAMILIES,REDACTED PERSONAL DATA,338.50,ADOPTION SUPP FUND,PROFESSIONAL FEES,REDACTED,REDACTED,
04.02.2021,CHILDREN AND FAMILIES,REDACTED PERSONAL DATA,"2,080.00",ADOPTION SUPP FUND,PROFESSIONAL FEES,REDACTED,REDACTED,
04.02.2021,CHILDREN AND FAMILIES,DISCLOSURE & BARRING SERVICE,"8,583.00",CENTRAL SUPPORT,EXTERNAL AGENCIES AND BODIES,5902453814,1000027861,
04.02.2021,CHILDREN AND FAMILIES,STONELAKE LONDON LTD,"18,600.00",CHILDREN�S RESID,EXTERNAL AGENCIES AND BODIES,2103212032,1000080075,
04.02.2021,CHILDREN AND FAMILIES,OWNLIFE RESIDENTIAL LTD,"17,700.00",CHILDREN�S RESID,RESIDENTIAL CARE,2103212037,1000085398,
04.02.2021,CHILDREN AND FAMILIES,OWNLIFE RESIDENTIAL LTD,"18,600.00",CHILDREN�S RESID,RESIDENTIAL CARE,2103212036,1000085398,
04.02.2021,CHILDREN AND FAMILIES,OWNLIFE RESIDENTIAL LTD,"26,128.57",CHILDREN�S RESID,RESIDENTIAL CARE,2103212030,1000085398,
04.02.2021,CHILDREN AND FAMILIES,OWNLIFE RESIDENTIAL LTD,"26,128.57",CHILDREN�S RESID,RESIDENTIAL CARE,2103212031,1000085398,
04.02.2021,CHILDREN AND FAMILIES,KEDLESTON GROUP LIMITED,"7,500.00",CHILDREN�S RESID,RESIDENTIAL CARE,2103212029,1000086192,
04.02.2021,CHILDREN AND FAMILIES,KEDLESTON GROUP LIMITED,"15,500.00",CHILDREN�S RESID,RESIDENTIAL CARE,2103212034,1000086192,
04.02.2021,CHILDREN AND FAMILIES,CARE O LINE,359.40,CONTACT SERVICE,OTHER PAYMENTS FOR CLIENTS,2103211747,11241743,
04.02.2021,CHILDREN AND FAMILIES,NEGOTIATORS LTD,300.00,CONTACT SERVICE,OTHER PAYMENTS FOR CLIENTS,5902453802,1000075672,
04.02.2021,CHILDREN AND FAMILIES,NEGOTIATORS LTD,300.00,CONTACT SERVICE,OTHER PAYMENTS FOR CLIENTS,5902453803,1000075672,
04.02.2021,CHILDREN AND FAMILIES,NEGOTIATORS LTD,300.00,CONTACT SERVICE,OTHER PAYMENTS FOR CLIENTS,5902453806,1000075672,
04.02.2021,CHILDREN AND FAMILIES,NEGOTIATORS LTD,500.00,CONTACT SERVICE,OTHER PAYMENTS FOR CLIENTS,5902453807,1000075672,
04.02.2021,CHILDREN AND FAMILIES,NEGOTIATORS LTD,525.00,CONTACT SERVICE,OTHER PAYMENTS FOR CLIENTS,5902453801,1000075672,
04.02.2021,CHILDREN AND FAMILIES,NEGOTIATORS LTD,660.00,CONTACT SERVICE,OTHER PAYMENTS FOR CLIENTS,5902453921,1000075672,
04.02.2021,CHILDREN AND FAMILIES,NEGOTIATORS LTD,687.50,CONTACT SERVICE,OTHER PAYMENTS FOR CLIENTS,5902453918,1000075672,
04.02.2021,CHILDREN AND FAMILIES,NEGOTIATORS LTD,962.50,CONTACT SERVICE,OTHER PAYMENTS FOR CLIENTS,5902453809,1000075672,
04.02.2021,CHILDREN AND FAMILIES,FIVE RIVERS CHILD CARE LTD,"3,284.14",FRIENDS & FAMILY FOSTERING,EXTERNAL AGENCIES AND BODIES,2103212089,1000018792,
04.02.2021,CHILDREN AND FAMILIES,FIVE RIVERS CHILD CARE LTD,"3,284.14",FRIENDS & FAMILY FOSTERING,EXTERNAL AGENCIES AND BODIES,2103212092,1000018792,
04.02.2021,CHILDREN AND FAMILIES,FIVE RIVERS CHILD CARE LTD,"3,393.61",FRIENDS & FAMILY FOSTERING,EXTERNAL AGENCIES AND BODIES,2103212087,1000018792,
04.02.2021,CHILDREN AND FAMILIES,FIVE RIVERS CHILD CARE LTD,"3,393.61",FRIENDS & FAMILY FOSTERING,EXTERNAL AGENCIES AND BODIES,2103212088,1000018792,
04.02.2021,CHILDREN AND FAMILIES,FIVE RIVERS CHILD CARE LTD,"3,393.61",FRIENDS & FAMILY FOSTERING,EXTERNAL AGENCIES AND BODIES,2103212090,1000018792,
04.02.2021,CHILDREN AND FAMILIES,FIVE RIVERS CHILD CARE LTD,"3,393.61",FRIENDS & FAMILY FOSTERING,EXTERNAL AGENCIES AND BODIES,2103212093,1000018792,
04.02.2021,CHILDREN AND FAMILIES,FIVE RIVERS CHILD CARE LTD,"3,522.49",FRIENDS & FAMILY FOSTERING,EXTERNAL AGENCIES AND BODIES,2103212091,1000018792,
04.02.2021,CHILDREN AND FAMILIES,SYNERGY FOSTERING LTD,"2,955.25",FRIENDS & FAMILY FOSTERING,EXTERNAL AGENCIES AND BODIES,2103212004,1000031559,
04.02.2021,CHILDREN AND FAMILIES,SYNERGY FOSTERING LTD,"3,119.44",FRIENDS & FAMILY FOSTERING,EXTERNAL AGENCIES AND BODIES,2103212007,1000031559,
04.02.2021,CHILDREN AND FAMILIES,SYNERGY FOSTERING LTD,"3,159.06",FRIENDS & FAMILY FOSTERING,EXTERNAL AGENCIES AND BODIES,2103211987,1000031559,
04.02.2021,CHILDREN AND FAMILIES,SYNERGY FOSTERING LTD,"3,159.06",FRIENDS & FAMILY FOSTERING,EXTERNAL AGENCIES AND BODIES,2103211994,1000031559,
04.02.2021,CHILDREN AND FAMILIES,SYNERGY FOSTERING LTD,"3,283.61",FRIENDS & FAMILY FOSTERING,EXTERNAL AGENCIES AND BODIES,2103211997,1000031559,
04.02.2021,CHILDREN AND FAMILIES,SYNERGY FOSTERING LTD,"3,334.58",FRIENDS & FAMILY FOSTERING,EXTERNAL AGENCIES AND BODIES,2103211996,1000031559,
04.02.2021,CHILDREN AND FAMILIES,SYNERGY FOSTERING LTD,"3,334.58",FRIENDS & FAMILY FOSTERING,EXTERNAL AGENCIES AND BODIES,2103212013,1000031559,
04.02.2021,CHILDREN AND FAMILIES,SYNERGY FOSTERING LTD,"3,510.07",FRIENDS & FAMILY FOSTERING,EXTERNAL AGENCIES AND BODIES,2103212005,1000031559,
04.02.2021,CHILDREN AND FAMILIES,SYNERGY FOSTERING LTD,"3,510.07",FRIENDS & FAMILY FOSTERING,EXTERNAL AGENCIES AND BODIES,2103212006,1000031559,
04.02.2021,CHILDREN AND FAMILIES,KASPER FOSTERING,"3,697.99",FRIENDS & FAMILY FOSTERING,EXTERNAL AGENCIES AND BODIES,2103211993,1000036628,
04.02.2021,CHILDREN AND FAMILIES,KASPER FOSTERING,"4,884.67",FRIENDS & FAMILY FOSTERING,EXTERNAL AGENCIES AND BODIES,2103211992,1000036628,
04.02.2021,CHILDREN AND FAMILIES,BY THE BRIDGE LTD,"4,218.48",FRIENDS & FAMILY FOSTERING,EXTERNAL AGENCIES AND BODIES,2103211999,1000043961,
04.02.2021,CHILDREN AND FAMILIES,BY THE BRIDGE LTD,"4,440.44",FRIENDS & FAMILY FOSTERING,EXTERNAL AGENCIES AND BODIES,2103211985,1000043961,
04.02.2021,CHILDREN AND FAMILIES,BY THE BRIDGE LTD,"4,512.05",FRIENDS & FAMILY FOSTERING,EXTERNAL AGENCIES AND BODIES,2103212002,1000043961,
04.02.2021,CHILDREN AND FAMILIES,BY THE BRIDGE LTD,"4,580.87",FRIENDS & FAMILY FOSTERING,EXTERNAL AGENCIES AND BODIES,2103212009,1000043961,
04.02.2021,CHILDREN AND FAMILIES,BY THE BRIDGE LTD,"4,658.40",FRIENDS & FAMILY FOSTERING,EXTERNAL AGENCIES AND BODIES,2103212011,1000043961,
04.02.2021,CHILDREN AND FAMILIES,BY THE BRIDGE LTD,"4,711.38",FRIENDS & FAMILY FOSTERING,EXTERNAL AGENCIES AND BODIES,2103211986,1000043961,
04.02.2021,CHILDREN AND FAMILIES,BY THE BRIDGE LTD,"4,903.58",FRIENDS & FAMILY FOSTERING,EXTERNAL AGENCIES AND BODIES,2103212010,1000043961,
04.02.2021,CHILDREN AND FAMILIES,BY THE BRIDGE LTD,"4,903.58",FRIENDS & FAMILY FOSTERING,EXTERNAL AGENCIES AND BODIES,2103212012,1000043961,
04.02.2021,CHILDREN AND FAMILIES,FOSTERING FOR YOU LTD,"3,271.21",FRIENDS & FAMILY FOSTERING,EXTERNAL AGENCIES AND BODIES,2103211989,1000080380,
04.02.2021,CHILDREN AND FAMILIES,FOSTERING FOR YOU LTD,"3,271.21",FRIENDS & FAMILY FOSTERING,EXTERNAL AGENCIES AND BODIES,2103211990,1000080380,
04.02.2021,CHILDREN AND FAMILIES,FOSTERING FOR YOU LTD,"3,443.39",FRIENDS & FAMILY FOSTERING,EXTERNAL AGENCIES AND BODIES,2103211988,1000080380,
04.02.2021,CHILDREN AND FAMILIES,FOSTERING FOR YOU LTD,"3,443.39",FRIENDS & FAMILY FOSTERING,EXTERNAL AGENCIES AND BODIES,2103211991,1000080380,
04.02.2021,CHILDREN AND FAMILIES,FOSTERING FOR YOU LTD,"3,443.39",FRIENDS & FAMILY FOSTERING,EXTERNAL AGENCIES AND BODIES,2103212000,1000080380,
04.02.2021,CHILDREN AND FAMILIES,FOSTERING FOR YOU LTD,"3,443.39",FRIENDS & FAMILY FOSTERING,EXTERNAL AGENCIES AND BODIES,2103212001,1000080380,
04.02.2021,CHILDREN AND FAMILIES,FOSTERING FOR YOU LTD,"3,443.39",FRIENDS & FAMILY FOSTERING,EXTERNAL AGENCIES AND BODIES,2103212008,1000080380,
04.02.2021,CHILDREN AND FAMILIES,DIVERSITY FOSTER CARE LTD,"4,108.69",FRIENDS & FAMILY FOSTERING,EXTERNAL AGENCIES AND BODIES,2103212014,1000081399,
04.02.2021,CHILDREN AND FAMILIES,DIVERSITY FOSTER CARE LTD,"4,108.69",FRIENDS & FAMILY FOSTERING,EXTERNAL AGENCIES AND BODIES,2103212015,1000081399,
04.02.2021,CHILDREN AND FAMILIES,FLOURISH FOSTERING LTD,"1,018.93",FRIENDS & FAMILY FOSTERING,EXTERNAL AGENCIES AND BODIES,2103211995,1000084796,
04.02.2021,CHILDREN AND FAMILIES,LOOK AHEAD CARE AND SUPPORT LTD,"2,505.24",SEMI-IND CARELEAVERS,EXTERNAL AGENCIES AND BODIES,2103211693,1000047299,
04.02.2021,CHILDREN AND FAMILIES,OWNLIFE LTD,"4,915.70",SEMI-IND CARELEAVERS,EXTERNAL AGENCIES AND BODIES,2103211691,1000056219,
04.02.2021,CHILDREN AND FAMILIES,HEXAGON HOUSING ASSOCIATION LTD,621.80,SEMI-IND CARELEAVERS,EXTERNAL AGENCIES AND BODIES,2103212052,1000056905,
04.02.2021,CHILDREN AND FAMILIES,CONTACT PROFESSIONALS,281.71,SEMI-IND CARELEAVERS,EXTERNAL AGENCIES AND BODIES,2103211687,1000057263,
04.02.2021,CHILDREN AND FAMILIES,PURPLE PEBBLES(CHILD CARE) SERVICES,"-1,789.98",SEMI-IND CARELEAVERS,COSTS RECOVERED,2103212274,1000070705,
04.02.2021,CHILDREN AND FAMILIES,PURPLE PEBBLES(CHILD CARE) SERVICES,"-1,750.00",SEMI-IND CARELEAVERS,COSTS RECOVERED,2103212273,1000070705,
04.02.2021,CHILDREN AND FAMILIES,PURPLE PEBBLES(CHILD CARE) SERVICES,-894.99,SEMI-IND CARELEAVERS,COSTS RECOVERED,2103212272,1000070705,
04.02.2021,CHILDREN AND FAMILIES,PURPLE PEBBLES(CHILD CARE) SERVICES,-894.99,SEMI-IND CARELEAVERS,COSTS RECOVERED,2103212280,1000070705,
04.02.2021,CHILDREN AND FAMILIES,PURPLE PEBBLES(CHILD CARE) SERVICES,-894.44,SEMI-IND CARELEAVERS,COSTS RECOVERED,2103212276,1000070705,
04.02.2021,CHILDREN AND FAMILIES,PURPLE PEBBLES(CHILD CARE) SERVICES,-819.68,SEMI-IND CARELEAVERS,COSTS RECOVERED,2103212277,1000070705,
04.02.2021,CHILDREN AND FAMILIES,PURPLE PEBBLES(CHILD CARE) SERVICES,-516.52,SEMI-IND CARELEAVERS,COSTS RECOVERED,2103212275,1000070705,
04.02.2021,CHILDREN AND FAMILIES,PURPLE PEBBLES(CHILD CARE) SERVICES,"1,660.71",SEMI-IND CARELEAVERS,EXTERNAL AGENCIES AND BODIES,2103212067,1000070705,
04.02.2021,CHILDREN AND FAMILIES,PURPLE PEBBLES(CHILD CARE) SERVICES,"1,705.00",SEMI-IND CARELEAVERS,EXTERNAL AGENCIES AND BODIES,2103212073,1000070705,
04.02.2021,CHILDREN AND FAMILIES,PURPLE PEBBLES(CHILD CARE) SERVICES,"1,992.86",SEMI-IND CARELEAVERS,EXTERNAL AGENCIES AND BODIES,2103212064,1000070705,
04.02.2021,CHILDREN AND FAMILIES,PURPLE PEBBLES(CHILD CARE) SERVICES,"2,048.21",SEMI-IND CARELEAVERS,EXTERNAL AGENCIES AND BODIES,2103212062,1000070705,
04.02.2021,CHILDREN AND FAMILIES,PURPLE PEBBLES(CHILD CARE) SERVICES,"2,103.57",SEMI-IND CARELEAVERS,EXTERNAL AGENCIES AND BODIES,2103212069,1000070705,
04.02.2021,CHILDREN AND FAMILIES,PURPLE PEBBLES(CHILD CARE) SERVICES,"2,480.00",SEMI-IND CARELEAVERS,EXTERNAL AGENCIES AND BODIES,2103212059,1000070705,
04.02.2021,CHILDREN AND FAMILIES,PURPLE PEBBLES(CHILD CARE) SERVICES,"2,590.71",SEMI-IND CARELEAVERS,EXTERNAL AGENCIES AND BODIES,2103212074,1000070705,
04.02.2021,CHILDREN AND FAMILIES,SILVER BIRCH CARE LTD,"3,875.00",SEMI-IND CARELEAVERS,EXTERNAL AGENCIES AND BODIES,2103211659,1000076525,
04.02.2021,CHILDREN AND FAMILIES,SILVER BIRCH CARE LTD,"3,875.00",SEMI-IND CARELEAVERS,EXTERNAL AGENCIES AND BODIES,2103211683,1000076525,
04.02.2021,CHILDREN AND FAMILIES,SILVER BIRCH CARE LTD,310.00,SEMI-IND CARELEAVERS,OTHER PAYMENTS FOR CLIENTS,2103211701,1000076525,
04.02.2021,CHILDREN AND FAMILIES,HARVEST CARE GROUP LTD,"2,103.35",SEMI-IND CARELEAVERS,EXTERNAL AGENCIES AND BODIES,2103211679,1000079059,
04.02.2021,CHILDREN AND FAMILIES,HARVEST CARE GROUP LTD,"2,103.35",SEMI-IND CARELEAVERS,EXTERNAL AGENCIES AND BODIES,2103211697,1000079059,
04.02.2021,CHILDREN AND FAMILIES,HARVEST CARE GROUP LTD,"2,433.50",SEMI-IND CARELEAVERS,EXTERNAL AGENCIES AND BODIES,2103211637,1000079059,
04.02.2021,CHILDREN AND FAMILIES,HARVEST CARE GROUP LTD,"2,433.50",SEMI-IND CARELEAVERS,EXTERNAL AGENCIES AND BODIES,2103211657,1000079059,
04.02.2021,CHILDREN AND FAMILIES,HARVEST CARE GROUP LTD,"2,433.50",SEMI-IND CARELEAVERS,EXTERNAL AGENCIES AND BODIES,2103211675,1000079059,
04.02.2021,CHILDREN AND FAMILIES,HARVEST CARE GROUP LTD,"2,433.50",SEMI-IND CARELEAVERS,EXTERNAL AGENCIES AND BODIES,2103211699,1000079059,
04.02.2021,CHILDREN AND FAMILIES,HARVEST CARE GROUP LTD,"2,435.67",SEMI-IND CARELEAVERS,EXTERNAL AGENCIES AND BODIES,2103211647,1000079059,
04.02.2021,CHILDREN AND FAMILIES,HARVEST CARE GROUP LTD,"2,435.67",SEMI-IND CARELEAVERS,EXTERNAL AGENCIES AND BODIES,2103211655,1000079059,
04.02.2021,CHILDREN AND FAMILIES,HARVEST CARE GROUP LTD,"3,764.02",SEMI-IND CARELEAVERS,EXTERNAL AGENCIES AND BODIES,2103211635,1000079059,
04.02.2021,CHILDREN AND FAMILIES,HARVEST CARE GROUP LTD,"3,764.02",SEMI-IND CARELEAVERS,EXTERNAL AGENCIES AND BODIES,2103211653,1000079059,
04.02.2021,CHILDREN AND FAMILIES,HARVEST CARE GROUP LTD,"4,262.50",SEMI-IND CARELEAVERS,EXTERNAL AGENCIES AND BODIES,2103211695,1000079059,
04.02.2021,CHILDREN AND FAMILIES,HARVEST CARE GROUP LTD,"4,262.50",SEMI-IND CARELEAVERS,EXTERNAL AGENCIES AND BODIES,2103211703,1000079059,
04.02.2021,CHILDREN AND FAMILIES,HARVEST CARE GROUP LTD,"4,539.02",SEMI-IND CARELEAVERS,EXTERNAL AGENCIES AND BODIES,2103211649,1000079059,
04.02.2021,CHILDREN AND FAMILIES,HARVEST CARE GROUP LTD,"4,539.02",SEMI-IND CARELEAVERS,EXTERNAL AGENCIES AND BODIES,2103211677,1000079059,
04.02.2021,CHILDREN AND FAMILIES,TRANSITIONAL PLUS CARE CIC,"5,978.57",SEMI-IND CARELEAVERS,EXTERNAL AGENCIES AND BODIES,2103211639,1000084188,
04.02.2021,CHILDREN AND FAMILIES,LOOK AHEAD CARE AND SUPPORT LTD,"3,630.63",SEMI-IND LAC 16-17,EXTERNAL AGENCIES AND BODIES,2103211741,1000047299,
04.02.2021,CHILDREN AND FAMILIES,LOOK AHEAD CARE AND SUPPORT LTD,"4,105.50",SEMI-IND LAC 16-17,EXTERNAL AGENCIES AND BODIES,2103211707,1000047299,
04.02.2021,CHILDREN AND FAMILIES,LOOK AHEAD CARE AND SUPPORT LTD,"4,105.50",SEMI-IND LAC 16-17,EXTERNAL AGENCIES AND BODIES,2103211709,1000047299,
04.02.2021,CHILDREN AND FAMILIES,LOOK AHEAD CARE AND SUPPORT LTD,"4,767.44",SEMI-IND LAC 16-17,EXTERNAL AGENCIES AND BODIES,2103211731,1000047299,
04.02.2021,CHILDREN AND FAMILIES,OWNLIFE LTD,"3,542.87",SEMI-IND LAC 16-17,EXTERNAL AGENCIES AND BODIES,2103211715,1000056219,
04.02.2021,CHILDREN AND FAMILIES,PURPLE PEBBLES(CHILD CARE) SERVICES,"1,948.57",SEMI-IND LAC 16-17,EXTERNAL AGENCIES AND BODIES,2103212078,1000070705,
04.02.2021,CHILDREN AND FAMILIES,PURPLE PEBBLES(CHILD CARE) SERVICES,"5,535.71",SEMI-IND LAC 16-17,EXTERNAL AGENCIES AND BODIES,2103212084,1000070705,
04.02.2021,CHILDREN AND FAMILIES,PURPLE PEBBLES(CHILD CARE) SERVICES,280.00,SEMI-IND LAC 16-17,OTHER PAYMENTS FOR CLIENTS,2103212079,1000070705,
04.02.2021,CHILDREN AND FAMILIES,SILVER BIRCH CARE LTD,"17,714.29",SEMI-IND LAC 16-17,EXTERNAL AGENCIES AND BODIES,2103211725,1000076525,
04.02.2021,CHILDREN AND FAMILIES,SILVER BIRCH CARE LTD,287.86,SEMI-IND LAC 16-17,OTHER PAYMENTS FOR CLIENTS,2103211727,1000076525,
04.02.2021,CHILDREN AND FAMILIES,SILVER BIRCH CARE LTD,420.00,SEMI-IND LAC 16-17,OTHER PAYMENTS FOR CLIENTS,2103211705,1000076525,
04.02.2021,CHILDREN AND FAMILIES,PATHWAY LTD,"4,650.00",SEMI-IND LAC 16-17,EXTERNAL AGENCIES AND BODIES,2103211717,1000080564,
04.02.2021,CHILDREN AND FAMILIES,HOLISTIC SUPPORTED LIVING LTD,"3,960.00",SEMI-IND LAC 16-17,EXTERNAL AGENCIES AND BODIES,2103211721,1000082130,
04.02.2021,CHILDREN AND FAMILIES,HOLISTIC SUPPORTED LIVING LTD,"14,920.00",SEMI-IND LAC 16-17,EXTERNAL AGENCIES AND BODIES,2103211723,1000082130,
04.02.2021,CHILDREN AND FAMILIES,QUALIFIED CARE RESIDENTS SERVICES LTD,"10,628.35",SEMI-IND LAC 16-17,EXTERNAL AGENCIES AND BODIES,2103211729,1000085856,
04.02.2021,CHILDREN AND FAMILIES,QUALIFIED CARE RESIDENTS SERVICES LTD,310.00,SEMI-IND LAC 16-17,OTHER PAYMENTS FOR CLIENTS,2103211743,1000085856,
04.02.2021,CHILDREN AND FAMILIES,HM COURTS & TRIBUNALS SERVICE,365.00,SFS MGMT & SUPPORT,LEGAL FEES & COURT COSTS,2103212195,1000075260,
04.02.2021,CHILDREN AND FAMILIES,HM COURTS & TRIBUNALS SERVICE,455.00,SFS MGMT & SUPPORT,LEGAL FEES & COURT COSTS,2103212198,1000075260,
04.02.2021,CHILDREN AND FAMILIES,HM COURTS & TRIBUNALS SERVICE,455.00,SFS MGMT & SUPPORT,LEGAL FEES & COURT COSTS,2103212234,1000075260,
04.02.2021,CHILDREN AND FAMILIES,HM COURTS & TRIBUNALS SERVICE,455.00,SFS MGMT & SUPPORT,LEGAL FEES & COURT COSTS,2103212235,1000075260,
04.02.2021,CHILDREN AND FAMILIES,HM COURTS & TRIBUNALS SERVICE,"2,055.00",SFS MGMT & SUPPORT,LEGAL FEES & COURT COSTS,2103212185,1000075260,
04.02.2021,CHILDREN AND FAMILIES,HM COURTS & TRIBUNALS SERVICE,"2,055.00",SFS MGMT & SUPPORT,LEGAL FEES & COURT COSTS,2103212194,1000075260,
04.02.2021,CHILDREN AND FAMILIES,HM COURTS & TRIBUNALS SERVICE,"2,055.00",SFS MGMT & SUPPORT,LEGAL FEES & COURT COSTS,2103212201,1000075260,
04.02.2021,CHILDREN AND FAMILIES,HM COURTS & TRIBUNALS SERVICE,"2,055.00",SFS MGMT & SUPPORT,LEGAL FEES & COURT COSTS,2103212202,1000075260,
04.02.2021,CHILDREN AND FAMILIES,HM COURTS & TRIBUNALS SERVICE,"2,055.00",SFS MGMT & SUPPORT,LEGAL FEES & COURT COSTS,2103212208,1000075260,
04.02.2021,CHILDREN AND FAMILIES,HM COURTS & TRIBUNALS SERVICE,"2,055.00",SFS MGMT & SUPPORT,LEGAL FEES & COURT COSTS,2103212217,1000075260,
04.02.2021,CHILDREN AND FAMILIES,HM COURTS & TRIBUNALS SERVICE,"2,055.00",SFS MGMT & SUPPORT,LEGAL FEES & COURT COSTS,2103212219,1000075260,
04.02.2021,CHILDREN AND FAMILIES,HM COURTS & TRIBUNALS SERVICE,"2,055.00",SFS MGMT & SUPPORT,LEGAL FEES & COURT COSTS,2103212220,1000075260,
04.02.2021,CHILDREN AND FAMILIES,HM COURTS & TRIBUNALS SERVICE,"2,055.00",SFS MGMT & SUPPORT,LEGAL FEES & COURT COSTS,2103212227,1000075260,
04.02.2021,CHILDREN AND FAMILIES,HM COURTS & TRIBUNALS SERVICE,"2,055.00",SFS MGMT & SUPPORT,LEGAL FEES & COURT COSTS,2103212228,1000075260,
04.02.2021,CHILDREN AND FAMILIES,HM COURTS & TRIBUNALS SERVICE,"2,055.00",SFS MGMT & SUPPORT,LEGAL FEES & COURT COSTS,2103212233,1000075260,
04.02.2021,CHILDREN AND FAMILIES,HM COURTS & TRIBUNALS SERVICE,"2,055.00",SFS MGMT & SUPPORT,LEGAL FEES & COURT COSTS,2103212241,1000075260,
04.02.2021,CHILDREN AND FAMILIES,HM COURTS & TRIBUNALS SERVICE,"2,055.00",SFS MGMT & SUPPORT,LEGAL FEES & COURT COSTS,2103212242,1000075260,
04.02.2021,CHILDREN AND FAMILIES,HM COURTS & TRIBUNALS SERVICE,"2,055.00",SFS MGMT & SUPPORT,LEGAL FEES & COURT COSTS,2103212243,1000075260,
04.02.2021,CHILDREN AND FAMILIES,HM COURTS & TRIBUNALS SERVICE,"2,055.00",SFS MGMT & SUPPORT,LEGAL FEES & COURT COSTS,2103212246,1000075260,
04.02.2021,CHILDREN AND FAMILIES,HM COURTS & TRIBUNALS SERVICE,"2,055.00",SFS MGMT & SUPPORT,LEGAL FEES & COURT COSTS,2103212249,1000075260,
04.02.2021,CHILDREN AND FAMILIES,HM COURTS & TRIBUNALS SERVICE,"2,055.00",SFS MGMT & SUPPORT,LEGAL FEES & COURT COSTS,2103212257,1000075260,
04.02.2021,CHILDREN AND FAMILIES,HM COURTS & TRIBUNALS SERVICE,"2,055.00",SFS MGMT & SUPPORT,LEGAL FEES & COURT COSTS,2103212267,1000075260,
04.02.2021,CHILDREN AND FAMILIES,HM COURTS & TRIBUNALS SERVICE,"2,055.00",SFS MGMT & SUPPORT,LEGAL FEES & COURT COSTS,2103212268,1000075260,
04.02.2021,CHILDREN AND FAMILIES,HM COURTS & TRIBUNALS SERVICE,"2,055.00",SFS MGMT & SUPPORT,LEGAL FEES & COURT COSTS,2103212270,1000075260,
04.02.2021,CHILDREN AND FAMILIES,ARC COMMUNITY TRUSTEES,650.00,SPECIAL GUARDIANSHIP,EXTERNAL AGENCIES AND BODIES,5902453799,1000046206,
04.02.2021,CHILDREN AND FAMILIES,BE BRIGHT PROJECT LTD,988.00,TEAM A,EXTERNAL AGENCIES AND BODIES,5902453796,1000086212,
04.02.2021,CHILDREN AND FAMILIES,BE BRIGHT PROJECT LTD,988.00,TEAM A,EXTERNAL AGENCIES AND BODIES,5902453797,1000086212,
04.02.2021,CHILDREN AND FAMILIES,BE BRIGHT PROJECT LTD,988.00,TEAM A,EXTERNAL AGENCIES AND BODIES,5902453798,1000086212,
04.02.2021,CHILDREN AND FAMILIES,ZENITH CARS LTD,761.00,TEAM B,HIRED VEHICLES,5902453860,1000070570,
04.02.2021,CHILDREN AND FAMILIES,ZENITH CARS LTD,"1,180.00",TEAM C,HIRED VEHICLES,5902453860,1000070570,
04.02.2021,CHILDREN AND FAMILIES,LOOK AHEAD CARE AND SUPPORT LTD,"2,909.65",UASC CARELEAVERS,EXTERNAL AGENCIES AND BODIES,2103211685,1000047299,
04.02.2021,CHILDREN AND FAMILIES,PURPLE PEBBLES(CHILD CARE) SERVICES,-516.52,UASC CARELEAVERS,COSTS RECOVERED,2103212278,1000070705,
04.02.2021,CHILDREN AND FAMILIES,PURPLE PEBBLES(CHILD CARE) SERVICES,350.00,UASC CARELEAVERS,EXTERNAL AGENCIES AND BODIES,2103212094,1000070705,
04.02.2021,CHILDREN AND FAMILIES,PURPLE PEBBLES(CHILD CARE) SERVICES,"1,616.43",UASC CARELEAVERS,EXTERNAL AGENCIES AND BODIES,2103212066,1000070705,
04.02.2021,CHILDREN AND FAMILIES,PURPLE PEBBLES(CHILD CARE) SERVICES,"1,626.43",UASC CARELEAVERS,EXTERNAL AGENCIES AND BODIES,2103212060,1000070705,
04.02.2021,CHILDREN AND FAMILIES,PURPLE PEBBLES(CHILD CARE) SERVICES,"1,660.71",UASC CARELEAVERS,EXTERNAL AGENCIES AND BODIES,2103212053,1000070705,
04.02.2021,CHILDREN AND FAMILIES,PURPLE PEBBLES(CHILD CARE) SERVICES,"1,749.29",UASC CARELEAVERS,EXTERNAL AGENCIES AND BODIES,2103212071,1000070705,
04.02.2021,CHILDREN AND FAMILIES,PURPLE PEBBLES(CHILD CARE) SERVICES,"1,771.43",UASC CARELEAVERS,EXTERNAL AGENCIES AND BODIES,2103212063,1000070705,
04.02.2021,CHILDREN AND FAMILIES,PURPLE PEBBLES(CHILD CARE) SERVICES,"1,815.71",UASC CARELEAVERS,EXTERNAL AGENCIES AND BODIES,2103212058,1000070705,
04.02.2021,CHILDREN AND FAMILIES,PURPLE PEBBLES(CHILD CARE) SERVICES,"1,882.14",UASC CARELEAVERS,EXTERNAL AGENCIES AND BODIES,2103212061,1000070705,
04.02.2021,CHILDREN AND FAMILIES,PURPLE PEBBLES(CHILD CARE) SERVICES,"1,882.14",UASC CARELEAVERS,EXTERNAL AGENCIES AND BODIES,2103212068,1000070705,
04.02.2021,CHILDREN AND FAMILIES,PURPLE PEBBLES(CHILD CARE) SERVICES,"1,904.29",UASC CARELEAVERS,EXTERNAL AGENCIES AND BODIES,2103212075,1000070705,
04.02.2021,CHILDREN AND FAMILIES,PURPLE PEBBLES(CHILD CARE) SERVICES,"1,981.79",UASC CARELEAVERS,EXTERNAL AGENCIES AND BODIES,2103212057,1000070705,
04.02.2021,CHILDREN AND FAMILIES,PURPLE PEBBLES(CHILD CARE) SERVICES,"1,992.86",UASC CARELEAVERS,EXTERNAL AGENCIES AND BODIES,2103212056,1000070705,
04.02.2021,CHILDREN AND FAMILIES,PURPLE PEBBLES(CHILD CARE) SERVICES,"2,059.29",UASC CARELEAVERS,EXTERNAL AGENCIES AND BODIES,2103212065,1000070705,
04.02.2021,CHILDREN AND FAMILIES,PURPLE PEBBLES(CHILD CARE) SERVICES,"2,092.50",UASC CARELEAVERS,EXTERNAL AGENCIES AND BODIES,2103212072,1000070705,
04.02.2021,CHILDREN AND FAMILIES,PURPLE PEBBLES(CHILD CARE) SERVICES,"2,435.71",UASC CARELEAVERS,EXTERNAL AGENCIES AND BODIES,2103212070,1000070705,
04.02.2021,CHILDREN AND FAMILIES,PURPLE PEBBLES(CHILD CARE) SERVICES,280.00,UASC CARELEAVERS,OTHER PAYMENTS FOR CLIENTS,2103212054,1000070705,
04.02.2021,CHILDREN AND FAMILIES,PURPLE PEBBLES(CHILD CARE) SERVICES,350.00,UASC CARELEAVERS,OTHER PAYMENTS FOR CLIENTS,2103212095,1000070705,
04.02.2021,CHILDREN AND FAMILIES,SILVER BIRCH CARE LTD,"3,875.00",UASC CARELEAVERS,EXTERNAL AGENCIES AND BODIES,2103211689,1000076525,
04.02.2021,CHILDREN AND FAMILIES,HARVEST CARE GROUP LTD,707.08,UASC CARELEAVERS,EXTERNAL AGENCIES AND BODIES,2103211681,1000079059,
04.02.2021,CHILDREN AND FAMILIES,HARVEST CARE GROUP LTD,"1,900.08",UASC CARELEAVERS,EXTERNAL AGENCIES AND BODIES,2103211661,1000079059,
04.02.2021,CHILDREN AND FAMILIES,HARVEST CARE GROUP LTD,"1,928.40",UASC CARELEAVERS,EXTERNAL AGENCIES AND BODIES,2103211669,1000079059,
04.02.2021,CHILDREN AND FAMILIES,HARVEST CARE GROUP LTD,"1,928.40",UASC CARELEAVERS,EXTERNAL AGENCIES AND BODIES,2103211671,1000079059,
04.02.2021,CHILDREN AND FAMILIES,HARVEST CARE GROUP LTD,"1,992.68",UASC CARELEAVERS,EXTERNAL AGENCIES AND BODIES,2103211641,1000079059,
04.02.2021,CHILDREN AND FAMILIES,HARVEST CARE GROUP LTD,"1,992.68",UASC CARELEAVERS,EXTERNAL AGENCIES AND BODIES,2103211643,1000079059,
04.02.2021,CHILDREN AND FAMILIES,HARVEST CARE GROUP LTD,"1,992.68",UASC CARELEAVERS,EXTERNAL AGENCIES AND BODIES,2103211645,1000079059,
04.02.2021,CHILDREN AND FAMILIES,HARVEST CARE GROUP LTD,"1,992.68",UASC CARELEAVERS,EXTERNAL AGENCIES AND BODIES,2103211673,1000079059,
04.02.2021,CHILDREN AND FAMILIES,HARVEST CARE GROUP LTD,"2,035.80",UASC CARELEAVERS,EXTERNAL AGENCIES AND BODIES,2103211665,1000079059,
04.02.2021,CHILDREN AND FAMILIES,HARVEST CARE GROUP LTD,"2,103.66",UASC CARELEAVERS,EXTERNAL AGENCIES AND BODIES,2103211663,1000079059,
04.02.2021,CHILDREN AND FAMILIES,HARVEST CARE GROUP LTD,"2,103.66",UASC CARELEAVERS,EXTERNAL AGENCIES AND BODIES,2103211667,1000079059,
04.02.2021,CHILDREN AND FAMILIES,CARE O LINE,"3,344.20",UASC LAC 16-17,EXTERNAL AGENCIES AND BODIES,2103211735,11241743,
04.02.2021,CHILDREN AND FAMILIES,CARE O LINE,"5,084.90",UASC LAC 16-17,EXTERNAL AGENCIES AND BODIES,2103211711,11241743,
04.02.2021,CHILDREN AND FAMILIES,CARE O LINE,"5,084.90",UASC LAC 16-17,EXTERNAL AGENCIES AND BODIES,2103211739,11241743,
04.02.2021,CHILDREN AND FAMILIES,CARE O LINE,"5,321.30",UASC LAC 16-17,EXTERNAL AGENCIES AND BODIES,2103211713,11241743,
04.02.2021,CHILDREN AND FAMILIES,OWNLIFE LTD,"2,790.00",UASC LAC 16-17,EXTERNAL AGENCIES AND BODIES,2103211737,1000056219,
04.02.2021,CHILDREN AND FAMILIES,PURPLE PEBBLES(CHILD CARE) SERVICES,"1,948.57",UASC LAC 16-17,EXTERNAL AGENCIES AND BODIES,2103212081,1000070705,
04.02.2021,CHILDREN AND FAMILIES,PURPLE PEBBLES(CHILD CARE) SERVICES,"1,948.57",UASC LAC 16-17,EXTERNAL AGENCIES AND BODIES,2103212083,1000070705,
04.02.2021,CHILDREN AND FAMILIES,PURPLE PEBBLES(CHILD CARE) SERVICES,"1,948.57",UASC LAC 16-17,EXTERNAL AGENCIES AND BODIES,2103212085,1000070705,
04.02.2021,CHILDREN AND FAMILIES,PURPLE PEBBLES(CHILD CARE) SERVICES,280.00,UASC LAC 16-17,OTHER PAYMENTS FOR CLIENTS,2103212077,1000070705,
04.02.2021,CHILDREN AND FAMILIES,PURPLE PEBBLES(CHILD CARE) SERVICES,280.00,UASC LAC 16-17,OTHER PAYMENTS FOR CLIENTS,2103212082,1000070705,
04.02.2021,CHILDREN AND FAMILIES,PURPLE PEBBLES(CHILD CARE) SERVICES,280.00,UASC LAC 16-17,OTHER PAYMENTS FOR CLIENTS,2103212086,1000070705,
04.02.2021,COMMUNITIES,LONDON CARE LTD,273.03,NO RECOURSE TO PUBLIC FUNDS,HOMECARE - C&V,2103212139,1000003398,
04.02.2021,COMMUNITIES,LONDON CARE LTD,"1,100.98",NO RECOURSE TO PUBLIC FUNDS,HOMECARE - C&V,2103212113,1000003398,
04.02.2021,COMMUNITIES,LONDON CARE LTD,"1,120.85",NO RECOURSE TO PUBLIC FUNDS,HOMECARE - C&V,2103212138,1000003398,
04.02.2021,COMMUNITIES,ROSEMONT CARE LTD,908.05,NO RECOURSE TO PUBLIC FUNDS,HOMECARE - C&V,2103212096,1000084219,
04.02.2021,CUSTOMER EXPERIENCE,GREATER LONDON AUTHORITY,875.00,HOUSING NEEDS,DATA COMMUNICATIONS,5902453845,1000015827,
04.02.2021,CUSTOMER EXPERIENCE HGF,VALTECH LTD,304.50,BLUE BADGES,MATERIALS,5902453014,1000082245,
04.02.2021,CUSTOMER EXPERIENCE HGF,AMITY ESTATES LTD,"3,000.00",HOMELESS PROJECTS,GRANTS,5902453083,1000050384,
04.02.2021,CUSTOMER EXPERIENCE HGF,PETER JAMES ESTATE LTD,"3,083.84",HOMELESS PROJECTS,GRANTS,5902453638,1000075398,
04.02.2021,CUSTOMER EXPERIENCE HGF,MAKING MOVES LTD,"2,117.28",HOMELESS PROJECTS,GRANTS,5902453917,1000081632,
04.02.2021,CUSTOMER EXPERIENCE HGF,NOWMEDICAL LTD,"3,118.00",HOUSING OPTIONS,PROFESSIONAL FEES,5902453956,1000068185,
04.02.2021,CUSTOMER EXPERIENCE HGF,RUTH APPLEBY ALIS,450.00,HOUSING OPTIONS,TRAINING,5902453960,1000084741,
04.02.2021,CUSTOMER EXPERIENCE HGF,MIRENTCO LTD,589.16,HOUSING OPTIONS,PROFESSIONAL FEES,5902453970,1000085327,
04.02.2021,CUSTOMER EXPERIENCE HGF,MIRENTCO LTD,"1,000.00",HOUSING OPTIONS,PROFESSIONAL FEES,5902453970,1000085327,
04.02.2021,CUSTOMER EXPERIENCE HGF,KINDLY PROPERTIES LTD,"17,330.25",NIGHTLY TA (NSC),EXTERNAL AGENCIES AND BODIES,5902453998,1000060734,
04.02.2021,CUSTOMER EXPERIENCE HGF,WILLOW ESTATE AGENTS (LONDON) LTD,"2,040.42",PSL PLACEMENTS,EXTERNAL AGENCIES AND BODIES,5902453815,1000060607,
04.02.2021,CUSTOMER EXPERIENCE HGF,EASYMOVE EA LIMITED,"14,629.68",PSL PLACEMENTS,EXTERNAL AGENCIES AND BODIES,5902453893,1000066859,
04.02.2021,ENVIRONMENT AND LEISURE,WATERMAN INFRASTRUCTURE & ENVIRONMENT LTD,"1,150.00",CAPITAL PS (LEISURE),CONSTR'N SUB CONTRACT - NON CERTIFICATED,5902453641,1000060529,
04.02.2021,ENVIRONMENT AND LEISURE,NELL GWYNN NURSERY SCHOOL,"4,500.00",CAPITAL PS (LEISURE),CAPITAL GRANTS,5902453810,5001000049,
04.02.2021,ENVIRONMENT AND LEISURE,LBOX COMMUNICATIONS,"12,512.50",COVID-19 TEST & TRACE SUPPORT GRANT,MARKETING & PUBLICITY SERVICES,5902453844,1000044844,
04.02.2021,ENVIRONMENT AND LEISURE,GO PRO CHEMICALS LTD,514.99,MANAGEMENT TEAM,MATERIALS,5902452521,1000079528,
04.02.2021,ENVIRONMENT AND LEISURE,GO PRO CHEMICALS LTD,"3,500.58",MANAGEMENT TEAM,MATERIALS,5902452729,1000079528,
04.02.2021,ENVIRONMENT AND LEISURE,BRITISH GAS,260.06,SANDGATE STREET,ELECTRICITY,5902453822,1000054825,
04.02.2021,ENVIRONMENT DIRECTORATE,DAWSONGROUP VANS LTD,275.90,COMMERCIAL VEH CTRL A/C,HIRED VEHICLES,5902453992,1000082230,
04.02.2021,ENVIRONMENT DIRECTORATE,DAWSONGROUP VANS LTD,275.90,COMMERCIAL VEH CTRL A/C,HIRED VEHICLES,5902453995,1000082230,
04.02.2021,ENVIRONMENT DIRECTORATE,GREENHAM TRADING LTD,457.87,ESTATE CLEANING-GENERAL,MATERIALS,5902453873,1000006610,
04.02.2021,ENVIRONMENT DIRECTORATE,GREENHAM TRADING LTD,"1,343.17",ESTATE CLEANING-GENERAL,MATERIALS,5902453872,1000006610,
04.02.2021,ENVIRONMENT DIRECTORATE,SPALDINGS (UK) LTD,562.75,GROUNDS MAINTENANCE - GENERAL,MATERIALS,5902453906,1907384,
04.02.2021,ENVIRONMENT DIRECTORATE,SPALDINGS (UK) LTD,"1,192.85",GROUNDS MAINTENANCE - GENERAL,MATERIALS,5902453986,1907384,
04.02.2021,ENVIRONMENT DIRECTORATE,SPALDINGS (UK) LTD,"2,149.00",GROUNDS MAINTENANCE - GENERAL,MATERIALS,5902453987,1907384,
04.02.2021,ENVIRONMENT DIRECTORATE,HM COURTS & TRIBUNALS SERVICE,255.00,PARKING OVERHEADS,LEGAL FEES & COURT COSTS,2103212239,1000075260,
04.02.2021,ENVIRONMENT DIRECTORATE,HM COURTS & TRIBUNALS SERVICE,308.00,SASBU,LEGAL FEES & COURT COSTS,2103212176,1000075260,
04.02.2021,ENVIRONMENT DIRECTORATE,HM COURTS & TRIBUNALS SERVICE,308.00,SASBU,LEGAL FEES & COURT COSTS,2103212178,1000075260,
04.02.2021,ENVIRONMENT DIRECTORATE,HM COURTS & TRIBUNALS SERVICE,308.00,SASBU,LEGAL FEES & COURT COSTS,2103212180,1000075260,
04.02.2021,ENVIRONMENT DIRECTORATE,HM COURTS & TRIBUNALS SERVICE,308.00,SASBU,LEGAL FEES & COURT COSTS,2103212181,1000075260,
04.02.2021,ENVIRONMENT DIRECTORATE,HM COURTS & TRIBUNALS SERVICE,308.00,SASBU,LEGAL FEES & COURT COSTS,2103212203,1000075260,
04.02.2021,ENVIRONMENT DIRECTORATE,HM COURTS & TRIBUNALS SERVICE,308.00,SASBU,LEGAL FEES & COURT COSTS,2103212212,1000075260,
04.02.2021,ENVIRONMENT DIRECTORATE,HM COURTS & TRIBUNALS SERVICE,308.00,SASBU,LEGAL FEES & COURT COSTS,2103212224,1000075260,
04.02.2021,ENVIRONMENT DIRECTORATE,HM COURTS & TRIBUNALS SERVICE,308.00,SASBU,LEGAL FEES & COURT COSTS,2103212237,1000075260,
04.02.2021,F & C S EXCLUDING CORPORATE BUDGETS,WILKS HEAD & EVE LLP,"9,000.00",NNDR,CONSULTANTS SERVICES,5902453931,1000042700,
04.02.2021,HOUSING GENERAL FUND,FLEXIFORM BUSINESS FURNITURE LIMITED,"17,850.00",CAPITAL PS (HOUSING GF),FURNITURE & FITTINGS ACQUISITION,5902453937,1000043435,
04.02.2021,HOUSING GENERAL FUND,BUILDTRUST LTD,350.00,CAPITAL PS (HOUSING GF),CAPITAL GRANTS,5902453839,1000079190,
04.02.2021,HOUSING HRA,POTTER RAPER LTD,"13,582.43",CAPITAL PS (HRA),CONSTRUCTION FEES  - EXTERNAL,5902452676,1009369,
04.02.2021,HOUSING HRA,PHILIP PANK PARTNERSHIP,"22,818.37",CAPITAL PS (HRA),CONSTRUCTION FEES - EMPLOYERS AGENT,5902452871,1015501,
04.02.2021,HOUSING HRA,CALFORD SEADEN LLP,"3,664.18",CAPITAL PS (HRA),CONSTRUCTION MAIN CONTRACT,5902453949,1061592,
04.02.2021,HOUSING HRA,ENGIE REGENERATION (APOLLO) LTD,"260,071.43",CAPITAL PS (HRA),CONSTRUCTION MAIN CONTRACT -CERTIFICATED,2103212284,4000449,
04.02.2021,HOUSING HRA,BAILY GARNER (HEALTH AND SAFETY) LIMITED,"5,061.60",CAPITAL PS (HRA),CONSTRUCTION FEES - EMPLOYERS AGENT,5902453811,1000033754,
04.02.2021,HOUSING HRA,SOUTHERN GAS NETWORKS PLC,"50,511.34",CAPITAL PS (HRA),CONSTRUCTION FEES  - EXTERNAL,5902453825,1000048571,
04.02.2021,HOUSING HRA,SHERCURITY LTD,"3,360.00",CAPITAL PS (REGEN),CONSTRUCTION SITE COSTS,5902453335,1000067090,
04.02.2021,HUMAN RESOURCES,WORKING ON WELLBEING LTD,690.00,OPTIMA HEALTH,MEDICAL / HEALTH & SAFETY SERVICES,5902453837,1000077251,
04.02.2021,HUMAN RESOURCES,WORKING ON WELLBEING LTD,"7,653.00",OPTIMA HEALTH,MEDICAL / HEALTH & SAFETY SERVICES,5902453835,1000077251,
04.02.2021,LEISURE DIRECTORATE,KENT COUNTY COUNCIL - LASER,293.05,BURGESS AREA TEAM,ELECTRICITY,5902453969,1000012926,
04.02.2021,LEISURE DIRECTORATE,KENT COUNTY COUNCIL - LASER,768.97,BURGESS SPORTS CENTRE,ELECTRICITY,5902453994,1000012926,
04.02.2021,LEISURE DIRECTORATE,QUADRON SERVICES LIMITED,-932.30,CLIENT SERV(GRNS MAIN),OTHER CONTRACTORS,5902453955,1000066528,
04.02.2021,LEISURE DIRECTORATE,QUADRON SERVICES LIMITED,932.67,CLIENT SERV(GRNS MAIN),OTHER CONTRACTORS,5902453944,1000066528,
04.02.2021,LEISURE DIRECTORATE,F G MARSHALL LTD,551.35,CREMATORIUM,MATERIALS,5902452743,1002639,
04.02.2021,LEISURE DIRECTORATE,ASKEWS & HOLTS LIBRARY SERVICES LTD,254.04,STOCK SERVICES,BOOKS & PUBLICATIONS,5902452945,1494168,
04.02.2021,MODERNISATION HGF,ROYAL MAIL GROUP LTD,"1,613.71",160 TOOLEY ST.,POSTAGES,5902453127,1000008168,
04.02.2021,MODERNISATION HGF,HM COURTS & TRIBUNALS SERVICE,255.00,CFM OPERATIONAL BUDGET,LEGAL FEES & COURT COSTS,2103212222,1000075260,
04.02.2021,PLANNING AND TRANSPORT,UNBOXED CONSULTING LTD,"43,333.33",PLANNING POLICY TEAM,CONSULTANTS SERVICES,5902453833,1000082469,
04.02.2021,PLANNING AND TRANSPORT,UNBOXED CONSULTING LTD,"80,000.00",PLANNING POLICY TEAM,CONSULTANTS SERVICES,5902453831,1000082469,
04.02.2021,PLANNING AND TRANSPORT,UNBOXED CONSULTING LTD,"80,000.00",PLANNING POLICY TEAM,CONSULTANTS SERVICES,5902453832,1000082469,
04.02.2021,PLANNING AND TRANSPORT,LAND USE CONSULTANTS LTD,"5,246.75",STRATEGIC APPLICATIONS,PROFESSIONAL FEES,5902452946,11132526,
04.02.2021,RESIDENT SERVICES,OCEAN MEDIA GROUP LIMITED,907.25,HOUSING STRATEGY (HRA),SUBSCRIPTIONS,5902453932,1000003205,
04.02.2021,RESIDENT SERVICES,HM COURTS & TRIBUNALS SERVICE,255.00,OPERATIONS/OFFICES ACCOMMODATION,LEGAL FEES & COURT COSTS,2103212199,1000075260,
04.02.2021,RESIDENT SERVICES,HM COURTS & TRIBUNALS SERVICE,355.00,OPERATIONS/OFFICES ACCOMMODATION,LEGAL FEES & COURT COSTS,2103212238,1000075260,
04.02.2021,RESIDENT SERVICES,HM COURTS & TRIBUNALS SERVICE,355.00,OPERATIONS/OFFICES ACCOMMODATION,LEGAL FEES & COURT COSTS,2103212255,1000075260,
04.02.2021,RESIDENT SERVICES,HM COURTS & TRIBUNALS SERVICE,355.00,OPERATIONS/OFFICES ACCOMMODATION,LEGAL FEES & COURT COSTS,2103212269,1000075260,
04.02.2021,RESIDENT SERVICES,RELIANCE HIGH-TECH LTD,"1,789.88",OPERATIONS/OFFICES ACCOMMODATION,OFFICE EXPENSES,5902453431,1000079374,
04.02.2021,RESIDENT SERVICES,SILK & MACKMAN SERVICES LTD,"8,457.98",TA HOSTELS,PEST CONTROL,2103211613,3000001590,
04.02.2021,RESIDENT SERVICES,NORBURY PROPERTY SERVICES (LONDON) LTD,"6,494.50",TA PLACEMENTS,EXTERNAL AGENCIES AND BODIES,5902453817,1000075566,
04.02.2021,SBS SUPPORT,CASTLETON TECHNOLOGY LTD,"1,220.00",ICT & COMMUNICATIONS,SOFTWARE,5902453971,1000059550,
04.02.2021,SBS SUPPORT,CASTLETON TECHNOLOGY LTD,"2,198.81",ICT & COMMUNICATIONS,SOFTWARE,5902453904,1000059550,
04.02.2021,SBS SUPPORT,SIEMENS FINANCIAL SERVICES LIMITED,607.59,R & M OVERHEADS,CATERING MATERIALS & SUPPLIES,5902453897,1000053403,
04.02.2021,SBS SUPPORT,KNK BUILDING SERVICES LTD,"2,368.29",SBS - HOLDING ACCOUNT,OTHER CONTRACTORS,2103212285,3000001728,
04.02.2021,SBS SUPPORT,SANDERSONS BUILDING SERVICES LTD,"25,263.18",SBS - HOLDING ACCOUNT,OTHER CONTRACTORS,2103212271,3000002065,
04.02.2021,STRATEGIC FINANCING BUDGETS,COMENSURA LTD,"666,330.65",WEEKLY PAYMENTS,AGENCY STAFF,5902453905,1000051261,
05.02.2021,ADULT SOCIAL CARE,REDACTED PERSONAL DATA,488.00,APPOINTEESHIPS,OTHER PAYMENTS FOR CLIENTS,REDACTED,REDACTED,
05.02.2021,ADULT SOCIAL CARE,CHOICE SUPPORT,"1,587.41",DIR OF ASC,EXTERNAL AGENCIES AND BODIES,5902453283,1104183,
05.02.2021,ADULT SOCIAL CARE,CHOICE SUPPORT,"8,832.00",DIR OF ASC,EXTERNAL AGENCIES AND BODIES,5902453286,1104183,
05.02.2021,ADULT SOCIAL CARE,FOSTERING SUPPORT GROUP LTD,"2,610.02",DISABILITIES LAC,EXTERNAL AGENCIES AND BODIES,2103212502,1000065830,
05.02.2021,ADULT SOCIAL CARE,THAMES HOMECARE SERVICE LTD,367.94,DISCHARGE TO ACCESS,HOMECARE - C&V,2103212370,1000079295,
05.02.2021,ADULT SOCIAL CARE,THAMES HOMECARE SERVICE LTD,286.18,DISCHARGE TO ACCESS,HOMECARE - SPOT,2103212436,1000079295,
05.02.2021,ADULT SOCIAL CARE,BEDE CAFE PROJECT,290.00,LD LTS 18-64,DAYCARE,2103212509,1553877,
05.02.2021,ADULT SOCIAL CARE,BEDE CAFE PROJECT,290.00,LD LTS 18-64,DAYCARE,2103212513,1553877,
05.02.2021,ADULT SOCIAL CARE,BEDE CAFE PROJECT,290.00,LD LTS 18-64,DAYCARE,2103212527,1553877,
05.02.2021,ADULT SOCIAL CARE,BEDE CAFE PROJECT,290.00,LD LTS 18-64,DAYCARE,2103212537,1553877,
05.02.2021,ADULT SOCIAL CARE,BEDE CAFE PROJECT,350.00,LD LTS 18-64,DAYCARE,2103212525,1553877,
05.02.2021,ADULT SOCIAL CARE,BEDE CAFE PROJECT,580.00,LD LTS 18-64,DAYCARE,2103212511,1553877,
05.02.2021,ADULT SOCIAL CARE,BEDE CAFE PROJECT,580.00,LD LTS 18-64,DAYCARE,2103212512,1553877,
05.02.2021,ADULT SOCIAL CARE,BEDE CAFE PROJECT,580.00,LD LTS 18-64,DAYCARE,2103212519,1553877,
05.02.2021,ADULT SOCIAL CARE,BEDE CAFE PROJECT,580.00,LD LTS 18-64,DAYCARE,2103212520,1553877,
05.02.2021,ADULT SOCIAL CARE,BEDE CAFE PROJECT,580.00,LD LTS 18-64,DAYCARE,2103212524,1553877,
05.02.2021,ADULT SOCIAL CARE,BEDE CAFE PROJECT,580.00,LD LTS 18-64,DAYCARE,2103212526,1553877,
05.02.2021,ADULT SOCIAL CARE,BEDE CAFE PROJECT,580.00,LD LTS 18-64,DAYCARE,2103212531,1553877,
05.02.2021,ADULT SOCIAL CARE,BEDE CAFE PROJECT,580.00,LD LTS 18-64,DAYCARE,2103212533,1553877,
05.02.2021,ADULT SOCIAL CARE,BEDE CAFE PROJECT,580.00,LD LTS 18-64,DAYCARE,2103212534,1553877,
05.02.2021,ADULT SOCIAL CARE,BEDE CAFE PROJECT,580.00,LD LTS 18-64,DAYCARE,2103212538,1553877,
05.02.2021,ADULT SOCIAL CARE,BEDE CAFE PROJECT,580.00,LD LTS 18-64,DAYCARE,2103212539,1553877,
05.02.2021,ADULT SOCIAL CARE,BEDE CAFE PROJECT,580.00,LD LTS 18-64,DAYCARE,2103212540,1553877,
05.02.2021,ADULT SOCIAL CARE,BEDE CAFE PROJECT,870.00,LD LTS 18-64,DAYCARE,2103212517,1553877,
05.02.2021,ADULT SOCIAL CARE,BEDE CAFE PROJECT,"1,160.00",LD LTS 18-64,DAYCARE,2103212515,1553877,
05.02.2021,ADULT SOCIAL CARE,BEDE CAFE PROJECT,"1,160.00",LD LTS 18-64,DAYCARE,2103212516,1553877,
05.02.2021,ADULT SOCIAL CARE,BEDE CAFE PROJECT,"1,160.00",LD LTS 18-64,DAYCARE,2103212532,1553877,
05.02.2021,ADULT SOCIAL CARE,BEDE CAFE PROJECT,"1,160.00",LD LTS 18-64,DAYCARE,2103212536,1553877,
05.02.2021,ADULT SOCIAL CARE,BEDE CAFE PROJECT,"1,160.00",LD LTS 18-64,DAYCARE,2103212541,1553877,
05.02.2021,ADULT SOCIAL CARE,BEDE CAFE PROJECT,"1,160.00",LD LTS 18-64,DAYCARE,2103212542,1553877,
05.02.2021,ADULT SOCIAL CARE,BEDE CAFE PROJECT,"1,275.00",LD LTS 18-64,DAYCARE,2103212518,1553877,
05.02.2021,ADULT SOCIAL CARE,BEDE CAFE PROJECT,"1,450.00",LD LTS 18-64,DAYCARE,2103212529,1553877,
05.02.2021,ADULT SOCIAL CARE,BEDE CAFE PROJECT,"2,750.00",LD LTS 18-64,DAYCARE,2103212530,1553877,
05.02.2021,ADULT SOCIAL CARE,BEDE CAFE PROJECT,580.00,LD LTS 18-64,SUPPORTED LIVING,2103212528,1553877,
05.02.2021,ADULT SOCIAL CARE,CARE O LINE,"1,760.00",LD LTS 18-64,SUPPORTED LIVING,2103212543,11241743,
05.02.2021,ADULT SOCIAL CARE,CARE O LINE,"2,200.00",LD LTS 18-64,SUPPORTED LIVING,2103212544,11241743,
05.02.2021,ADULT SOCIAL CARE,BEDE CAFE PROJECT,350.00,MH LTS 18-64,DAYCARE,2103212523,1553877,
05.02.2021,ADULT SOCIAL CARE,THAMES HOMECARE SERVICE LTD,590.53,MH LTS 18-64,HOMECARE - SPOT,2103212433,1000079295,
05.02.2021,ADULT SOCIAL CARE,THAMES HOMECARE SERVICE LTD,472.42,MH LTS 65+,HOMECARE - SPOT,2103212458,1000079295,
05.02.2021,ADULT SOCIAL CARE,THAMES HOMECARE SERVICE LTD,258.92,PHY LTS 18-64,HOMECARE - SPOT,2103212442,1000079295,
05.02.2021,ADULT SOCIAL CARE,THAMES HOMECARE SERVICE LTD,286.18,PHY LTS 18-64,HOMECARE - SPOT,2103212441,1000079295,
05.02.2021,ADULT SOCIAL CARE,THAMES HOMECARE SERVICE LTD,349.77,PHY LTS 18-64,HOMECARE - SPOT,2103212396,1000079295,
05.02.2021,ADULT SOCIAL CARE,THAMES HOMECARE SERVICE LTD,363.40,PHY LTS 18-64,HOMECARE - SPOT,2103212404,1000079295,
05.02.2021,ADULT SOCIAL CARE,THAMES HOMECARE SERVICE LTD,386.11,PHY LTS 18-64,HOMECARE - SPOT,2103212429,1000079295,
05.02.2021,ADULT SOCIAL CARE,THAMES HOMECARE SERVICE LTD,572.36,PHY LTS 18-64,HOMECARE - SPOT,2103212406,1000079295,
05.02.2021,ADULT SOCIAL CARE,THAMES HOMECARE SERVICE LTD,572.36,PHY LTS 18-64,HOMECARE - SPOT,2103212415,1000079295,
05.02.2021,ADULT SOCIAL CARE,THAMES HOMECARE SERVICE LTD,608.70,PHY LTS 18-64,HOMECARE - SPOT,2103212421,1000079295,
05.02.2021,ADULT SOCIAL CARE,THAMES HOMECARE SERVICE LTD,635.95,PHY LTS 18-64,HOMECARE - SPOT,2103212390,1000079295,
05.02.2021,ADULT SOCIAL CARE,THAMES HOMECARE SERVICE LTD,649.58,PHY LTS 18-64,HOMECARE - SPOT,2103212419,1000079295,
05.02.2021,ADULT SOCIAL CARE,THAMES HOMECARE SERVICE LTD,699.55,PHY LTS 18-64,HOMECARE - SPOT,2103212448,1000079295,
05.02.2021,ADULT SOCIAL CARE,THAMES HOMECARE SERVICE LTD,844.91,PHY LTS 18-64,HOMECARE - SPOT,2103212440,1000079295,
05.02.2021,ADULT SOCIAL CARE,THAMES HOMECARE SERVICE LTD,681.38,PHY LTS 65+,HOMECARE - C&V,2103212455,1000079295,
05.02.2021,ADULT SOCIAL CARE,THAMES HOMECARE SERVICE LTD,268.01,PHY LTS 65+,HOMECARE - SPOT,2103212378,1000079295,
05.02.2021,ADULT SOCIAL CARE,THAMES HOMECARE SERVICE LTD,272.55,PHY LTS 65+,HOMECARE - SPOT,2103212454,1000079295,
05.02.2021,ADULT SOCIAL CARE,THAMES HOMECARE SERVICE LTD,286.18,PHY LTS 65+,HOMECARE - SPOT,2103212364,1000079295,
05.02.2021,ADULT SOCIAL CARE,THAMES HOMECARE SERVICE LTD,286.18,PHY LTS 65+,HOMECARE - SPOT,2103212437,1000079295,
05.02.2021,ADULT SOCIAL CARE,THAMES HOMECARE SERVICE LTD,286.18,PHY LTS 65+,HOMECARE - SPOT,2103212453,1000079295,
05.02.2021,ADULT SOCIAL CARE,THAMES HOMECARE SERVICE LTD,336.15,PHY LTS 65+,HOMECARE - SPOT,2103212425,1000079295,
05.02.2021,ADULT SOCIAL CARE,THAMES HOMECARE SERVICE LTD,349.77,PHY LTS 65+,HOMECARE - SPOT,2103212424,1000079295,
05.02.2021,ADULT SOCIAL CARE,THAMES HOMECARE SERVICE LTD,436.08,PHY LTS 65+,HOMECARE - SPOT,2103212374,1000079295,
05.02.2021,ADULT SOCIAL CARE,THAMES HOMECARE SERVICE LTD,436.08,PHY LTS 65+,HOMECARE - SPOT,2103212409,1000079295,
05.02.2021,ADULT SOCIAL CARE,THAMES HOMECARE SERVICE LTD,445.17,PHY LTS 65+,HOMECARE - SPOT,2103212423,1000079295,
05.02.2021,ADULT SOCIAL CARE,THAMES HOMECARE SERVICE LTD,508.76,PHY LTS 65+,HOMECARE - SPOT,2103212368,1000079295,
05.02.2021,ADULT SOCIAL CARE,THAMES HOMECARE SERVICE LTD,508.76,PHY LTS 65+,HOMECARE - SPOT,2103212461,1000079295,
05.02.2021,ADULT SOCIAL CARE,THAMES HOMECARE SERVICE LTD,522.39,PHY LTS 65+,HOMECARE - SPOT,2103212388,1000079295,
05.02.2021,ADULT SOCIAL CARE,THAMES HOMECARE SERVICE LTD,572.36,PHY LTS 65+,HOMECARE - SPOT,2103212372,1000079295,
05.02.2021,ADULT SOCIAL CARE,THAMES HOMECARE SERVICE LTD,572.36,PHY LTS 65+,HOMECARE - SPOT,2103212412,1000079295,
05.02.2021,ADULT SOCIAL CARE,THAMES HOMECARE SERVICE LTD,576.90,PHY LTS 65+,HOMECARE - SPOT,2103212450,1000079295,
05.02.2021,ADULT SOCIAL CARE,THAMES HOMECARE SERVICE LTD,599.61,PHY LTS 65+,HOMECARE - SPOT,2103212398,1000079295,
05.02.2021,ADULT SOCIAL CARE,THAMES HOMECARE SERVICE LTD,608.70,PHY LTS 65+,HOMECARE - SPOT,2103212354,1000079295,
05.02.2021,ADULT SOCIAL CARE,THAMES HOMECARE SERVICE LTD,640.49,PHY LTS 65+,HOMECARE - SPOT,2103212431,1000079295,
05.02.2021,ADULT SOCIAL CARE,THAMES HOMECARE SERVICE LTD,654.12,PHY LTS 65+,HOMECARE - SPOT,2103212360,1000079295,
05.02.2021,ADULT SOCIAL CARE,THAMES HOMECARE SERVICE LTD,663.21,PHY LTS 65+,HOMECARE - SPOT,2103212430,1000079295,
05.02.2021,ADULT SOCIAL CARE,THAMES HOMECARE SERVICE LTD,699.55,PHY LTS 65+,HOMECARE - SPOT,2103212417,1000079295,
05.02.2021,ADULT SOCIAL CARE,THAMES HOMECARE SERVICE LTD,699.55,PHY LTS 65+,HOMECARE - SPOT,2103212466,1000079295,
05.02.2021,ADULT SOCIAL CARE,THAMES HOMECARE SERVICE LTD,763.14,PHY LTS 65+,HOMECARE - SPOT,2103212382,1000079295,
05.02.2021,ADULT SOCIAL CARE,THAMES HOMECARE SERVICE LTD,799.48,PHY LTS 65+,HOMECARE - SPOT,2103212358,1000079295,
05.02.2021,ADULT SOCIAL CARE,THAMES HOMECARE SERVICE LTD,"1,044.78",PHY LTS 65+,HOMECARE - SPOT,2103212418,1000079295,
05.02.2021,ADULT SOCIAL CARE,THAMES HOMECARE SERVICE LTD,"1,480.86",PHY LTS 65+,HOMECARE - SPOT,2103212451,1000079295,
05.02.2021,ADULT SOCIAL CARE,THAMES HOMECARE SERVICE LTD,699.55,PHY STS 18-64,HOMECARE - IC,2103212400,1000079295,
05.02.2021,ADULT SOCIAL CARE,THAMES HOMECARE SERVICE LTD,699.55,PHY STS 18-64,HOMECARE - IC,2103212439,1000079295,
05.02.2021,ADULT SOCIAL CARE,THAMES HOMECARE SERVICE LTD,826.74,PHY STS 18-64,HOMECARE - IC,2103212366,1000079295,
05.02.2021,ADULT SOCIAL CARE,THAMES HOMECARE SERVICE LTD,286.18,PHY STS 65+,HOMECARE - IC,2103212350,1000079295,
05.02.2021,ADULT SOCIAL CARE,THAMES HOMECARE SERVICE LTD,377.03,PHY STS 65+,HOMECARE - IC,2103212356,1000079295,
05.02.2021,ADULT SOCIAL CARE,THAMES HOMECARE SERVICE LTD,663.21,PHY STS 65+,HOMECARE - IC,2103212422,1000079295,
05.02.2021,ADULT SOCIAL CARE,THAMES HOMECARE SERVICE LTD,826.74,PHY STS 65+,HOMECARE - IC,2103212449,1000079295,
05.02.2021,ADULT SOCIAL CARE,THAMES HOMECARE SERVICE LTD,304.35,SEN LTS 65+,HOMECARE - SPOT,2103212408,1000079295,
05.02.2021,ADULT SOCIAL CARE,BEDE CAFE PROJECT,"1,100.00",SOCIAL ISOLATION,DAYCARE,2103212535,1553877,
05.02.2021,ADULT SOCIAL CARE,KENT COUNTY COUNCIL - LASER,"1,880.19",SOUTHWARK RESOURCE CENTRE,ELECTRICITY,5902454054,1000012926,
05.02.2021,ASSET MANAGEMENT,SOUTH EAST BUILDING CONTRACTORS LTD,575.00,ADAPTATIONS,BUILDING R&M,5902454002,1000049893,
05.02.2021,ASSET MANAGEMENT,WATERMAN BUILDING SERVICES LTD,"5,000.00",COMMERCIAL (QS),HEATING - DISTRICT SYSTEM REPAIR,5902453896,1000077421,
05.02.2021,ASSET MANAGEMENT,LONDON FIRE BRIGADE,346.00,ENG CONTRACTS (NORTH),LIFTS,5902453311,1000083629,
05.02.2021,ASSET MANAGEMENT,LONDON FIRE BRIGADE,346.00,ENG CONTRACTS (NORTH),LIFTS,5902453314,1000083629,
05.02.2021,ASSET MANAGEMENT,LONDON FIRE BRIGADE,346.00,ENG CONTRACTS (NORTH),LIFTS,5902453318,1000083629,
05.02.2021,ASSET MANAGEMENT,PART B GROUP LTD,"4,500.00",FRA WORKS,OTHER R&M,5902454227,1000086271,
05.02.2021,ASSET MANAGEMENT,PART B GROUP LTD,"6,000.00",FRA WORKS,OTHER R&M,5902454222,1000086271,
05.02.2021,ASSET MANAGEMENT,PART B GROUP LTD,"6,000.00",FRA WORKS,OTHER R&M,5902454231,1000086271,
05.02.2021,CENTRAL FUNCTIONS,KENT COUNTY COUNCIL - LASER,329.73,HEATING ACCOUNT,ELECTRICITY,2103212298,1000012926,
05.02.2021,CENTRAL FUNCTIONS,KENT COUNTY COUNCIL - LASER,"1,075.79",HEATING ACCOUNT,ELECTRICITY,2103212295,1000012926,
05.02.2021,CENTRAL FUNCTIONS,KENT COUNTY COUNCIL - LASER,"1,353.54",HEATING ACCOUNT,ELECTRICITY,2103212297,1000012926,
05.02.2021,CENTRAL FUNCTIONS,KENT COUNTY COUNCIL - LASER,"1,435.62",HEATING ACCOUNT,ELECTRICITY,2103212299,1000012926,
05.02.2021,CHIEF EXECUTIVE,WALWORTH HOMES LTD,"934,565.77",CAPITAL PS (REGEN),CONST'N MAIN CONTRACT - NON CERTIFICATED,5902454242,1000079197,
05.02.2021,CHIEF EXECUTIVE,WALWORTH HOMES LTD,"1,148,362.90",CAPITAL PS (REGEN),CONST'N MAIN CONTRACT - NON CERTIFICATED,5902454237,1000079197,
05.02.2021,CHIEF EXECUTIVE,WALWORTH HOMES LTD,"2,811,461.86",CAPITAL PS (REGEN),CONST'N MAIN CONTRACT - NON CERTIFICATED,5902454242,1000079197,
05.02.2021,CHIEF EXECUTIVE,WALWORTH HOMES LTD,"45,934.52",CAPITAL PS (REGEN),CONSTRUCTION FEES,5902454237,1000079197,
05.02.2021,CHIEF EXECUTIVE,WALWORTH HOMES LTD,"157,317.63",CAPITAL PS (REGEN),CONSTRUCTION FEES,5902454242,1000079197,
05.02.2021,CHIEF EXECUTIVE'S OFFICE,THE UK CAREER ACADEMY FOUNDATION,"10,000.00",YOUTH FUND EMPLOYMENT,REFRESHMENTS FOR MEETINGS,5902452938,1000075822,
05.02.2021,CHILDREN AND ADULT,STANDAGE & CO LTD,"8,252.18",CAPITAL PS (EDUCATION),CONSTRUCTION,2103212563,4002817,
05.02.2021,CHILDREN AND ADULT,WATERMAN BUILDING SERVICES LTD,375.00,CAPITAL PS (EDUCATION),CONSTRUCTION FEES,5902453080,1000077421,
05.02.2021,CHILDREN AND ADULT,STONEGROVE LIMITED,"8,263.13",CAPITAL PS (EDUCATION),CONST'N MAIN CONTRACT - NON CERTIFICATED,2103212556,3000001525,
05.02.2021,CHILDREN AND FAMILIES,REDACTED PERSONAL DATA,750.00,16 PLUS TEAM,OTHER PAYMENTS FOR CLIENTS,REDACTED,REDACTED,
05.02.2021,CHILDREN AND FAMILIES,THE FAMILY PLACE LTD,390.00,ADOPTION SUPP FUND,PROFESSIONAL FEES,5902454219,1000077965,
05.02.2021,CHILDREN AND FAMILIES,ALICE MALLORIE THERAPY SERVICE,550.00,ADOPTION SUPP FUND,PROFESSIONAL FEES,5902454216,1000085491,
05.02.2021,CHILDREN AND FAMILIES,ALICE MALLORIE THERAPY SERVICE,600.00,ADOPTION SUPP FUND,PROFESSIONAL FEES,5902454215,1000085491,
05.02.2021,CHILDREN AND FAMILIES,INDEPENDENT BIA LTD,480.00,ADOPTION SUPP FUND,PROFESSIONAL FEES,5902453954,1000086264,
05.02.2021,CHILDREN AND FAMILIES,REDACTED PERSONAL DATA,450.00,ADOPTION SUPP FUND,PROFESSIONAL FEES,REDACTED,REDACTED,
05.02.2021,CHILDREN AND FAMILIES,REDACTED PERSONAL DATA,"3,000.00",ADOPTION SUPP FUND,PROFESSIONAL FEES,REDACTED,REDACTED,
05.02.2021,CHILDREN AND FAMILIES,REDACTED PERSONAL DATA,"3,500.00",ADOPTION SUPP FUND,PROFESSIONAL FEES,REDACTED,REDACTED,
05.02.2021,CHILDREN AND FAMILIES,REDACTED PERSONAL DATA,"3,500.00",ADOPTION SUPP FUND,PROFESSIONAL FEES,REDACTED,REDACTED,
05.02.2021,CHILDREN AND FAMILIES,REDACTED PERSONAL DATA,"5,000.00",ADOPTION SUPP FUND,PROFESSIONAL FEES,REDACTED,REDACTED,
05.02.2021,CHILDREN AND FAMILIES,REDACTED PERSONAL DATA,418.17,FAMILY GROUP CONF�S,PROFESSIONAL FEES,REDACTED,REDACTED,
05.02.2021,CHILDREN AND FAMILIES,REDACTED PERSONAL DATA,300.00,FE SUPPORT,CLIENT TRANSPORT,REDACTED,REDACTED,
05.02.2021,CHILDREN AND FAMILIES,REDACTED PERSONAL DATA,300.00,FE SUPPORT,CLIENT TRANSPORT,REDACTED,REDACTED,
05.02.2021,CHILDREN AND FAMILIES,REDACTED PERSONAL DATA,500.00,FE SUPPORT,OTHER PAYMENTS FOR CLIENTS,REDACTED,REDACTED,
05.02.2021,CHILDREN AND FAMILIES,AVOCET SOCIAL CARE LTD,"7,200.00",FOSTERING TEAM,PROFESSIONAL FEES,5902454082,1000071940,
05.02.2021,CHILDREN AND FAMILIES,FOSTERING LONDON LTD,"5,092.68",FRIENDS & FAMILY FOSTERING,EXTERNAL AGENCIES AND BODIES,2103212503,1000077541,
05.02.2021,CHILDREN AND FAMILIES,FOSTERING LONDON LTD,"8,720.00",FRIENDS & FAMILY FOSTERING,EXTERNAL AGENCIES AND BODIES,2103212508,1000077541,
05.02.2021,CHILDREN AND FAMILIES,HYTHE HOUSE SUPPORT LTD,"1,729.22",FRIENDS & FAMILY FOSTERING,EXTERNAL AGENCIES AND BODIES,2103212501,1000081618,
05.02.2021,CHILDREN AND FAMILIES,HYTHE HOUSE SUPPORT LTD,"3,969.46",FRIENDS & FAMILY FOSTERING,EXTERNAL AGENCIES AND BODIES,2103212506,1000081618,
05.02.2021,CHILDREN AND FAMILIES,HYTHE HOUSE SUPPORT LTD,"5,764.07",FRIENDS & FAMILY FOSTERING,EXTERNAL AGENCIES AND BODIES,2103212505,1000081618,
05.02.2021,CHILDREN AND FAMILIES,HYTHE HOUSE SUPPORT LTD,"5,956.21",FRIENDS & FAMILY FOSTERING,EXTERNAL AGENCIES AND BODIES,2103212504,1000081618,
05.02.2021,CHILDREN AND FAMILIES,HM PRISON & PROBATION SERVICE,"9,060.00",REMAND - YDA STC & SCH,RESIDENTIAL CARE,5902453990,1000083827,
05.02.2021,CHILDREN AND FAMILIES,HM PRISON & PROBATION SERVICE,"9,060.00",REMAND - YDA STC & SCH,RESIDENTIAL CARE,5902453999,1000083827,
05.02.2021,CHILDREN AND FAMILIES,HM PRISON & PROBATION SERVICE,"14,043.00",REMAND - YDA STC & SCH,RESIDENTIAL CARE,5902453989,1000083827,
05.02.2021,CHILDREN AND FAMILIES,HM PRISON & PROBATION SERVICE,642.00,REMAND - YDA YOI,RESIDENTIAL CARE,5902453980,1000083827,
05.02.2021,CHILDREN AND FAMILIES,HM PRISON & PROBATION SERVICE,"7,062.00",REMAND - YDA YOI,RESIDENTIAL CARE,5902453983,1000083827,
05.02.2021,CHILDREN AND FAMILIES,HM PRISON & PROBATION SERVICE,"9,951.00",REMAND - YDA YOI,RESIDENTIAL CARE,5902453985,1000083827,
05.02.2021,CHILDREN AND FAMILIES,HM PRISON & PROBATION SERVICE,"9,951.00",REMAND - YDA YOI,RESIDENTIAL CARE,5902454000,1000083827,
05.02.2021,CHILDREN AND FAMILIES,METROPOLITAN SUPPORT TRUST,"1,824.13",SEMI-IND CARELEAVERS,EXTERNAL AGENCIES AND BODIES,2103212476,1000047547,
05.02.2021,CHILDREN AND FAMILIES,FUTURE FOUNDATIONS LTD,841.14,SEMI-IND CARELEAVERS,EXTERNAL AGENCIES AND BODIES,2103212469,1000063272,
05.02.2021,CHILDREN AND FAMILIES,NETPEX LTD CORPORATE SERVICES,"2,546.40",SEMI-IND CARELEAVERS,EXTERNAL AGENCIES AND BODIES,2103212471,1000076073,
05.02.2021,CHILDREN AND FAMILIES,NETPEX LTD CORPORATE SERVICES,"2,767.99",SEMI-IND CARELEAVERS,EXTERNAL AGENCIES AND BODIES,2103212482,1000076073,
05.02.2021,CHILDREN AND FAMILIES,NETPEX LTD CORPORATE SERVICES,"3,321.34",SEMI-IND CARELEAVERS,EXTERNAL AGENCIES AND BODIES,2103212481,1000076073,
05.02.2021,CHILDREN AND FAMILIES,NETPEX LTD CORPORATE SERVICES,"4,207.32",SEMI-IND CARELEAVERS,EXTERNAL AGENCIES AND BODIES,2103212483,1000076073,
05.02.2021,CHILDREN AND FAMILIES,TRANSFORMING LIVES COMPANY LTD,"3,739.92",SEMI-IND CARELEAVERS,EXTERNAL AGENCIES AND BODIES,2103212480,1000083352,
05.02.2021,CHILDREN AND FAMILIES,CARE O LINE,288.75,SEMI-IND LAC 16-17,OTHER PAYMENTS FOR CLIENTS,2103212497,11241743,
05.02.2021,CHILDREN AND FAMILIES,PURPLE PEBBLES(CHILD CARE) SERVICES,300.00,SEMI-IND LAC 16-17,EXTERNAL AGENCIES AND BODIES,2103212488,1000070705,
05.02.2021,CHILDREN AND FAMILIES,A HUSSAIN T/A ALPHA CARS LTD,960.00,SEMI-IND LAC 16-17,OTHER PAYMENTS FOR CLIENTS,2103212496,1000082147,
05.02.2021,CHILDREN AND FAMILIES,TRANSFORMING LIVES COMPANY LTD,"1,047.42",SEMI-IND LAC 16-17,EXTERNAL AGENCIES AND BODIES,2103212492,1000083352,
05.02.2021,CHILDREN AND FAMILIES,TRANSFORMING LIVES COMPANY LTD,"5,411.71",SEMI-IND LAC 16-17,EXTERNAL AGENCIES AND BODIES,2103212493,1000083352,
05.02.2021,CHILDREN AND FAMILIES,TRANSFORMING LIVES COMPANY LTD,310.00,SEMI-IND LAC 16-17,OTHER PAYMENTS FOR CLIENTS,2103212485,1000083352,
05.02.2021,CHILDREN AND FAMILIES,REAL LIFE CARE LTD,"4,760.67",SEMI-IND LAC 16-17,EXTERNAL AGENCIES AND BODIES,2103212498,1000083556,
05.02.2021,CHILDREN AND FAMILIES,REAL LIFE CARE LTD,"4,760.72",SEMI-IND LAC 16-17,EXTERNAL AGENCIES AND BODIES,2103212486,1000083556,
05.02.2021,CHILDREN AND FAMILIES,REDACTED PERSONAL DATA,401.43,SEMI-IND LAC 16-17,OTHER PAYMENTS FOR CLIENTS,REDACTED,REDACTED,
05.02.2021,CHILDREN AND FAMILIES,ALERE TOXICOLOGY PLC,606.00,TEAM B,OTHER PAYMENTS FOR CLIENTS,2103212325,1000073381,
05.02.2021,CHILDREN AND FAMILIES,BISHOP & SEWELL LLP SOLICITORS,"1,033.00",TEAM C,OTHER PAYMENTS FOR CLIENTS,5902454164,1000081122,
05.02.2021,CHILDREN AND FAMILIES,BISHOP & SEWELL LLP SOLICITORS,"1,560.00",TEAM C,OTHER PAYMENTS FOR CLIENTS,5902454164,1000081122,
05.02.2021,CHILDREN AND FAMILIES,BISHOP & SEWELL LLP SOLICITORS,"2,500.00",TEAM C,OTHER PAYMENTS FOR CLIENTS,5902454164,1000081122,
05.02.2021,CHILDREN AND FAMILIES,FUTURE FOUNDATIONS LTD,"1,837.85",UASC CARELEAVERS,EXTERNAL AGENCIES AND BODIES,2103212475,1000063272,
05.02.2021,CHILDREN AND FAMILIES,FUTURE FOUNDATIONS LTD,"2,075.00",UASC CARELEAVERS,EXTERNAL AGENCIES AND BODIES,2103212477,1000063272,
05.02.2021,CHILDREN AND FAMILIES,FUTURE FOUNDATIONS LTD,310.00,UASC CARELEAVERS,OTHER PAYMENTS FOR CLIENTS,2103212479,1000063272,
05.02.2021,CHILDREN AND FAMILIES,FUTURE FOUNDATIONS LTD,350.00,UASC CARELEAVERS,OTHER PAYMENTS FOR CLIENTS,2103212478,1000063272,
05.02.2021,CHILDREN AND FAMILIES,PURPLE PEBBLES(CHILD CARE) SERVICES,"1,992.86",UASC CARELEAVERS,EXTERNAL AGENCIES AND BODIES,2103212474,1000070705,
05.02.2021,CHILDREN AND FAMILIES,NETPEX LTD CORPORATE SERVICES,"4,207.32",UASC CARELEAVERS,EXTERNAL AGENCIES AND BODIES,2103212468,1000076073,
05.02.2021,CHILDREN AND FAMILIES,FUTURE FOUNDATIONS LTD,300.00,UASC LAC 16-17,EXTERNAL AGENCIES AND BODIES,2103212500,1000063272,
05.02.2021,CHILDREN AND FAMILIES,IASPIRE CARE SERVICES LTD,400.00,UASC LAC 16-17,EXTERNAL AGENCIES AND BODIES,2103212495,1000081500,
05.02.2021,CHILDREN AND FAMILIES,REDACTED PERSONAL DATA,400.00,UASC LAC 16-17,OTHER PAYMENTS FOR CLIENTS,REDACTED,REDACTED,
05.02.2021,COMMUNITIES,TIME & TALENTS ASSOCIATION,"20,052.00",C19 COMMUNITY HUB,GRANTS,5902452987,1757632,
05.02.2021,COMMUNITIES,KETRA,"4,125.00",RESIDENTS PARTICIPATION FUND,GRANTS,5902454071,1770066,
05.02.2021,CUSTOMER EXPERIENCE,CORAM VOICE,897.50,COMPLAINTS,EXTERNAL AGENCIES AND BODIES,5902453560,1000076392,
05.02.2021,CUSTOMER EXPERIENCE HGF,EURO HOTELS (THORNTON HEATH) LTD,"385,000.00",COVID-19 SUPPORT,EXTERNAL AGENCIES AND BODIES,5902454021,1000057571,
05.02.2021,CUSTOMER EXPERIENCE HGF,REDACTED PERSONAL DATA,"1,235.82",HOMELESS PROJECTS,GRANTS,REDACTED,REDACTED,
05.02.2021,CUSTOMER EXPERIENCE HGF,REDACTED PERSONAL DATA,"3,000.00",HOMELESS PROJECTS,GRANTS,REDACTED,REDACTED,
05.02.2021,CUSTOMER EXPERIENCE HGF,REDACTED PERSONAL DATA,"3,000.00",HOMELESS PROJECTS,GRANTS,REDACTED,REDACTED,
05.02.2021,CUSTOMER EXPERIENCE HGF,HELP2SUPPORT LIMITED,904.88,HOMELESS PROJECTS,GRANTS,5902454025,1000084604,
05.02.2021,CUSTOMER EXPERIENCE HGF,HELP2SUPPORT LIMITED,904.88,HOMELESS PROJECTS,GRANTS,5902454043,1000084604,
05.02.2021,CUSTOMER EXPERIENCE HGF,HELP2SUPPORT LIMITED,904.88,HOMELESS PROJECTS,GRANTS,5902454069,1000084604,
05.02.2021,CUSTOMER EXPERIENCE HGF,PALLISADE LTD,"2,594.00",HOMELESS PROJECTS,GRANTS,5902454085,1000085530,
05.02.2021,CUSTOMER EXPERIENCE HGF,EMINE PIRO,"2,117.28",HOMELESS PROJECTS,GRANTS,5902454084,1000078169,
05.02.2021,CUSTOMER EXPERIENCE HGF,JACQUELINE MCGHIE,"1,900.00",HOMELESS PROJECTS,GRANTS,5902454012,1000086240,
05.02.2021,CUSTOMER EXPERIENCE HGF,EDEN ESTATES LONDON LTD,"21,588.40",NIGHTLY TA (NSC),EXTERNAL AGENCIES AND BODIES,5902454076,1000061217,
05.02.2021,CUSTOMER EXPERIENCE HGF,SK HOUSING LTD,"7,362.50",NIGHTLY TA (NSC),EXTERNAL AGENCIES AND BODIES,5902454003,1000070716,
05.02.2021,CUSTOMER EXPERIENCE HGF,SOUTH OF THE RIVER INVESTMENTS LTD,"39,138.29",PSL PLACEMENTS,EXTERNAL AGENCIES AND BODIES,5902454091,1000073638,
05.02.2021,CUSTOMER EXPERIENCE HGF,TYNETEC LEGRAND LTD,"2,675.00",SMART MOBILE RESPONSE TEAM,EQUIPMENT PURCHASE & REPAIR,5902453880,1000066068,
05.02.2021,EDUCATION,CBS MAINTENANCE SERVICES LTD,"1,244.00",CAPITAL PS (EDUCATION),CONST'N MAIN CONTRACT - NON CERTIFICATED,2103212564,3000001518,
05.02.2021,EDUCATION,PULSE HEALTHCARE LTD,308.00,SCH TRANS � TRAVEL,AGENCY STAFF,5902453652,1000035063,
05.02.2021,EDUCATION,UNIVERSITY COLLEGE LONDON,"9,250.00",SCHOLARSHIP SCHEME,EXTERNAL AGENCIES AND BODIES,5902454016,1000036232,
05.02.2021,ENVIRONMENT AND LEISURE,F M CONWAY LTD,"32,975.16",CAPITAL PS (LEISURE),CONSTR'N SUB CONTRACT - NON CERTIFICATED,2103209909,4001384,
05.02.2021,ENVIRONMENT AND LEISURE,F M CONWAY LTD,"41,082.69",CAPITAL PS (LEISURE),CONSTR'N SUB CONTRACT - NON CERTIFICATED,2103209908,4001384,
05.02.2021,ENVIRONMENT AND LEISURE,COMUZI LTD,"6,896.25",PH DIRECTOR'S TEAM,EXTERNAL AGENCIES AND BODIES,5902453046,1000084003,
05.02.2021,ENVIRONMENT DIRECTORATE,LONDON HIRE LIMITED,310.00,COMMERCIAL VEH CTRL A/C,HIRED VEHICLES,5902454006,1383812,
05.02.2021,ENVIRONMENT DIRECTORATE,LONDON HIRE LIMITED,675.00,COMMERCIAL VEH CTRL A/C,HIRED VEHICLES,5902454007,1383812,
05.02.2021,ENVIRONMENT DIRECTORATE,LONDON HIRE LIMITED,"1,280.00",COMMERCIAL VEH CTRL A/C,HIRED VEHICLES,5902454005,1383812,
05.02.2021,ENVIRONMENT DIRECTORATE,DAWSON RENTALS BUS & COACH LTD,"-1,325.30",COMMERCIAL VEH CTRL A/C,HIRED VEHICLES,5902454128,1000042174,
05.02.2021,ENVIRONMENT DIRECTORATE,DAWSON RENTALS BUS & COACH LTD,-871.43,COMMERCIAL VEH CTRL A/C,HIRED VEHICLES,5902454139,1000042174,
05.02.2021,ENVIRONMENT DIRECTORATE,DAWSON RENTALS BUS & COACH LTD,-871.43,COMMERCIAL VEH CTRL A/C,HIRED VEHICLES,5902454140,1000042174,
05.02.2021,ENVIRONMENT DIRECTORATE,DAWSON RENTALS BUS & COACH LTD,-871.43,COMMERCIAL VEH CTRL A/C,HIRED VEHICLES,5902454152,1000042174,
05.02.2021,ENVIRONMENT DIRECTORATE,DAWSON RENTALS BUS & COACH LTD,-827.85,COMMERCIAL VEH CTRL A/C,HIRED VEHICLES,5902454136,1000042174,
05.02.2021,ENVIRONMENT DIRECTORATE,DAWSON RENTALS BUS & COACH LTD,-522.86,COMMERCIAL VEH CTRL A/C,HIRED VEHICLES,5902454130,1000042174,
05.02.2021,ENVIRONMENT DIRECTORATE,DAWSON RENTALS BUS & COACH LTD,"1,325.30",COMMERCIAL VEH CTRL A/C,HIRED VEHICLES,5902454124,1000042174,
05.02.2021,ENVIRONMENT DIRECTORATE,DAWSON RENTALS BUS & COACH LTD,"1,325.30",COMMERCIAL VEH CTRL A/C,HIRED VEHICLES,5902454125,1000042174,
05.02.2021,ENVIRONMENT DIRECTORATE,DAWSON RENTALS BUS & COACH LTD,"1,325.30",COMMERCIAL VEH CTRL A/C,HIRED VEHICLES,5902454127,1000042174,
05.02.2021,ENVIRONMENT DIRECTORATE,DAWSON RENTALS BUS & COACH LTD,"1,325.30",COMMERCIAL VEH CTRL A/C,HIRED VEHICLES,5902454132,1000042174,
05.02.2021,ENVIRONMENT DIRECTORATE,DAWSON RENTALS BUS & COACH LTD,"1,325.30",COMMERCIAL VEH CTRL A/C,HIRED VEHICLES,5902454134,1000042174,
05.02.2021,ENVIRONMENT DIRECTORATE,DAWSON RENTALS BUS & COACH LTD,"1,325.30",COMMERCIAL VEH CTRL A/C,HIRED VEHICLES,5902454145,1000042174,
05.02.2021,ENVIRONMENT DIRECTORATE,DAWSON RENTALS BUS & COACH LTD,"1,325.30",COMMERCIAL VEH CTRL A/C,HIRED VEHICLES,5902454151,1000042174,
05.02.2021,ENVIRONMENT DIRECTORATE,DAWSON RENTALS BUS & COACH LTD,"1,455.65",COMMERCIAL VEH CTRL A/C,HIRED VEHICLES,5902454156,1000042174,
05.02.2021,ENVIRONMENT DIRECTORATE,TIPPERHIRE LTD,546.00,COMMERCIAL VEH CTRL A/C,HIRED VEHICLES,5902454137,1000055357,
05.02.2021,ENVIRONMENT DIRECTORATE,TIPPERHIRE LTD,"1,260.00",COMMERCIAL VEH CTRL A/C,HIRED VEHICLES,5902454131,1000055357,
05.02.2021,ENVIRONMENT DIRECTORATE,TIPPERHIRE LTD,"1,260.00",COMMERCIAL VEH CTRL A/C,HIRED VEHICLES,5902454133,1000055357,
05.02.2021,ENVIRONMENT DIRECTORATE,TIPPERHIRE LTD,"1,260.00",COMMERCIAL VEH CTRL A/C,HIRED VEHICLES,5902454138,1000055357,
05.02.2021,ENVIRONMENT DIRECTORATE,DAWSON RENTALS SWEEPERS,"2,281.25",COMMERCIAL VEH CTRL A/C,HIRED VEHICLES,5902454107,1000068168,
05.02.2021,ENVIRONMENT DIRECTORATE,DAWSON RENTALS SWEEPERS,"2,281.25",COMMERCIAL VEH CTRL A/C,HIRED VEHICLES,5902454109,1000068168,
05.02.2021,ENVIRONMENT DIRECTORATE,DAWSON RENTALS SWEEPERS,"2,281.25",COMMERCIAL VEH CTRL A/C,HIRED VEHICLES,5902454111,1000068168,
05.02.2021,ENVIRONMENT DIRECTORATE,DAWSON RENTALS SWEEPERS,"2,281.25",COMMERCIAL VEH CTRL A/C,HIRED VEHICLES,5902454113,1000068168,
05.02.2021,ENVIRONMENT DIRECTORATE,DAWSON RENTALS SWEEPERS,"2,715.78",COMMERCIAL VEH CTRL A/C,HIRED VEHICLES,5902454105,1000068168,
05.02.2021,ENVIRONMENT DIRECTORATE,DAWSON RENTALS SWEEPERS,"2,715.78",COMMERCIAL VEH CTRL A/C,HIRED VEHICLES,5902454108,1000068168,
05.02.2021,ENVIRONMENT DIRECTORATE,DAWSON RENTALS SWEEPERS,"3,041.67",COMMERCIAL VEH CTRL A/C,HIRED VEHICLES,5902454112,1000068168,
05.02.2021,ENVIRONMENT DIRECTORATE,DAWSON RENTALS SWEEPERS,"3,041.67",COMMERCIAL VEH CTRL A/C,HIRED VEHICLES,5902454116,1000068168,
05.02.2021,ENVIRONMENT DIRECTORATE,LEX AUTOLEASE,"19,188.35",COMMERCIAL VEH CTRL A/C,HIRED VEHICLES,5902454018,1000069462,
05.02.2021,ENVIRONMENT DIRECTORATE,PACE ACCIDENT REPAIRS CENTRE LTD,380.00,COMMERCIAL VEH CTRL A/C,HIRED VEHICLES,5902454123,1000069899,
05.02.2021,ENVIRONMENT DIRECTORATE,PACE ACCIDENT REPAIRS CENTRE LTD,380.00,COMMERCIAL VEH CTRL A/C,HIRED VEHICLES,5902454126,1000069899,
05.02.2021,ENVIRONMENT DIRECTORATE,PACE ACCIDENT REPAIRS CENTRE LTD,380.00,COMMERCIAL VEH CTRL A/C,HIRED VEHICLES,5902454129,1000069899,
05.02.2021,ENVIRONMENT DIRECTORATE,SHELL UK OIL PRODUCTS LTD,378.51,COMMERCIAL VEH CTRL A/C,VEHICLE FUEL,5902454070,1000081254,
05.02.2021,ENVIRONMENT DIRECTORATE,SHELL UK OIL PRODUCTS LTD,405.90,COMMERCIAL VEH CTRL A/C,VEHICLE FUEL,5902454078,1000081254,
05.02.2021,ENVIRONMENT DIRECTORATE,SHELL UK OIL PRODUCTS LTD,733.34,COMMERCIAL VEH CTRL A/C,VEHICLE FUEL,5902454081,1000081254,
05.02.2021,ENVIRONMENT DIRECTORATE,SHELL UK OIL PRODUCTS LTD,924.76,COMMERCIAL VEH CTRL A/C,VEHICLE FUEL,5902454064,1000081254,
05.02.2021,ENVIRONMENT DIRECTORATE,SHELL UK OIL PRODUCTS LTD,"1,237.55",COMMERCIAL VEH CTRL A/C,VEHICLE FUEL,5902454066,1000081254,
05.02.2021,ENVIRONMENT DIRECTORATE,SHELL UK OIL PRODUCTS LTD,"2,591.17",COMMERCIAL VEH CTRL A/C,VEHICLE FUEL,5902454080,1000081254,
05.02.2021,ENVIRONMENT DIRECTORATE,UK TELEMATICS LTD,"5,247.22",COMMERCIAL VEH CTRL A/C,VEHICLE REPAIRS & MAINTENANCE,5902454060,1000081665,
05.02.2021,ENVIRONMENT DIRECTORATE,DAWSONGROUP VANS LTD,258.85,COMMERCIAL VEH CTRL A/C,HIRED VEHICLES,5902454210,1000082230,
05.02.2021,ENVIRONMENT DIRECTORATE,DAWSONGROUP VANS LTD,258.85,COMMERCIAL VEH CTRL A/C,HIRED VEHICLES,5902454229,1000082230,
05.02.2021,ENVIRONMENT DIRECTORATE,DAWSONGROUP VANS LTD,258.85,COMMERCIAL VEH CTRL A/C,HIRED VEHICLES,5902454232,1000082230,
05.02.2021,ENVIRONMENT DIRECTORATE,DAWSONGROUP VANS LTD,258.85,COMMERCIAL VEH CTRL A/C,HIRED VEHICLES,5902454233,1000082230,
05.02.2021,ENVIRONMENT DIRECTORATE,DAWSONGROUP VANS LTD,258.85,COMMERCIAL VEH CTRL A/C,HIRED VEHICLES,5902454234,1000082230,
05.02.2021,ENVIRONMENT DIRECTORATE,DAWSONGROUP VANS LTD,275.90,COMMERCIAL VEH CTRL A/C,HIRED VEHICLES,5902454027,1000082230,
05.02.2021,ENVIRONMENT DIRECTORATE,DAWSONGROUP VANS LTD,275.90,COMMERCIAL VEH CTRL A/C,HIRED VEHICLES,5902454187,1000082230,
05.02.2021,ENVIRONMENT DIRECTORATE,DAWSONGROUP VANS LTD,275.90,COMMERCIAL VEH CTRL A/C,HIRED VEHICLES,5902454189,1000082230,
05.02.2021,ENVIRONMENT DIRECTORATE,DAWSONGROUP VANS LTD,275.90,COMMERCIAL VEH CTRL A/C,HIRED VEHICLES,5902454240,1000082230,
05.02.2021,ENVIRONMENT DIRECTORATE,DAWSONGROUP VANS LTD,289.96,COMMERCIAL VEH CTRL A/C,HIRED VEHICLES,5902454029,1000082230,
05.02.2021,ENVIRONMENT DIRECTORATE,DAWSONGROUP VANS LTD,300.08,COMMERCIAL VEH CTRL A/C,HIRED VEHICLES,5902454019,1000082230,
05.02.2021,ENVIRONMENT DIRECTORATE,DAWSONGROUP VANS LTD,300.08,COMMERCIAL VEH CTRL A/C,HIRED VEHICLES,5902454042,1000082230,
05.02.2021,ENVIRONMENT DIRECTORATE,DAWSONGROUP VANS LTD,300.08,COMMERCIAL VEH CTRL A/C,HIRED VEHICLES,5902454046,1000082230,
05.02.2021,ENVIRONMENT DIRECTORATE,DAWSONGROUP VANS LTD,300.08,COMMERCIAL VEH CTRL A/C,HIRED VEHICLES,5902454048,1000082230,
05.02.2021,ENVIRONMENT DIRECTORATE,DAWSONGROUP VANS LTD,300.08,COMMERCIAL VEH CTRL A/C,HIRED VEHICLES,5902454119,1000082230,
05.02.2021,ENVIRONMENT DIRECTORATE,DAWSONGROUP VANS LTD,300.08,COMMERCIAL VEH CTRL A/C,HIRED VEHICLES,5902454120,1000082230,
05.02.2021,ENVIRONMENT DIRECTORATE,DAWSONGROUP VANS LTD,300.08,COMMERCIAL VEH CTRL A/C,HIRED VEHICLES,5902454190,1000082230,
05.02.2021,ENVIRONMENT DIRECTORATE,DAWSONGROUP VANS LTD,300.08,COMMERCIAL VEH CTRL A/C,HIRED VEHICLES,5902454192,1000082230,
05.02.2021,ENVIRONMENT DIRECTORATE,DAWSONGROUP VANS LTD,300.08,COMMERCIAL VEH CTRL A/C,HIRED VEHICLES,5902454193,1000082230,
05.02.2021,ENVIRONMENT DIRECTORATE,DAWSONGROUP VANS LTD,300.08,COMMERCIAL VEH CTRL A/C,HIRED VEHICLES,5902454196,1000082230,
05.02.2021,ENVIRONMENT DIRECTORATE,DAWSONGROUP VANS LTD,300.08,COMMERCIAL VEH CTRL A/C,HIRED VEHICLES,5902454197,1000082230,
05.02.2021,ENVIRONMENT DIRECTORATE,DAWSONGROUP VANS LTD,300.08,COMMERCIAL VEH CTRL A/C,HIRED VEHICLES,5902454198,1000082230,
05.02.2021,ENVIRONMENT DIRECTORATE,DAWSONGROUP VANS LTD,300.08,COMMERCIAL VEH CTRL A/C,HIRED VEHICLES,5902454199,1000082230,
05.02.2021,ENVIRONMENT DIRECTORATE,DAWSONGROUP VANS LTD,300.08,COMMERCIAL VEH CTRL A/C,HIRED VEHICLES,5902454200,1000082230,
05.02.2021,ENVIRONMENT DIRECTORATE,DAWSONGROUP VANS LTD,300.08,COMMERCIAL VEH CTRL A/C,HIRED VEHICLES,5902454201,1000082230,
05.02.2021,ENVIRONMENT DIRECTORATE,DAWSONGROUP VANS LTD,300.08,COMMERCIAL VEH CTRL A/C,HIRED VEHICLES,5902454202,1000082230,
05.02.2021,ENVIRONMENT DIRECTORATE,DAWSONGROUP VANS LTD,300.08,COMMERCIAL VEH CTRL A/C,HIRED VEHICLES,5902454203,1000082230,
05.02.2021,ENVIRONMENT DIRECTORATE,DAWSONGROUP VANS LTD,300.08,COMMERCIAL VEH CTRL A/C,HIRED VEHICLES,5902454204,1000082230,
05.02.2021,ENVIRONMENT DIRECTORATE,DAWSONGROUP VANS LTD,300.08,COMMERCIAL VEH CTRL A/C,HIRED VEHICLES,5902454205,1000082230,
05.02.2021,ENVIRONMENT DIRECTORATE,DAWSONGROUP VANS LTD,300.08,COMMERCIAL VEH CTRL A/C,HIRED VEHICLES,5902454206,1000082230,
05.02.2021,ENVIRONMENT DIRECTORATE,DAWSONGROUP VANS LTD,300.08,COMMERCIAL VEH CTRL A/C,HIRED VEHICLES,5902454207,1000082230,
05.02.2021,ENVIRONMENT DIRECTORATE,DAWSONGROUP VANS LTD,300.08,COMMERCIAL VEH CTRL A/C,HIRED VEHICLES,5902454225,1000082230,
05.02.2021,ENVIRONMENT DIRECTORATE,DAWSONGROUP VANS LTD,300.08,COMMERCIAL VEH CTRL A/C,HIRED VEHICLES,5902454228,1000082230,
05.02.2021,ENVIRONMENT DIRECTORATE,DAWSONGROUP VANS LTD,300.08,COMMERCIAL VEH CTRL A/C,HIRED VEHICLES,5902454230,1000082230,
05.02.2021,ENVIRONMENT DIRECTORATE,DAWSONGROUP VANS LTD,300.08,COMMERCIAL VEH CTRL A/C,HIRED VEHICLES,5902454238,1000082230,
05.02.2021,ENVIRONMENT DIRECTORATE,DAWSONGROUP VANS LTD,300.08,COMMERCIAL VEH CTRL A/C,HIRED VEHICLES,5902454241,1000082230,
05.02.2021,ENVIRONMENT DIRECTORATE,DAWSONGROUP VANS LTD,324.08,COMMERCIAL VEH CTRL A/C,HIRED VEHICLES,5902454236,1000082230,
05.02.2021,ENVIRONMENT DIRECTORATE,DAWSONGROUP VANS LTD,325.50,COMMERCIAL VEH CTRL A/C,HIRED VEHICLES,5902454022,1000082230,
05.02.2021,ENVIRONMENT DIRECTORATE,DAWSONGROUP VANS LTD,425.32,COMMERCIAL VEH CTRL A/C,HIRED VEHICLES,5902454031,1000082230,
05.02.2021,ENVIRONMENT DIRECTORATE,DAWSONGROUP VANS LTD,425.32,COMMERCIAL VEH CTRL A/C,HIRED VEHICLES,5902454040,1000082230,
05.02.2021,ENVIRONMENT DIRECTORATE,DAWSONGROUP VANS LTD,441.75,COMMERCIAL VEH CTRL A/C,HIRED VEHICLES,5902454020,1000082230,
05.02.2021,ENVIRONMENT DIRECTORATE,DAWSONGROUP VANS LTD,452.60,COMMERCIAL VEH CTRL A/C,HIRED VEHICLES,5902454118,1000082230,
05.02.2021,ENVIRONMENT DIRECTORATE,DAWSONGROUP VANS LTD,452.60,COMMERCIAL VEH CTRL A/C,HIRED VEHICLES,5902454208,1000082230,
05.02.2021,ENVIRONMENT DIRECTORATE,DAWSONGROUP VANS LTD,471.20,COMMERCIAL VEH CTRL A/C,HIRED VEHICLES,5902454195,1000082230,
05.02.2021,ENVIRONMENT DIRECTORATE,LEEDS COMMERCIAL LIMITED T/A LC VEHICLE HIRE,"1,035.00",COMMERCIAL VEH CTRL A/C,HIRED VEHICLES,5902454110,1000082730,
05.02.2021,ENVIRONMENT DIRECTORATE,LEEDS COMMERCIAL LIMITED T/A LC VEHICLE HIRE,"1,035.00",COMMERCIAL VEH CTRL A/C,HIRED VEHICLES,5902454114,1000082730,
05.02.2021,ENVIRONMENT DIRECTORATE,LEEDS COMMERCIAL LIMITED T/A LC VEHICLE HIRE,"1,610.00",COMMERCIAL VEH CTRL A/C,HIRED VEHICLES,5902454103,1000082730,
05.02.2021,ENVIRONMENT DIRECTORATE,LEEDS COMMERCIAL LIMITED T/A LC VEHICLE HIRE,"1,610.00",COMMERCIAL VEH CTRL A/C,HIRED VEHICLES,5902454117,1000082730,
05.02.2021,ENVIRONMENT DIRECTORATE,LEEDS COMMERCIAL LIMITED T/A LC VEHICLE HIRE,"2,875.00",COMMERCIAL VEH CTRL A/C,HIRED VEHICLES,5902454122,1000082730,
05.02.2021,ENVIRONMENT DIRECTORATE,LEEDS COMMERCIAL LIMITED T/A LC VEHICLE HIRE,"2,990.00",COMMERCIAL VEH CTRL A/C,HIRED VEHICLES,5902454106,1000082730,
05.02.2021,ENVIRONMENT DIRECTORATE,E. H. ROBERTS - PENET GROUP LTD,266.00,COMMERCIAL VEH CTRL A/C,HIRED VEHICLES,5902454097,1000082787,
05.02.2021,ENVIRONMENT DIRECTORATE,E. H. ROBERTS - PENET GROUP LTD,332.00,COMMERCIAL VEH CTRL A/C,HIRED VEHICLES,5902454096,1000082787,
05.02.2021,ENVIRONMENT DIRECTORATE,E. H. ROBERTS - PENET GROUP LTD,531.50,COMMERCIAL VEH CTRL A/C,HIRED VEHICLES,5902454157,1000082787,
05.02.2021,ENVIRONMENT DIRECTORATE,E. H. ROBERTS - PENET GROUP LTD,759.00,COMMERCIAL VEH CTRL A/C,HIRED VEHICLES,5902454098,1000082787,
05.02.2021,ENVIRONMENT DIRECTORATE,E. H. ROBERTS - PENET GROUP LTD,759.00,COMMERCIAL VEH CTRL A/C,HIRED VEHICLES,5902454101,1000082787,
05.02.2021,ENVIRONMENT DIRECTORATE,E. H. ROBERTS - PENET GROUP LTD,759.00,COMMERCIAL VEH CTRL A/C,HIRED VEHICLES,5902454104,1000082787,
05.02.2021,ENVIRONMENT DIRECTORATE,E. H. ROBERTS - PENET GROUP LTD,759.00,COMMERCIAL VEH CTRL A/C,HIRED VEHICLES,5902454142,1000082787,
05.02.2021,ENVIRONMENT DIRECTORATE,E. H. ROBERTS - PENET GROUP LTD,759.00,COMMERCIAL VEH CTRL A/C,HIRED VEHICLES,5902454147,1000082787,
05.02.2021,ENVIRONMENT DIRECTORATE,E. H. ROBERTS - PENET GROUP LTD,759.00,COMMERCIAL VEH CTRL A/C,HIRED VEHICLES,5902454149,1000082787,
05.02.2021,ENVIRONMENT DIRECTORATE,E. H. ROBERTS - PENET GROUP LTD,792.00,COMMERCIAL VEH CTRL A/C,HIRED VEHICLES,5902454099,1000082787,
05.02.2021,ENVIRONMENT DIRECTORATE,E. H. ROBERTS - PENET GROUP LTD,798.00,COMMERCIAL VEH CTRL A/C,HIRED VEHICLES,5902454176,1000082787,
05.02.2021,ENVIRONMENT DIRECTORATE,E. H. ROBERTS - PENET GROUP LTD,874.00,COMMERCIAL VEH CTRL A/C,HIRED VEHICLES,5902454102,1000082787,
05.02.2021,ENVIRONMENT DIRECTORATE,E. H. ROBERTS - PENET GROUP LTD,874.00,COMMERCIAL VEH CTRL A/C,HIRED VEHICLES,5902454135,1000082787,
05.02.2021,ENVIRONMENT DIRECTORATE,E. H. ROBERTS - PENET GROUP LTD,"1,008.00",COMMERCIAL VEH CTRL A/C,HIRED VEHICLES,5902454158,1000082787,
05.02.2021,ENVIRONMENT DIRECTORATE,E. H. ROBERTS - PENET GROUP LTD,"1,152.00",COMMERCIAL VEH CTRL A/C,HIRED VEHICLES,5902454100,1000082787,
05.02.2021,ENVIRONMENT DIRECTORATE,E. H. ROBERTS - PENET GROUP LTD,"1,725.00",COMMERCIAL VEH CTRL A/C,HIRED VEHICLES,5902454115,1000082787,
05.02.2021,ENVIRONMENT DIRECTORATE,E. H. ROBERTS - PENET GROUP LTD,"1,725.00",COMMERCIAL VEH CTRL A/C,HIRED VEHICLES,5902454143,1000082787,
05.02.2021,ENVIRONMENT DIRECTORATE,E. H. ROBERTS - PENET GROUP LTD,"1,725.00",COMMERCIAL VEH CTRL A/C,HIRED VEHICLES,5902454153,1000082787,
05.02.2021,ENVIRONMENT DIRECTORATE,THE T P PARTNERSHIP,400.00,ESTATE CLEANING-GENERAL,OTHER CONTRACTORS,5902453857,1000045906,
05.02.2021,ENVIRONMENT DIRECTORATE,THE T P PARTNERSHIP,445.00,ESTATE CLEANING-GENERAL,OTHER CONTRACTORS,5902453858,1000045906,
05.02.2021,ENVIRONMENT DIRECTORATE,JAAMA LTD,"1,437.00",FLEET SERVICES MANAGEMENT,COMPUTER MAINTENANCE,5902454141,1000080704,
05.02.2021,ENVIRONMENT DIRECTORATE,JAAMA LTD,"18,277.58",FLEET SERVICES MANAGEMENT,COMPUTER MAINTENANCE,5902454194,1000080704,
05.02.2021,ENVIRONMENT DIRECTORATE,CALM MEDIATION,600.00,SASBU,CONSULTANTS SERVICES,5902454218,1000086031,
05.02.2021,ENVIRONMENT DIRECTORATE,CROMWELL POLYTHENE LTD,"1,614.00",STREET CLEANING-GENERAL,MATERIALS,5902454004,1000021159,
05.02.2021,ENVIRONMENT DIRECTORATE,KAINOS SOFTWARE LIMITED,"3,750.00",STREET WORKS OVERHEADS,SOFTWARE,5902454010,1000085790,
05.02.2021,F & C S EXCLUDING CORPORATE BUDGETS,BETTER BANKSIDE,"75,385.60",BETTER BANKSIDE,EXTERNAL AGENCIES AND BODIES,5902454057,1000036227,
05.02.2021,F & C S EXCLUDING CORPORATE BUDGETS,BETTER BANKSIDE,"139,875.67",BETTER BANKSIDE,EXTERNAL AGENCIES AND BODIES,5902454055,1000036227,
05.02.2021,F & C S EXCLUDING CORPORATE BUDGETS,CAPITA SECURE INFORMATION,"2,680.00",GM SAP,SOFTWARE,5902454223,1000070739,
05.02.2021,F & C S EXCLUDING CORPORATE BUDGETS,BDO LLP,"22,005.00",INTERNAL AUDIT CONTRACTS,PAYMENTS FOR FINANCIAL SERVICES,5902452986,1000057898,
05.02.2021,F & C S EXCLUDING CORPORATE BUDGETS,REDACTED PERSONAL DATA,500.00,SESS,OTHER PAYMENTS FOR CLIENTS,REDACTED,REDACTED,
05.02.2021,F & C S EXCLUDING CORPORATE BUDGETS,REDACTED PERSONAL DATA,500.00,SESS,OTHER PAYMENTS FOR CLIENTS,REDACTED,REDACTED,
05.02.2021,F & C S EXCLUDING CORPORATE BUDGETS,REDACTED PERSONAL DATA,500.00,SESS,OTHER PAYMENTS FOR CLIENTS,REDACTED,REDACTED,
05.02.2021,F & C S EXCLUDING CORPORATE BUDGETS,REDACTED PERSONAL DATA,500.00,SESS,OTHER PAYMENTS FOR CLIENTS,REDACTED,REDACTED,
05.02.2021,F & C S EXCLUDING CORPORATE BUDGETS,REDACTED PERSONAL DATA,500.00,SESS,OTHER PAYMENTS FOR CLIENTS,REDACTED,REDACTED,
05.02.2021,F & C S EXCLUDING CORPORATE BUDGETS,REDACTED PERSONAL DATA,500.00,SESS,OTHER PAYMENTS FOR CLIENTS,REDACTED,REDACTED,
05.02.2021,F & C S EXCLUDING CORPORATE BUDGETS,REDACTED PERSONAL DATA,500.00,SESS,OTHER PAYMENTS FOR CLIENTS,REDACTED,REDACTED,
05.02.2021,F & C S EXCLUDING CORPORATE BUDGETS,REDACTED PERSONAL DATA,500.00,SESS,OTHER PAYMENTS FOR CLIENTS,REDACTED,REDACTED,
05.02.2021,F & C S EXCLUDING CORPORATE BUDGETS,REDACTED PERSONAL DATA,500.00,SESS,OTHER PAYMENTS FOR CLIENTS,REDACTED,REDACTED,
05.02.2021,F & C S EXCLUDING CORPORATE BUDGETS,REDACTED PERSONAL DATA,500.00,SESS,OTHER PAYMENTS FOR CLIENTS,REDACTED,REDACTED,
05.02.2021,HOUSING GENERAL FUND,C & C BUILDERS LTD,"8,939.13",CAPITAL PS (HOUSING GF),CAPITAL GRANTS,5902454188,1000079100,
05.02.2021,HOUSING HRA,POTTER RAPER LTD,877.80,CAPITAL PS (HRA),CONSTRUCTION FEES - EMPLOYERS AGENT,5902453646,1009369,
05.02.2021,HOUSING HRA,POTTER RAPER LTD,"1,381.05",CAPITAL PS (HRA),CONSTRUCTION FEES - EMPLOYERS AGENT,5902453649,1009369,
05.02.2021,HOUSING HRA,CALFORD SEADEN LLP,802.64,CAPITAL PS (HRA),CONSTRUCTION FEES  - EXTERNAL,5902453374,1061592,
05.02.2021,HOUSING HRA,CALFORD SEADEN LLP,"1,470.00",CAPITAL PS (HRA),CONSTRUCTION FEES  - EXTERNAL,5902453583,1061592,
05.02.2021,HOUSING HRA,CALFORD SEADEN LLP,"4,900.00",CAPITAL PS (HRA),CONSTRUCTION FEES  - EXTERNAL,5902454224,1061592,
05.02.2021,HOUSING HRA,CALFORD SEADEN LLP,"1,470.00",CAPITAL PS (HRA),CONSTRUCTION FEES - EMPLOYERS AGENT,5902453000,1061592,
05.02.2021,HOUSING HRA,ENGIE REGENERATION (APOLLO) LTD,"72,054.26",CAPITAL PS (HRA),CONSTRUCTION MAIN CONTRACT -CERTIFICATED,2103212301,4000449,
05.02.2021,HOUSING HRA,ENGIE REGENERATION (APOLLO) LTD,"149,600.00",CAPITAL PS (HRA),CONSTRUCTION MAIN CONTRACT -CERTIFICATED,2103212302,4000449,
05.02.2021,HOUSING HRA,BARBARA ZEITLER,"2,000.00",CAPITAL PS (HRA),LAND & BUILDINGS ACQUISITION FEES,5902451647,1000041596,
05.02.2021,HOUSING HRA,EDF ENERGY  CUST PLC,476.32,RESIDENT SERVICES BUSINESS SUPPORT,ELECTRICITY,6101969023,DIRECT DEBIT PAYMENT,
05.02.2021,LEISURE DIRECTORATE,CASTLE WATER LTD,968.01,BLUE ANCHOR LIBRARY,WATER,5902454086,1000078867,
05.02.2021,LEISURE DIRECTORATE,QUADRON SERVICES LIMITED,768.00,BURGESS AREA TEAM,GROUNDS MAINTENANCE,5902454062,1000066528,
05.02.2021,LEISURE DIRECTORATE,DANFO (UK) LTD,684.96,BURGESS AREA TEAM,OTHER R&M,5902453852,1000078528,
05.02.2021,LEISURE DIRECTORATE,QUADRON SERVICES LIMITED,"4,490.31",CLIENT SERV(GRNS MAIN),OTHER CONTRACTORS,5902452925,1000066528,
05.02.2021,LEISURE DIRECTORATE,CASTLE WATER LTD,333.08,GROVE VALE LIBRARY,WATER,5902454039,1000078867,
05.02.2021,LEISURE DIRECTORATE,KENT COUNTY COUNCIL - LASER,"-3,630.67",SDM BUDGET,ELECTRICITY,5902454088,1000012926,
05.02.2021,LEISURE DIRECTORATE,KENT COUNTY COUNCIL - LASER,"6,440.30",SDM BUDGET,ELECTRICITY,5902454087,1000012926,
05.02.2021,NEW BUILD,POTTER RAPER LTD,"1,381.05",DEVELOPMENT DELIVERY,CONSULTANTS SERVICES,5902453647,1009369,
05.02.2021,PLANNING AND TRANSPORT,WATES PROPERTY SERVICES LTD,"1,802.51",DANGEROUS STRUCTURES,OTHER CONTRACTORS,5902454036,11322039,
05.02.2021,PLANNING AND TRANSPORT,WATES PROPERTY SERVICES LTD,"16,203.46",DANGEROUS STRUCTURES,OTHER CONTRACTORS,5902454033,11322039,
05.02.2021,PLANNING AND TRANSPORT,SOUTHWARK NEWSPAPER LTD,528.00,PLANNING POLICY TEAM,COMMS & COMPUTING CONTRACT CHARGES,5902454017,1556957,
05.02.2021,PLANNING AND TRANSPORT,BPS CHARTERED SURVEYORS,"4,980.00",STRATEGIC APPLICATIONS,PROFESSIONAL FEES,5902454044,1000077923,
05.02.2021,REGENERATION,WORKMAN LLP,"-4,925.02",14-20 SHAND STREET,SERVICE CHARGES,2103209952,1000063692,
05.02.2021,REGENERATION,WORKMAN LLP,"-2,776.30",14-20 SHAND STREET,SERVICE CHARGES,2103209955,1000063692,
05.02.2021,REGENERATION,WORKMAN LLP,812.32,14-20 SHAND STREET,SERVICE CHARGES,2103209941,1000063692,
05.02.2021,REGENERATION,WORKMAN LLP,"-13,858.88",22 SHAND STREET,SERVICE CHARGES,2103209956,1000063692,
05.02.2021,REGENERATION,WORKMAN LLP,428.53,22 SHAND STREET,SERVICE CHARGES,2103209943,1000063692,
05.02.2021,REGENERATION,WORKMAN LLP,-720.62,7 HOLYROOD STREET,SERVICE CHARGES,2103209945,1000063692,
05.02.2021,REGENERATION,WORKMAN LLP,"5,877.76",7 HOLYROOD STREET,SERVICE CHARGES,2103209937,1000063692,
05.02.2021,REGENERATION,WORKMAN LLP,"-9,338.70","COURAGE YARD, SHAD THAMES",SERVICE CHARGES,2103209953,1000063692,
05.02.2021,REGENERATION,WORKMAN LLP,"-1,309.05","COURAGE YARD, SHAD THAMES",SERVICE CHARGES,2103209954,1000063692,
05.02.2021,REGENERATION,WORKMAN LLP,"-1,199.39","COURAGE YARD, SHAD THAMES",SERVICE CHARGES,2103209946,1000063692,
05.02.2021,REGENERATION,DENTONS UK AND MIDDLE EAST LLP,"2,728.68",CPHA SURPLUS,PROFESSIONAL FEES,5902453012,1000083222,
05.02.2021,RESIDENT SERVICES,SK HOUSING LTD,"1,782.50",TA PLACEMENTS,EXTERNAL AGENCIES AND BODIES,5902454049,1000070716,
05.02.2021,RESIDENT SERVICES,CYBERSTYLE LETTINGS LTD,"1,658.50",TA PLACEMENTS,EXTERNAL AGENCIES AND BODIES,5902454209,1000079319,
06.02.2021,ADULT SOCIAL CARE,MARTIN VITERA LTD,266.24,ORIENT ST � RESPITE,PREMISES CLEANING,5902453667,1560597,
06.02.2021,ADULT SOCIAL CARE,CONTACT PROFESSIONALS,478.80,PHY LTS 18-64,OTHER PAYMENTS FOR CLIENTS,5902453795,1000057263,
06.02.2021,ASSET MANAGEMENT,ASSET ESTATES SERVICES (UK) LTD,"5,500.00",DIRECTOR OF ASSET MANAGEMENT,AGENCY STAFF,5902453342,1000085820,
06.02.2021,ASSET MANAGEMENT,SCCI ALPHATRACK LTD,936.22,ENG CONTRACTS (NORTH),TV AERIALS R&M,5902453088,1000071955,
06.02.2021,CHIEF EXECUTIVE,BRESLIN CONSTRUCTION LTD,"5,580.00",CAPITAL PS (REGEN),CONSTRUCTION FEES  - EXTERNAL,2103211614,3000001948,
06.02.2021,CHILDREN AND ADULT,ARVI CONSTRUCTION LTD,"25,000.00",CAPITAL PS (EDUCATION),CONSTRUCTION MAIN CONTRACT,2103212565,3000002133,
06.02.2021,CHILDREN AND FAMILIES,INTERCOUNTRY ADOPTION CENTRE,"5,695.00",ALS INTER AGENCY,PROFESSIONAL FEES,5902454213,1000035796,
06.02.2021,CHILDREN AND FAMILIES,KITES CHILDREN'S SERVICES LIMITED,399.00,FE SUPPORT,OTHER PAYMENTS FOR CLIENTS,5902454041,1000085930,
06.02.2021,CUSTOMER EXPERIENCE,BAKER & JOY COMMUNITY INTEREST COMPANY,262.50,COMPLAINTS,PROFESSIONAL FEES,5902453556,1000077693,
06.02.2021,CUSTOMER EXPERIENCE HGF,IMPERIAL COLLEGE PROJECTS LTD,292.00,CORONER'S,PROFESSIONAL FEES,5902453282,1000080106,
06.02.2021,CUSTOMER EXPERIENCE HGF,IMPERIAL COLLEGE PROJECTS LTD,292.00,CORONER'S,PROFESSIONAL FEES,5902453284,1000080106,
06.02.2021,CUSTOMER EXPERIENCE HGF,IMPERIAL COLLEGE PROJECTS LTD,356.00,CORONER'S,PROFESSIONAL FEES,5902453281,1000080106,
06.02.2021,CUSTOMER EXPERIENCE HGF,IMPERIAL COLLEGE PROJECTS LTD,356.00,CORONER'S,PROFESSIONAL FEES,5902453377,1000080106,
06.02.2021,CUSTOMER EXPERIENCE HGF,IMPERIAL COLLEGE PROJECTS LTD,548.00,CORONER'S,PROFESSIONAL FEES,5902453285,1000080106,
06.02.2021,CUSTOMER EXPERIENCE HGF,NRC PATHOLOGY SERVICES LIMITED,600.00,CORONER'S,PROFESSIONAL FEES,5902453017,1000085798,
06.02.2021,CUSTOMER EXPERIENCE HGF,TYNETEC LEGRAND LTD,"4,223.00",SMART MOBILE RESPONSE TEAM,EQUIPMENT PURCHASE & REPAIR,5902453968,1000066068,
06.02.2021,EDUCATION,OLIVER GOLDSMITH PRIMARY SCHOOL,500.00,EARLY YEARS IMPROVEMENT,CONSULTANTS SERVICES,5902453326,5001000051,
06.02.2021,ENVIRONMENT AND LEISURE,INTO SERVICES LONDON LTD,350.00,CAPITAL PS (LEISURE),CONST'N MAIN CONTRACT - NON CERTIFICATED,5902452998,1000059328,
06.02.2021,ENVIRONMENT AND LEISURE,BELL BRUSH COMPANY,640.00,MANAGEMENT TEAM,MATERIALS,5902453035,1259776,
06.02.2021,ENVIRONMENT AND LEISURE,BELL BRUSH COMPANY,"1,050.75",MANAGEMENT TEAM,MATERIALS,5902453036,1259776,
06.02.2021,HOUSING HRA,POTTER RAPER LTD,"2,865.50",CAPITAL PS (HRA),CONSTRUCTION FEES - EMPLOYERS AGENT,5902453644,1009369,
06.02.2021,HOUSING HRA,STANDAGE & CO LTD,"41,061.01",CAPITAL PS (HRA),CONSTRUCTION MAIN CONTRACT -CERTIFICATED,2103212283,4002817,
06.02.2021,HUMAN RESOURCES,PUBLIC SECTOR PEOPLE MANAGERS ASSOCIATION,"1,750.00",HR PAYROLL COSTS,PROFESSIONAL FEES,5902453853,1000036604,
06.02.2021,LEISURE DIRECTORATE,BRINSON STANILAND PARTNERSHIP LTD,"2,250.00",FACILITIES MAINTENANCE,BUILDING R&M,5902453552,1000059553,
06.02.2021,RESIDENT SERVICES,CARLISLE SECURITY SERVICES LTD,"5,266.16",CAMBERWELL,SECURITY SERVICES,5902453966,11212342,
06.02.2021,RESIDENT SERVICES,CARLISLE SECURITY SERVICES LTD,"7,636.24",CAMBERWELL,SECURITY SERVICES,5902453966,11212342,
07.02.2021,CENTRAL FUNCTIONS,STANDAGE & CO LTD,"29,652.00",AYLESBURY,SECURITY SERVICES,2103212319,4002817,
07.02.2021,CHIEF EXECUTIVE,CARTER JONAS LLP,"1,600.00",CAPITAL PS (REGEN),CONSTRUCTION FEES,5902453687,1000073124,
07.02.2021,CHIEF EXECUTIVE'S OFFICE,TREE SHEPHERD LTD,"3,812.00",BUSINESS SUPPORT,FREELANCE SPECIALISTS,5902454045,1000076895,
07.02.2021,CUSTOMER EXPERIENCE HGF,IMPERIAL COLLEGE PROJECTS LTD,284.00,CORONER'S,PROFESSIONAL FEES,5902453628,1000080106,
07.02.2021,CUSTOMER EXPERIENCE HGF,IMPERIAL COLLEGE PROJECTS LTD,388.00,CORONER'S,PROFESSIONAL FEES,5902453635,1000080106,
07.02.2021,CUSTOMER EXPERIENCE HGF,IMPERIAL COLLEGE PROJECTS LTD,408.00,CORONER'S,PROFESSIONAL FEES,5902453636,1000080106,
07.02.2021,CUSTOMER EXPERIENCE HGF,IMPERIAL COLLEGE PROJECTS LTD,448.00,CORONER'S,PROFESSIONAL FEES,5902453632,1000080106,
07.02.2021,CUSTOMER EXPERIENCE HGF,IMPERIAL COLLEGE PROJECTS LTD,468.00,CORONER'S,PROFESSIONAL FEES,5902453637,1000080106,
07.02.2021,EDUCATION,COMBER GROVE PRIMARY SCHOOL,"1,200.00",EARLY YEARS IMPROVEMENT,CONSULTANTS SERVICES,5902453851,5001000022,
07.02.2021,ENVIRONMENT DIRECTORATE,PERFORMANCE CHEMICALS LTD,"1,388.81",ESTATE CLEANING-GENERAL,MATERIALS,5902453653,1000037129,
07.02.2021,ENVIRONMENT DIRECTORATE,SOUTHWARK NEWSPAPER LTD,300.00,HIGHWAYS DEVELOPMENT,MARKETING & PUBLICITY SERVICES,5902453404,1556957,
07.02.2021,ENVIRONMENT DIRECTORATE,THE KNOWLEDGE ACADEMY LTD,399.00,PROJECT SUPPORT,TRAINING,5902453914,1000064533,
07.02.2021,ENVIRONMENT DIRECTORATE,RED R DESIGN,"1,390.00",RESIDENTIAL SERVICES,MARKETING & PUBLICITY SERVICES,5902453884,1000035984,
07.02.2021,ENVIRONMENT DIRECTORATE,SOUTHWARK NEWSPAPER LTD,324.00,STREET WORKS OVERHEADS,MARKETING & PUBLICITY SERVICES,5902453398,1556957,
07.02.2021,HOUSING,LIFTEC LIFTS LTD,"195,735.31",PAYMENTS CONTROL ACCOUNT - LIFTEC,I-WORLD CONTRACTORS HOLDING ACCOUNT,5902453410,1000057278,
07.02.2021,HOUSING HRA,DJJH CONSULTING LTD,475.78,CAPITAL PS (HRA),CONSTRUCTION FEES - EMPLOYERS AGENT,5902453340,1000085261,
07.02.2021,HOUSING HRA,DJJH CONSULTING LTD,483.18,CAPITAL PS (HRA),CONSTRUCTION FEES - EMPLOYERS AGENT,5902453336,1000085261,
07.02.2021,HOUSING HRA,DJJH CONSULTING LTD,734.82,CAPITAL PS (HRA),CONSTRUCTION FEES - EMPLOYERS AGENT,5902453345,1000085261,
07.02.2021,HOUSING HRA,DJJH CONSULTING LTD,"1,404.99",CAPITAL PS (HRA),CONSTRUCTION FEES - EMPLOYERS AGENT,5902453339,1000085261,
07.02.2021,HOUSING HRA,PRB ESTATES LTD,"4,506.02",CAPITAL PS (HRA),CONSTRUCTION,2103212318,3000001691,
07.02.2021,HOUSING HRA,GUILDMORE LTD,"198,068.83",CAPITAL PS (HRA),CONSTRUCTION MAIN CONTRACT -CERTIFICATED,2103212317,3000002150,
07.02.2021,HUMAN RESOURCES,T2 SOLUTIONS 2000 LTD,775.00,OCCUPATIONAL ASSESSMENT,CONSULTANTS SERVICES,5902453393,1000080952,
07.02.2021,LEISURE DIRECTORATE,QUADRON SERVICES LIMITED,458.24,CLIENT SERV(GRNS MAIN),OTHER CONTRACTORS,5902453355,1000066528,
07.02.2021,LEISURE DIRECTORATE,SP SERVICES (UK) LTD,996.00,SDM BUDGET,EQUIPMENT PURCHASE & REPAIR,5902453669,1000044716,
07.02.2021,MODERNISATION HGF,ACTIVE MED SUPPLIES LTD,289.00,160 TOOLEY ST.,MEDICAL / HEALTH & SAFETY SERVICES,5902453365,1000086254,
07.02.2021,NEW BUILD,POTTER RAPER LTD,"7,304.22",DEVELOPMENT DELIVERY,PROFESSIONAL FEES,5902453820,1009369,
07.02.2021,NEW BUILD,POTTER RAPER LTD,"8,388.96",DEVELOPMENT DELIVERY,PROFESSIONAL FEES,5902453819,1009369,
08.02.2021,ADULT SOCIAL CARE,REDACTED PERSONAL DATA,279.85,APPOINTEESHIPS,OTHER PAYMENTS FOR CLIENTS,REDACTED,REDACTED,
08.02.2021,ADULT SOCIAL CARE,EDGE TRAINING AND CONSULTANCY LTD,"1,750.00",ASW - PROFESSIONAL DEVELOPMENT,TRAINING,5902453889,1000057249,
08.02.2021,ADULT SOCIAL CARE,NORTHGATE PUBLIC SERVICES (UK) LTD,850.00,DEBT TASK FORCE,COMMS & COMPUTING CONTRACT CHARGES,5902454272,1000037405,
08.02.2021,ADULT SOCIAL CARE,ANGEL HUMAN RESOURCES LTD,"15,086.01",DIR OF ASC,EXTERNAL AGENCIES AND BODIES,5902454269,1000085676,
08.02.2021,ADULT SOCIAL CARE,JIRD LIMITED,603.44,DIR OF ASC,EXTERNAL AGENCIES AND BODIES,5902454255,1000085700,
08.02.2021,ADULT SOCIAL CARE,THE DRIVE CARE HOMES LTD,"14,872.87",DISABILITIES LAC,EXTERNAL AGENCIES AND BODIES,2103212753,1000003889,
08.02.2021,ADULT SOCIAL CARE,THE DRIVE CARE HOMES LTD,"14,126.52",DISABILITIES LAC,RESIDENTIAL CARE,2103212752,1000003889,
08.02.2021,ADULT SOCIAL CARE,AMELIA'S HOUSE LIMITED,"13,950.00",DISABILITIES LAC,EXTERNAL AGENCIES AND BODIES,2103212751,1000083007,
08.02.2021,ADULT SOCIAL CARE,AMELIA'S HOUSE LIMITED,"18,600.00",DISABILITIES LAC,RESIDENTIAL CARE,2103212750,1000083007,
08.02.2021,ADULT SOCIAL CARE,CARE DIRECT UK LTD,399.91,LD LTS 18-64,SUPPORTED LIVING,2103212761,1000066322,
08.02.2021,ADULT SOCIAL CARE,LONDON CARE LTD,312.25,PHY LTS 18-64,HOMECARE - C&V,2103212776,1000003398,
08.02.2021,ADULT SOCIAL CARE,LONDON CARE LTD,337.24,PHY LTS 18-64,HOMECARE - C&V,2103212781,1000003398,
08.02.2021,ADULT SOCIAL CARE,LONDON CARE LTD,280.50,PHY LTS 65+,HOMECARE - C&V,2103212771,1000003398,
08.02.2021,ADULT SOCIAL CARE,LONDON CARE LTD,466.46,PHY LTS 65+,HOMECARE - C&V,2103212783,1000003398,
08.02.2021,ADULT SOCIAL CARE,LONDON CARE LTD,469.77,PHY LTS 65+,HOMECARE - C&V,2103212765,1000003398,
08.02.2021,ADULT SOCIAL CARE,LONDON CARE LTD,510.21,PHY LTS 65+,HOMECARE - C&V,2103212777,1000003398,
08.02.2021,ADULT SOCIAL CARE,LONDON CARE LTD,588.69,PHY LTS 65+,HOMECARE - C&V,2103212775,1000003398,
08.02.2021,ADULT SOCIAL CARE,LONDON CARE LTD,599.40,PHY LTS 65+,HOMECARE - C&V,2103212768,1000003398,
08.02.2021,ADULT SOCIAL CARE,LONDON CARE LTD,"1,386.44",PHY LTS 65+,HOMECARE - C&V,2103212774,1000003398,
08.02.2021,ADULT SOCIAL CARE,CARE DIRECT UK LTD,559.13,PHY LTS 65+,HOMECARE - SPOT,2103212762,1000066322,
08.02.2021,ADULT SOCIAL CARE,CARE DIRECT UK LTD,621.25,PHY LTS 65+,HOMECARE - SPOT,2103212760,1000066322,
08.02.2021,ADULT SOCIAL CARE,LONDON CARE LTD,412.22,PHY STS 18-64,HOMECARE - IC,2103212766,1000003398,
08.02.2021,ADULT SOCIAL CARE,LONDON CARE LTD,483.01,PHY STS 65+,HOMECARE - IC,2103212769,1000003398,
08.02.2021,ADULT SOCIAL CARE,LONDON CARE LTD,964.65,PHY STS 65+,HOMECARE - IC,2103212770,1000003398,
08.02.2021,ADULT SOCIAL CARE,LONDON CARE LTD,"2,026.56",SOCIAL ISOLATION,HOMECARE - SPOT,2103212779,1000003398,
08.02.2021,ADULT SOCIAL CARE,THE ROYAL INSTITUTE FOR DEAF PEOPLE,"1,845.05",SOCIAL ISOLATION,PLACEMENTS - RESPITE,2103212720,1000014488,
08.02.2021,ASSET MANAGEMENT,JUDGE AND PRIESTLEY SOLICITORS,300.00,DISREPAIR,PAYMENTS FOR LEGAL SERVICES,5902454353,1472217,
08.02.2021,ASSET MANAGEMENT,JUDGE AND PRIESTLEY SOLICITORS,780.00,DISREPAIR,PAYMENTS FOR LEGAL SERVICES,5902454353,1472217,
08.02.2021,ASSET MANAGEMENT,JUDGE AND PRIESTLEY SOLICITORS,"1,645.00",DISREPAIR,PAYMENTS FOR LEGAL SERVICES,5902454367,1472217,
08.02.2021,ASSET MANAGEMENT,JUDGE AND PRIESTLEY SOLICITORS,"20,044.50",DISREPAIR,PAYMENTS FOR LEGAL SERVICES,5902454367,1472217,
08.02.2021,ASSET MANAGEMENT,JUDGE AND PRIESTLEY SOLICITORS,"20,250.00",DISREPAIR,PAYMENTS FOR LEGAL SERVICES,5902454353,1472217,
08.02.2021,ASSET MANAGEMENT,JUDGE AND PRIESTLEY SOLICITORS,"24,000.00",DISREPAIR,PAYMENTS FOR LEGAL SERVICES,5902454330,1472217,
08.02.2021,ASSET MANAGEMENT,JUDGE AND PRIESTLEY SOLICITORS,"25,190.00",DISREPAIR,PAYMENTS FOR LEGAL SERVICES,5902454331,1472217,
08.02.2021,ASSET MANAGEMENT,AVONLINE NETWORK SERVICES LTD,"1,754.06",ENG CONTRACTS (NORTH),TV AERIALS R&M,5902454011,1000068672,
08.02.2021,ASSET MANAGEMENT,PELLINGS LLP,"1,900.00",MAJOR REPAIRS,BUILDING R&M,5902454368,1009262,
08.02.2021,ASSET MANAGEMENT,GT LOUIS LTD,"2,100.00",MAJOR REPAIRS,BUILDING R&M,5902454352,1000086287,
08.02.2021,CENTRAL FUNCTIONS,1ST ACE SECURITY LTD,"23,016.00",LAKANAL (TENANCY),OTHER R&M,5902454357,1000006992,
08.02.2021,CENTRAL FUNCTIONS,1ST ACE SECURITY LTD,"24,660.00",LAKANAL (TENANCY),OTHER R&M,5902454356,1000006992,
08.02.2021,CHIEF EXECUTIVE,KN NETWORK SERVICES LTD,"96,156.86",CAPITAL PS (REGEN),CONSTRUCTION MAIN CONTRACT -CERTIFICATED,2103210996,3000002134,
08.02.2021,CHIEF EXECUTIVE,ANNABEL GRAHAM PAUL,375.00,CAPITAL PS (REGEN),LAND & BUILDINGS ACQUISITION,5902454365,1000068890,
08.02.2021,CHILDREN AND ADULT,PELLINGS LLP,288.00,CAPITAL PS (EDUCATION),CONSTRUCTION MAIN CONTRACT -CERTIFICATED,5902453671,1009262,
08.02.2021,CHILDREN AND ADULT,SHARPE PRITCHARD LLP,455.00,CAPITAL PS (EDUCATION),CONSTRUCTION FEES - QUANTITY SURVEYOR,5902454363,1790085,
08.02.2021,CHILDREN AND ADULT,FAITHFUL & GOULD,"4,598.00",CAPITAL PS (EDUCATION),CONSTRUCTION FEES,5902453919,1000061390,
08.02.2021,CHILDREN AND ADULT,PELLINGS LLP,540.00,CAPITAL PS (SOC SERV),CONSTRUCTION MAIN CONTRACT,5902454336,1009262,
08.02.2021,CHILDREN AND ADULT,STONEGROVE LIMITED,"118,058.78",CAPITAL PS (SOC SERV),CONSTRUCTION MAIN CONTRACT,2103212791,3000001525,
08.02.2021,CHILDREN AND FAMILIES,WORKER ANT LIMITED,640.00,DIRECTOR OF C&F,EXTERNAL AGENCIES AND BODIES,5902454266,1000086298,
08.02.2021,CHILDREN AND FAMILIES,WORKER ANT LIMITED,880.00,DIRECTOR OF C&F,EXTERNAL AGENCIES AND BODIES,5902454267,1000086298,
08.02.2021,CHILDREN AND FAMILIES,CARE O LINE,"4,798.75",EDGE OF CARE DECIS�S,SECTION 17 PAYMENTS TO AGENCIES/CARERS,2103212754,11241743,
08.02.2021,CHILDREN AND FAMILIES,CARE O LINE,"4,895.00",EDGE OF CARE DECIS�S,SECTION 17 PAYMENTS TO AGENCIES/CARERS,2103212755,11241743,
08.02.2021,CHILDREN AND FAMILIES,LOGICOUS LTD,"1,166.63",FRIENDS &FAMILY FOST,NURSING PLACEMENTS FEES,5902454292,1000073852,
08.02.2021,CHILDREN AND FAMILIES,REDACTED PERSONAL DATA,920.00,LEAVING CARE GRANT,OTHER PAYMENTS FOR CLIENTS,REDACTED,REDACTED,
08.02.2021,CHILDREN AND FAMILIES,NUMBER 10 INTERIM LTD,"5,250.00",MANAGEMENT INFORMATION UNIT,PROFESSIONAL FEES,5902454347,1000075139,
08.02.2021,CHILDREN AND FAMILIES,CASTLE WATER LTD,897.62,MGMT & PARENTING,WATER,5902454275,1000078867,
08.02.2021,CHILDREN AND FAMILIES,CASTLE WATER LTD,940.08,MGMT & PARENTING,WATER,5902454275,1000078867,
08.02.2021,CHILDREN AND FAMILIES,NEXT STEP CARE MANAGEMENT LTD,"2,967.14",SEMI-IND CARELEAVERS,EXTERNAL AGENCIES AND BODIES,2103212734,1825556,
08.02.2021,CHILDREN AND FAMILIES,NEXT STEP CARE MANAGEMENT LTD,"2,989.29",SEMI-IND CARELEAVERS,EXTERNAL AGENCIES AND BODIES,2103212737,1825556,
08.02.2021,CHILDREN AND FAMILIES,BARNARDOS SERVICES LTD,664.29,SEMI-IND CARELEAVERS,EXTERNAL AGENCIES AND BODIES,2103212740,1000063730,
08.02.2021,CHILDREN AND FAMILIES,SANCTUARY CARE SERVICES LTD,"2,300.00",SEMI-IND CARELEAVERS,EXTERNAL AGENCIES AND BODIES,2103212745,1000078444,
08.02.2021,CHILDREN AND FAMILIES,SYDNEY CARE LTD,"5,314.28",SEMI-IND CARELEAVERS,EXTERNAL AGENCIES AND BODIES,2103212748,1000081598,
08.02.2021,CHILDREN AND FAMILIES,SYDNEY CARE LTD,"5,314.28",SEMI-IND CARELEAVERS,EXTERNAL AGENCIES AND BODIES,2103212749,1000081598,
08.02.2021,CHILDREN AND FAMILIES,SYDNEY CARE LTD,310.00,SEMI-IND CARELEAVERS,OTHER PAYMENTS FOR CLIENTS,2103212743,1000081598,
08.02.2021,CHILDREN AND FAMILIES,THE SALVATION ARMY,"4,850.98",SEMI-IND LAC 16-17,EXTERNAL AGENCIES AND BODIES,2103212723,1000016253,
08.02.2021,CHILDREN AND FAMILIES,STEP AHEAD SERVICES LTD,"20,194.29",SEMI-IND LAC 16-17,EXTERNAL AGENCIES AND BODIES,2103212727,1000036544,
08.02.2021,CHILDREN AND FAMILIES,STEP AHEAD SERVICES LTD,310.00,SEMI-IND LAC 16-17,OTHER PAYMENTS FOR CLIENTS,2103212733,1000036544,
08.02.2021,CHILDREN AND FAMILIES,FUTURE FOUNDATIONS LTD,300.00,SEMI-IND LAC 16-17,EXTERNAL AGENCIES AND BODIES,2103212722,1000063272,
08.02.2021,CHILDREN AND FAMILIES,FUTURE FOUNDATIONS LTD,"3,211.42",SEMI-IND LAC 16-17,EXTERNAL AGENCIES AND BODIES,2103212731,1000063272,
08.02.2021,CHILDREN AND FAMILIES,FUTURE FOUNDATIONS LTD,300.00,SEMI-IND LAC 16-17,OTHER PAYMENTS FOR CLIENTS,2103212724,1000063272,
08.02.2021,CHILDREN AND FAMILIES,SYDNEY CARE LTD,"7,612.71",SEMI-IND LAC 16-17,EXTERNAL AGENCIES AND BODIES,2103212728,1000081598,
08.02.2021,CHILDREN AND FAMILIES,SYDNEY CARE LTD,310.00,SEMI-IND LAC 16-17,OTHER PAYMENTS FOR CLIENTS,2103212730,1000081598,
08.02.2021,CHILDREN AND FAMILIES,SYDNEY CARE LTD,310.00,SEMI-IND LAC 16-17,OTHER PAYMENTS FOR CLIENTS,2103212732,1000081598,
08.02.2021,CHILDREN AND FAMILIES,MAGIC ROUNDABOUT NURSERIES LTD,990.00,SPECIAL GUARDIANSHIP,EXTERNAL AGENCIES AND BODIES,5902454279,1000045128,
08.02.2021,CHILDREN AND FAMILIES,GREATER LONDON FOSTERING,"2,316.54",STAYPUT- FOST CARERS,EXTERNAL AGENCIES AND BODIES,2103212741,1000029184,
08.02.2021,CHILDREN AND FAMILIES,CARE O LINE,525.50,TEAM D,OTHER PAYMENTS FOR CLIENTS,2103212756,11241743,
08.02.2021,CHILDREN AND FAMILIES,CARE O LINE,525.50,TEAM D,OTHER PAYMENTS FOR CLIENTS,2103212757,11241743,
08.02.2021,CHILDREN AND FAMILIES,CARE O LINE,525.50,TEAM D,OTHER PAYMENTS FOR CLIENTS,2103212758,11241743,
08.02.2021,CHILDREN AND FAMILIES,LONDON EARLY YEARS FOUNDATION,289.38,TEAM D,OTHER PAYMENTS FOR CLIENTS,5902453508,1000077919,
08.02.2021,CHILDREN AND FAMILIES,LONDON EARLY YEARS FOUNDATION,578.76,TEAM D,OTHER PAYMENTS FOR CLIENTS,5902453510,1000077919,
08.02.2021,CHILDREN AND FAMILIES,THE SALVATION ARMY,"1,260.15",UASC CARELEAVERS,EXTERNAL AGENCIES AND BODIES,2103212735,1000016253,
08.02.2021,CHILDREN AND FAMILIES,THE SALVATION ARMY,"1,274.41",UASC CARELEAVERS,EXTERNAL AGENCIES AND BODIES,2103212739,1000016253,
08.02.2021,CHILDREN AND FAMILIES,THE SALVATION ARMY,"1,274.41",UASC CARELEAVERS,EXTERNAL AGENCIES AND BODIES,2103212747,1000016253,
08.02.2021,CHILDREN AND FAMILIES,THE SALVATION ARMY,"1,329.90",UASC CARELEAVERS,EXTERNAL AGENCIES AND BODIES,2103212738,1000016253,
08.02.2021,CHILDREN AND FAMILIES,THE SALVATION ARMY,"1,329.90",UASC CARELEAVERS,EXTERNAL AGENCIES AND BODIES,2103212746,1000016253,
08.02.2021,CHILDREN AND FAMILIES,SANCTUARY CARE SERVICES LTD,"2,300.00",UASC CARELEAVERS,EXTERNAL AGENCIES AND BODIES,2103212736,1000078444,
08.02.2021,COLLECTION FUNDS,GREATER LONDON AUTHORITY,"3,572,197.39",GLA PRECEPT,LEVIES,5902454323,1000015827,
08.02.2021,COMMISSIONING & CENTRAL,NELL GWYNN NURSERY SCHOOL,"10,000.00",STRATEGIC DIRECTOR OF C&AS,EXTERNAL AGENCIES AND BODIES,5902453834,5001000049,
08.02.2021,COMMISSIONING & CENTRAL,ANN BERNADT NURSERY SCHOOL,"10,000.00",STRATEGIC DIRECTOR OF C&AS,EXTERNAL AGENCIES AND BODIES,5902453838,5001000085,
08.02.2021,COMMISSIONING & CENTRAL,DULWICH WOOD CHILDRENS CENTRE,"10,000.00",STRATEGIC DIRECTOR OF C&AS,EXTERNAL AGENCIES AND BODIES,5902453840,5001000099,
08.02.2021,COMMUNITIES,KINDLY PROPERTIES LTD,"15,531.00",NO RECOURSE TO PUBLIC FUNDS,ACCOMMODATION CHARGES,5902454361,1000060734,
08.02.2021,COMMUNITIES,TAAKSVALE HOUSING LTD,"8,271.25",NO RECOURSE TO PUBLIC FUNDS,ACCOMMODATION CHARGES,5902454250,1000073665,
08.02.2021,COMMUNITIES,TAAKSVALE HOUSING LTD,"29,567.75",NO RECOURSE TO PUBLIC FUNDS,ACCOMMODATION CHARGES,5902454250,1000073665,
08.02.2021,CUSTOMER EXPERIENCE HGF,REST UP,"20,090.00",COVID-19 SUPPORT,EXTERNAL AGENCIES AND BODIES,5902453396,1000084299,
08.02.2021,CUSTOMER EXPERIENCE HGF,RENT WITH US LTD,"1,587.96",HOMELESS PROJECTS,GRANTS,5902454276,1000085885,
08.02.2021,CUSTOMER EXPERIENCE HGF,LONDON SERVICES FOR YOU LTD,904.88,HOMELESS PROJECTS,GRANTS,5902454301,1000086267,
08.02.2021,CUSTOMER EXPERIENCE HGF,DANIEL AND MALGORZATA WOJCIK,"2,300.00",HOMELESS PROJECTS,GRANTS,5902454351,1000086274,
08.02.2021,CUSTOMER EXPERIENCE HGF,SUPRA UK LTD T/A THE KEYSAFE COMPANY,"4,196.00",LAMBETH RESPONSE,EQUIPMENT PURCHASE & REPAIR,5902453962,1000048522,
08.02.2021,CUSTOMER EXPERIENCE HGF,HOMELY HOUSING LETS LTD,"10,181.00",NIGHTLY TA (NSC),EXTERNAL AGENCIES AND BODIES,5902454288,1000050013,
08.02.2021,DSG,ANN BERNADT NURSERY SCHOOL,"30,000.00",ANN BERNADT (SUMNER),EARLY YEARS - 3 AND 4 YEAR OLDS,2103212798,5001000085,
08.02.2021,DSG,KINTORE WAY CHILDRENS CENTRE,"50,000.00",KINTORE WAY CHILDRENS CENTRE,EARLY YEARS - 3 AND 4 YEAR OLDS,2103212797,5001000047,
08.02.2021,DSG,DOG KENNEL HILL PRIMARY SCHOOL,"10,783.00",MATERNITY COVER,SCHOOLS CAPITATION,2103212795,5001000025,
08.02.2021,DSG,IVYDALE PRIMARY SCHOOL,"9,243.00",MATERNITY COVER,SCHOOLS CAPITATION,2103212793,5001000038,
08.02.2021,DSG,LYNDHURST PRIMARY SCHOOL,"11,219.00",MATERNITY COVER,SCHOOLS CAPITATION,2103212794,5001000043,
08.02.2021,DSG,CATHEDRAL SCHOOL OF ST SAVIOUR & MARY,"7,097.00",MATERNITY COVER,SCHOOLS CAPITATION,2103212796,5001000088,
08.02.2021,DSG,NELL GWYNN NURSERY SCHOOL,"30,000.00",NELL GWYNN CHILDRENS CENTRE,EARLY YEARS - 3 AND 4 YEAR OLDS,2103212799,5001000049,
08.02.2021,DSG,HEBER PRIMARY SCHOOL,"1,347.00",SEN INCLUSION TEAM,CONSULTANTS SERVICES,2103212792,5001000035,
08.02.2021,DSG,SOUTHWARK INCLUSIVE LEARNING SERVICE,"175,000.00",SILS,HIGH NEEDS - TOP UP FUNDING,5902454329,5001000105,
08.02.2021,DSG,THE GROVE CHILDRENS CENTRE,"20,000.00",THE GROVE NURSERY SCHOOL,EARLY YEARS - 3 AND 4 YEAR OLDS,2103212800,5001000090,
08.02.2021,EDUCATION,TUKE SCHOOL,"2,062.09",SCH TRANS � TRAVEL,EXTERNAL AGENCIES AND BODIES,5902453877,5001000097,
08.02.2021,ENVIRONMENT AND LEISURE,BAILY GARNER (HEALTH AND SAFETY) LIMITED,336.00,CAPITAL PS (LEISURE),CONSTRUCTION FEES  - EXTERNAL,5902453829,1000033754,
08.02.2021,ENVIRONMENT AND LEISURE,BAILY GARNER (HEALTH AND SAFETY) LIMITED,"1,312.00",CAPITAL PS (LEISURE),CONSTRUCTION FEES  - EXTERNAL,5902453836,1000033754,
08.02.2021,ENVIRONMENT AND LEISURE,INTO SERVICES LONDON LTD,"2,400.00",CAPITAL PS (LEISURE),CONST'N MAIN CONTRACT - NON CERTIFICATED,5902453423,1000059328,
08.02.2021,ENVIRONMENT AND LEISURE,HARRISON DESIGN DEVELOPMENT LTD,450.00,CAPITAL PS (LEISURE),CONSTRUCTION FEES  - EXTERNAL,5902453916,1000066896,
08.02.2021,ENVIRONMENT AND LEISURE,HARRISON DESIGN DEVELOPMENT LTD,"7,750.00",CAPITAL PS (LEISURE),CONSTRUCTION FEES  - EXTERNAL,5902453910,1000066896,
08.02.2021,ENVIRONMENT AND LEISURE,CROWN OIL LTD,699.90,SANDGATE STREET,VEHICLE FUEL,5902453672,1000081749,
08.02.2021,ENVIRONMENT DIRECTORATE,AUTOMOTIVE LEASING,934.59,CAR LEASING CTRL A/C,VEHICLE LEASING CHARGES,5902454306,11014756,
08.02.2021,ENVIRONMENT DIRECTORATE,AUTOMOTIVE LEASING,979.63,CAR LEASING CTRL A/C,VEHICLE LEASING CHARGES,5902454306,11014756,
08.02.2021,ENVIRONMENT DIRECTORATE,AUTOMOTIVE LEASING,"2,892.37",COMMERCIAL VEH CTRL A/C,HIRED VEHICLES,5902454306,11014756,
08.02.2021,ENVIRONMENT DIRECTORATE,DAWSONGROUP VANS LTD,275.90,COMMERCIAL VEH CTRL A/C,HIRED VEHICLES,5902454246,1000082230,
08.02.2021,ENVIRONMENT DIRECTORATE,DAWSONGROUP VANS LTD,275.90,COMMERCIAL VEH CTRL A/C,HIRED VEHICLES,5902454247,1000082230,
08.02.2021,ENVIRONMENT DIRECTORATE,DAWSONGROUP VANS LTD,275.90,COMMERCIAL VEH CTRL A/C,HIRED VEHICLES,5902454248,1000082230,
08.02.2021,ENVIRONMENT DIRECTORATE,DAWSONGROUP VANS LTD,276.78,COMMERCIAL VEH CTRL A/C,HIRED VEHICLES,5902454249,1000082230,
08.02.2021,ENVIRONMENT DIRECTORATE,BUDMAX CONSTRUCTION LTD,"1,870.00",ENGINEERING CRAFTS,OTHER CONTRACTORS,2103212579,3000001936,
08.02.2021,ENVIRONMENT DIRECTORATE,CONWAY AECOM LTD,"4,495.89",FLOOD RISK MANAGEMENT,HIGHWAYS TERM CONTRACT,5902454273,1000071205,
08.02.2021,ENVIRONMENT DIRECTORATE,CONWAY AECOM LTD,"7,048.25",FLOOD RISK MANAGEMENT,HIGHWAYS TERM CONTRACT,5902454274,1000071205,
08.02.2021,ENVIRONMENT DIRECTORATE,ZG LIGHTING (UK) LTD,"8,600.00",PUBLIC LIGHTING,MATERIALS,5902454335,1000031757,
08.02.2021,ENVIRONMENT DIRECTORATE,THE MILLENNIUM QUEST LTD,"2,394.00",PUBLIC LIGHTING,MATERIALS,5902454337,1000050093,
08.02.2021,ENVIRONMENT DIRECTORATE,ZODION LIMITED,820.00,PUBLIC LIGHTING,MATERIALS,5902454334,1000061709,
08.02.2021,ENVIRONMENT DIRECTORATE,NAL LTD,480.55,PUBLIC LIGHTING,MATERIALS,5902454333,1000063814,
